extractdate,publisheruri,publisherlabel,serviceyypeuri,servicetypelabel,DATE OF TRANSACTION,LA DEPARTMENT INCURRING SPEND,BENEFICIARY,GROSS AMOUNT,SUMMARY OF PURPOSE OF SPEND,MERCHANT CATEGORY,MERCHANT CATERGORY CODE
18/07/2016,http://opendatacommunities.org/id/county-council/surrey,Surrey,http://id.esd.org.uk/service/1465,Council expenditure,28/03/2016,DCLG FIRE CONTROL GRANT (CAPITAL),PAYPAL  COMMS EXP,"1,588.70",CE04 CAPITAL ICT,ELECTRONIC SALES,5732
18/07/2016,http://opendatacommunities.org/id/county-council/surrey,Surrey,http://id.esd.org.uk/service/1465,Council expenditure,28/03/2016,BURBANK COMMUNITY HOME,WOKING BOROUGH COUNCIL,1.3,EDUC VISITS/HOLS/CAMPS/TOYS,AUTOMOBILE PARKING LOTS AND GARAGES,7523
18/07/2016,http://opendatacommunities.org/id/county-council/surrey,Surrey,http://id.esd.org.uk/service/1465,Council expenditure,28/03/2016,COVEHAM,SAINSBURYS TO YOU 0687,85,PURCHASE OF FOOD (RAW MATERIALS),"GROCERY STORES, SUPERMARKETS",5411
18/07/2016,http://opendatacommunities.org/id/county-council/surrey,Surrey,http://id.esd.org.uk/service/1465,Council expenditure,28/03/2016,EXTENDED HOURS SREVICE,AMAZON EU,96,EDUC VISITS/HOLS/CAMPS/TOYS,DIRECT MARKETING-OTHER DIRECT MARKETERS/NOT ELSEW.,5969
18/07/2016,http://opendatacommunities.org/id/county-council/surrey,Surrey,http://id.esd.org.uk/service/1465,Council expenditure,28/03/2016,MALLOW CRESCENT,SAINSBURYS TO YOU 0686,15.45,PURCHASE OF FOOD (RAW MATERIALS),"GROCERY STORES, SUPERMARKETS",5411
18/07/2016,http://opendatacommunities.org/id/county-council/surrey,Surrey,http://id.esd.org.uk/service/1465,Council expenditure,28/03/2016,MALLOW CRESCENT,SAINSBURYS TO YOU 0686,89.75,PURCHASE OF FOOD (RAW MATERIALS),"GROCERY STORES, SUPERMARKETS",5411
18/07/2016,http://opendatacommunities.org/id/county-council/surrey,Surrey,http://id.esd.org.uk/service/1465,Council expenditure,28/03/2016,MALLOW CRESCENT,SAINSBURYS TO YOU 0686,8.1,PURCHASE OF FOOD (RAW MATERIALS),"GROCERY STORES, SUPERMARKETS",5411
18/07/2016,http://opendatacommunities.org/id/county-council/surrey,Surrey,http://id.esd.org.uk/service/1465,Council expenditure,28/03/2016,MALLOW CRESCENT,SAINSBURYS TO YOU 0686,91.17,PURCHASE OF FOOD (RAW MATERIALS),"GROCERY STORES, SUPERMARKETS",5411
18/07/2016,http://opendatacommunities.org/id/county-council/surrey,Surrey,http://id.esd.org.uk/service/1465,Council expenditure,28/03/2016,CHEYNE WALK COMMUNITY HOME,AMAZON UK MARKETPLACE,2.69,EQUIPMENT,BOOK STORES,5942
18/07/2016,http://opendatacommunities.org/id/county-council/surrey,Surrey,http://id.esd.org.uk/service/1465,Council expenditure,28/03/2016,ARUNDEL,TESCO STORES 2191,5.34,REFRESHMENT COSTS,"GROCERY STORES, SUPERMARKETS",5411
18/07/2016,http://opendatacommunities.org/id/county-council/surrey,Surrey,http://id.esd.org.uk/service/1465,Council expenditure,28/03/2016,CHEYNE WALK COMMUNITY HOME,FORTUNE GARDEN,43.7,PURCHASE OF FOOD (RAW MATERIALS),FAST FOOD RESTAURANTS,5814
18/07/2016,http://opendatacommunities.org/id/county-council/surrey,Surrey,http://id.esd.org.uk/service/1465,Council expenditure,28/03/2016,MALLOW CRESCENT,SAINSBURYS TO YOU 0686,2.2,PURCHASE OF FOOD (RAW MATERIALS),"GROCERY STORES, SUPERMARKETS",5411
18/07/2016,http://opendatacommunities.org/id/county-council/surrey,Surrey,http://id.esd.org.uk/service/1465,Council expenditure,28/03/2016,MALLOW CRESCENT,SAINSBURYS TO YOU 0686,99.42,PURCHASE OF FOOD (RAW MATERIALS),"GROCERY STORES, SUPERMARKETS",5411
18/07/2016,http://opendatacommunities.org/id/county-council/surrey,Surrey,http://id.esd.org.uk/service/1465,Council expenditure,28/03/2016,CHEYNE WALK COMMUNITY HOME,AMAZON UK MARKETPLACE,1.99,EQUIPMENT,BOOK STORES,5942
18/07/2016,http://opendatacommunities.org/id/county-council/surrey,Surrey,http://id.esd.org.uk/service/1465,Council expenditure,28/03/2016,SE CARE - NON-LAC CP & COURT,ARGOS DIRECT,-349.95,CHILDREN ACT SEC 17 PAYMENTS,DISCOUNT STORES,5310
18/07/2016,http://opendatacommunities.org/id/county-council/surrey,Surrey,http://id.esd.org.uk/service/1465,Council expenditure,28/03/2016,COVEHAM,SAINSBURYS TO YOU 0687,159.4,PURCHASE OF FOOD (RAW MATERIALS),"GROCERY STORES, SUPERMARKETS",5411
18/07/2016,http://opendatacommunities.org/id/county-council/surrey,Surrey,http://id.esd.org.uk/service/1465,Council expenditure,28/03/2016,LIBERTAS COMMUNITY HOME,ONE STOP 1523,5.39,PURCHASE OF FOOD (RAW MATERIALS),"GROCERY STORES, SUPERMARKETS",5411
18/07/2016,http://opendatacommunities.org/id/county-council/surrey,Surrey,http://id.esd.org.uk/service/1465,Council expenditure,28/03/2016,FAIRCROFT COMMUNITY HOME,WWW.AIRHOPTRAMPELINEOA,80.5,EDUC VISITS/HOLS/CAMPS/TOYS,RECREATIONAL AND SPORTING CAMPS,7032
18/07/2016,http://opendatacommunities.org/id/county-council/surrey,Surrey,http://id.esd.org.uk/service/1465,Council expenditure,28/03/2016,BURBANK COMMUNITY HOME,PIZZA EXPRESS,24.3,REFRESHMENT COSTS,"EATING PLACES, RESTAURANTS",5812
18/07/2016,http://opendatacommunities.org/id/county-council/surrey,Surrey,http://id.esd.org.uk/service/1465,Council expenditure,28/03/2016,LIBERTAS COMMUNITY HOME,BP MERROW CONVENIENCE,11.39,PURCHASE OF FOOD (RAW MATERIALS),SERVICE STATIONS WITH OR WITHOUT ANCILLARY SERVICE,5541
18/07/2016,http://opendatacommunities.org/id/county-council/surrey,Surrey,http://id.esd.org.uk/service/1465,Council expenditure,28/03/2016,FAIRCROFT COMMUNITY HOME,CREAMS,31.7,REFRESHMENT COSTS,"EATING PLACES, RESTAURANTS",5812
18/07/2016,http://opendatacommunities.org/id/county-council/surrey,Surrey,http://id.esd.org.uk/service/1465,Council expenditure,28/03/2016,SOLD DAY TO DAY OPERATIONS,AMAZON UK MARKETPLACE,19.83,EQUIPMENT,BOOK STORES,5942
18/07/2016,http://opendatacommunities.org/id/county-council/surrey,Surrey,http://id.esd.org.uk/service/1465,Council expenditure,28/03/2016,LIBERTAS COMMUNITY HOME,DEBRA,34.79,EQUIPMENT,BUSINESS SERVICES-NOT ELSEWHERE CLASSIFIED,7399
18/07/2016,http://opendatacommunities.org/id/county-council/surrey,Surrey,http://id.esd.org.uk/service/1465,Council expenditure,28/03/2016,BURBANK COMMUNITY HOME,POUNDWORLD RETAIL,3.05,EQUIPMENT,DISCOUNT STORES,5310
18/07/2016,http://opendatacommunities.org/id/county-council/surrey,Surrey,http://id.esd.org.uk/service/1465,Council expenditure,28/03/2016,HOLLAND CLOSE RESIDENTIAL HOME,TESCO STORE 3179,75.27,PURCHASE OF FOOD (RAW MATERIALS),"GROCERY STORES, SUPERMARKETS",5411
18/07/2016,http://opendatacommunities.org/id/county-council/surrey,Surrey,http://id.esd.org.uk/service/1465,Council expenditure,29/03/2016,HOLLAND CLOSE RESIDENTIAL HOME,C BREWER & SONS,21.37,DAY TO DAY MAINTENANCE,"BUILDING MATERIALS, LUMBER STORES",5211
18/07/2016,http://opendatacommunities.org/id/county-council/surrey,Surrey,http://id.esd.org.uk/service/1465,Council expenditure,29/03/2016,FARNHAM YC,SPORTSDIRECT.COM,86.96,EQUIPMENT,SPORTING GOODS STORES,5941
18/07/2016,http://opendatacommunities.org/id/county-council/surrey,Surrey,http://id.esd.org.uk/service/1465,Council expenditure,29/03/2016,HOPE SERVICE - EAST,BP RUSHETT CONNECT,1.78,PURCHASE OF FOOD (RAW MATERIALS),SERVICE STATIONS WITH OR WITHOUT ANCILLARY SERVICE,5541
18/07/2016,http://opendatacommunities.org/id/county-council/surrey,Surrey,http://id.esd.org.uk/service/1465,Council expenditure,29/03/2016,SW CARE - CP & COURT LAC,PREMIER INN,78.5,CHILDREN ACT SEC 17 PAYMENTS,PREMIER INN,3811
18/07/2016,http://opendatacommunities.org/id/county-council/surrey,Surrey,http://id.esd.org.uk/service/1465,Council expenditure,29/03/2016,EXTENDED HOURS SREVICE,TVLICENSING.CO.UK,145.5,EDUC VISITS/HOLS/CAMPS/TOYS,"CONSULTING, MANAGEMENT, AND PUBLIC RELATIONS SVCS",7392
18/07/2016,http://opendatacommunities.org/id/county-council/surrey,Surrey,http://id.esd.org.uk/service/1465,Council expenditure,29/03/2016,NW CARE - LAC,TRAINLINE,127.04,NON-STAFF RELATED TRANSPORT COSTS,PASSENGER RAILWAYS,4112
18/07/2016,http://opendatacommunities.org/id/county-council/surrey,Surrey,http://id.esd.org.uk/service/1465,Council expenditure,29/03/2016,YSS YOUTH CENTRE IMPROVEMENTS,SAINSBURYS 0686,79,EQUIPMENT,"GROCERY STORES, SUPERMARKETS",5411
18/07/2016,http://opendatacommunities.org/id/county-council/surrey,Surrey,http://id.esd.org.uk/service/1465,Council expenditure,29/03/2016,TRANSPORT,AMAZON UK MARKETPLACE,29.98,OPERATIONAL FIRE EQUIPMENT,BOOK STORES,5942
18/07/2016,http://opendatacommunities.org/id/county-council/surrey,Surrey,http://id.esd.org.uk/service/1465,Council expenditure,29/03/2016,WOODLANDS COMMUNITY HOME,SAINSBURYS 0686,303.34,PURCHASE OF FOOD (RAW MATERIALS),"GROCERY STORES, SUPERMARKETS",5411
18/07/2016,http://opendatacommunities.org/id/county-council/surrey,Surrey,http://id.esd.org.uk/service/1465,Council expenditure,29/03/2016,WOODLANDS COMMUNITY HOME,SAINSBURYS 0686,24.6,PURCHASE OF FOOD (RAW MATERIALS),"GROCERY STORES, SUPERMARKETS",5411
18/07/2016,http://opendatacommunities.org/id/county-council/surrey,Surrey,http://id.esd.org.uk/service/1465,Council expenditure,29/03/2016,WOODLANDS COMMUNITY HOME,SAINSBURYS 0686,4.5,EQUIPMENT,"GROCERY STORES, SUPERMARKETS",5411
18/07/2016,http://opendatacommunities.org/id/county-council/surrey,Surrey,http://id.esd.org.uk/service/1465,Council expenditure,29/03/2016,WOODLANDS COMMUNITY HOME,SAINSBURYS 0686,56.25,CLEANING MATERIALS,"GROCERY STORES, SUPERMARKETS",5411
18/07/2016,http://opendatacommunities.org/id/county-council/surrey,Surrey,http://id.esd.org.uk/service/1465,Council expenditure,29/03/2016,APPLEWOOD,ASDA HOME SHOPPING,269.13,PURCHASE OF FOOD (RAW MATERIALS),"GROCERY STORES, SUPERMARKETS",5411
18/07/2016,http://opendatacommunities.org/id/county-council/surrey,Surrey,http://id.esd.org.uk/service/1465,Council expenditure,29/03/2016,BURBANK COMMUNITY HOME,SAINSBURYS 0686,38.85,PURCHASE OF FOOD (RAW MATERIALS),"GROCERY STORES, SUPERMARKETS",5411
18/07/2016,http://opendatacommunities.org/id/county-council/surrey,Surrey,http://id.esd.org.uk/service/1465,Council expenditure,29/03/2016,FAIRCROFT COMMUNITY HOME,TESCO STORE 2160,-12,PURCHASE OF FOOD (RAW MATERIALS),"GROCERY STORES, SUPERMARKETS",5411
18/07/2016,http://opendatacommunities.org/id/county-council/surrey,Surrey,http://id.esd.org.uk/service/1465,Council expenditure,29/03/2016,CRANLEIGH YC,ASDA STORES,25.04,EQUIPMENT,"GROCERY STORES, SUPERMARKETS",5411
18/07/2016,http://opendatacommunities.org/id/county-council/surrey,Surrey,http://id.esd.org.uk/service/1465,Council expenditure,29/03/2016,YSS YOUTH CENTRE IMPROVEMENTS,HOMEBASE LTD 127,20.54,DAY TO DAY MAINTENANCE,"BUILDING MATERIALS, LUMBER STORES",5211
18/07/2016,http://opendatacommunities.org/id/county-council/surrey,Surrey,http://id.esd.org.uk/service/1465,Council expenditure,29/03/2016,ADULT SKILLS,BOOKDEPOSITORY.COM,41.18,CURRIC BOOKS,BOOK STORES,5942
18/07/2016,http://opendatacommunities.org/id/county-council/surrey,Surrey,http://id.esd.org.uk/service/1465,Council expenditure,29/03/2016,LIBERTAS COMMUNITY HOME,SAINSBURYS 0652,10.9,PURCHASE OF FOOD (RAW MATERIALS),"GROCERY STORES, SUPERMARKETS",5411
18/07/2016,http://opendatacommunities.org/id/county-council/surrey,Surrey,http://id.esd.org.uk/service/1465,Council expenditure,29/03/2016,LIBERTAS COMMUNITY HOME,SAINSBURYS 0652,83.52,PURCHASE OF FOOD (RAW MATERIALS),"GROCERY STORES, SUPERMARKETS",5411
18/07/2016,http://opendatacommunities.org/id/county-council/surrey,Surrey,http://id.esd.org.uk/service/1465,Council expenditure,29/03/2016,LIBERTAS COMMUNITY HOME,SAINSBURYS 0652,6.75,EQUIPMENT,"GROCERY STORES, SUPERMARKETS",5411
18/07/2016,http://opendatacommunities.org/id/county-council/surrey,Surrey,http://id.esd.org.uk/service/1465,Council expenditure,29/03/2016,SOLD DAY TO DAY OPERATIONS,HAMPSHIREFL,70.8,EQUIPMENT,"FABRIC, NEEDLEWORK, PIECE GOODS, AND SEWING STORES",5949
18/07/2016,http://opendatacommunities.org/id/county-council/surrey,Surrey,http://id.esd.org.uk/service/1465,Council expenditure,29/03/2016,MALLOW CRESCENT,SJASUPLIES,40.48,EQUIPMENT,"ORGANIZATIONS, CHARITABLE AND SOCIAL SERVICES",8398
18/07/2016,http://opendatacommunities.org/id/county-council/surrey,Surrey,http://id.esd.org.uk/service/1465,Council expenditure,29/03/2016,CHEYNE WALK COMMUNITY HOME,TESCO STORES 2560,47.55,EQUIPMENT,"GROCERY STORES, SUPERMARKETS",5411
18/07/2016,http://opendatacommunities.org/id/county-council/surrey,Surrey,http://id.esd.org.uk/service/1465,Council expenditure,29/03/2016,APPLEWOOD,ASDA HOME SHOPPING,-3.61,PURCHASE OF FOOD (RAW MATERIALS),"GROCERY STORES, SUPERMARKETS",5411
18/07/2016,http://opendatacommunities.org/id/county-council/surrey,Surrey,http://id.esd.org.uk/service/1465,Council expenditure,29/03/2016,HOPE SERVICE - EAST,SAINSBURYS 0683,169.41,PURCHASE OF FOOD (RAW MATERIALS),"GROCERY STORES, SUPERMARKETS",5411
18/07/2016,http://opendatacommunities.org/id/county-council/surrey,Surrey,http://id.esd.org.uk/service/1465,Council expenditure,29/03/2016,MULBERRY YC,TESCO STORE 2812,8.03,PURCHASE OF FOOD (RAW MATERIALS),"GROCERY STORES, SUPERMARKETS",5411
18/07/2016,http://opendatacommunities.org/id/county-council/surrey,Surrey,http://id.esd.org.uk/service/1465,Council expenditure,29/03/2016,HOLLAND CLOSE RESIDENTIAL HOME,IKEA,216.45,FIXTURES AND FITTINGS,MISCELLANEOUS HOUSE FURNISHING SPECIALTY SHOPS,5719
18/07/2016,http://opendatacommunities.org/id/county-council/surrey,Surrey,http://id.esd.org.uk/service/1465,Council expenditure,29/03/2016,IMT PRODUCTION APPLICATIONS TEAM,RACKSPACE EMAIL & APPS,80.1,COMPUTER SERVICES,COMPUTER NETWORK/INFORMATION SERVICES,4816
18/07/2016,http://opendatacommunities.org/id/county-council/surrey,Surrey,http://id.esd.org.uk/service/1465,Council expenditure,29/03/2016,MALLOW CRESCENT,TESCO STORE 2590,66.42,PURCHASE OF FOOD (RAW MATERIALS),"GROCERY STORES, SUPERMARKETS",5411
18/07/2016,http://opendatacommunities.org/id/county-council/surrey,Surrey,http://id.esd.org.uk/service/1465,Council expenditure,29/03/2016,FAIRCROFT COMMUNITY HOME,TESCO STORE 2160,253.36,PURCHASE OF FOOD (RAW MATERIALS),"GROCERY STORES, SUPERMARKETS",5411
18/07/2016,http://opendatacommunities.org/id/county-council/surrey,Surrey,http://id.esd.org.uk/service/1465,Council expenditure,29/03/2016,NORTH EAST AREA TEAM,BATES WHARF PARTS,999.99,EQUIPMENT,BOAT DEALERS,5551
18/07/2016,http://opendatacommunities.org/id/county-council/surrey,Surrey,http://id.esd.org.uk/service/1465,Council expenditure,29/03/2016,HILLSIDE,SAINSBURYS PFS 0103,37.74,NON-STAFF RELATED TRANSPORT COSTS,SERVICE STATIONS WITH OR WITHOUT ANCILLARY SERVICE,5541
18/07/2016,http://opendatacommunities.org/id/county-council/surrey,Surrey,http://id.esd.org.uk/service/1465,Council expenditure,29/03/2016,YSS YOUTH CENTRE IMPROVEMENTS,B AND Q 1191,66.37,DAY TO DAY MAINTENANCE,"BUILDING MATERIALS, LUMBER STORES",5211
18/07/2016,http://opendatacommunities.org/id/county-council/surrey,Surrey,http://id.esd.org.uk/service/1465,Council expenditure,29/03/2016,TARGETED INTERVENTION,TESCO STORE 2047,118,EQUIPMENT,"GROCERY STORES, SUPERMARKETS",5411
18/07/2016,http://opendatacommunities.org/id/county-council/surrey,Surrey,http://id.esd.org.uk/service/1465,Council expenditure,29/03/2016,REIGATE AND BANSTEAD LOCALITY TEAM,AMAZON UK MARKETPLACE,61.49,BOOKS,BOOK STORES,5942
18/07/2016,http://opendatacommunities.org/id/county-council/surrey,Surrey,http://id.esd.org.uk/service/1465,Council expenditure,29/03/2016,NE EDUCATION WELFARE OFFICERS,WWW.NURTUREGROUPS.ORG,107.46,EQUIPMENT,"ORGANIZATIONS, CHARITABLE AND SOCIAL SERVICES",8398
18/07/2016,http://opendatacommunities.org/id/county-council/surrey,Surrey,http://id.esd.org.uk/service/1465,Council expenditure,29/03/2016,SUPERFAST BROADBAND ECONOMIC DEVELOPMENT,LAYERSHIFT,60,COMPUTER SERVICES,COMPUTER NETWORK/INFORMATION SERVICES,4816
18/07/2016,http://opendatacommunities.org/id/county-council/surrey,Surrey,http://id.esd.org.uk/service/1465,Council expenditure,29/03/2016,TARGETED INTERVENTION,POST OFFICE COUNTER,2.37,EDUC VISITS/HOLS/CAMPS/TOYS,POSTAL SERVICES-GOVERNMENT ONLY,9402
18/07/2016,http://opendatacommunities.org/id/county-council/surrey,Surrey,http://id.esd.org.uk/service/1465,Council expenditure,29/03/2016,PE/CDT MAINTENANCE OVERHEADS,STAPLES UK,86.45,EQUIPMENT,"OFFICE, SCHOOL SUPPLY, AND STATIONERY STORES",5943
18/07/2016,http://opendatacommunities.org/id/county-council/surrey,Surrey,http://id.esd.org.uk/service/1465,Council expenditure,29/03/2016,WOKING YC,ARGOS LTD,29.99,EQUIPMENT,DISCOUNT STORES,5310
18/07/2016,http://opendatacommunities.org/id/county-council/surrey,Surrey,http://id.esd.org.uk/service/1465,Council expenditure,29/03/2016,ENGLEFIELD GREEN YOUTH CENTRE,THE CONSORTIUM/WMS,202.66,EQUIPMENT,DIRECT MARKETING-CONTINUITY/SUBSCRIPTION MERCHANTS,5968
18/07/2016,http://opendatacommunities.org/id/county-council/surrey,Surrey,http://id.esd.org.uk/service/1465,Council expenditure,29/03/2016,WOKING YC,AMAZON UK MARKETPLACE,16.04,BOOKS,BOOK STORES,5942
18/07/2016,http://opendatacommunities.org/id/county-council/surrey,Surrey,http://id.esd.org.uk/service/1465,Council expenditure,29/03/2016,LEAP WOKING,GEORGE WEIL & SONS,16.95,EQUIPMENT,"ARTIST SUPPLY STORES, CRAFT SHOPS",5970
18/07/2016,http://opendatacommunities.org/id/county-council/surrey,Surrey,http://id.esd.org.uk/service/1465,Council expenditure,29/03/2016,OTHER NON CWD HOME COSTS,NOCHEX. UK MOBILE STOR,16.98,EQUIPMENT,TELECOMMUNICATION EQUIPMENT INCL TELEPHONE SALES,4812
18/07/2016,http://opendatacommunities.org/id/county-council/surrey,Surrey,http://id.esd.org.uk/service/1465,Council expenditure,29/03/2016,HOPE SERVICE - WEST,SAINSBURYS SACAT(4409),1,PURCHASE OF FOOD (RAW MATERIALS),"GROCERY STORES, SUPERMARKETS",5411
18/07/2016,http://opendatacommunities.org/id/county-council/surrey,Surrey,http://id.esd.org.uk/service/1465,Council expenditure,29/03/2016,CHEYNE WALK COMMUNITY HOME,AMAZON UK MARKETPLACE,4.99,EQUIPMENT,BOOK STORES,5942
18/07/2016,http://opendatacommunities.org/id/county-council/surrey,Surrey,http://id.esd.org.uk/service/1465,Council expenditure,29/03/2016,GODALMING YC,HALFORDS 0873,23,EQUIPMENT,BICYCLE SHOPS-SALES AND SERVICE,5940
18/07/2016,http://opendatacommunities.org/id/county-council/surrey,Surrey,http://id.esd.org.uk/service/1465,Council expenditure,29/03/2016,NEAST FOSTERING TEAM,ROYAL MAIL  0845606040,1.5,STATIONERY,POSTAL SERVICES-GOVERNMENT ONLY,9402
18/07/2016,http://opendatacommunities.org/id/county-council/surrey,Surrey,http://id.esd.org.uk/service/1465,Council expenditure,29/03/2016,BURBANK COMMUNITY HOME,CURRYS.DIGITAL,240.03,EQUIPMENT,ELECTRONIC SALES,5732
18/07/2016,http://opendatacommunities.org/id/county-council/surrey,Surrey,http://id.esd.org.uk/service/1465,Council expenditure,29/03/2016,CHEYNE WALK COMMUNITY HOME,AMAZON UK MARKETPLACE,2.98,EQUIPMENT,BOOK STORES,5942
18/07/2016,http://opendatacommunities.org/id/county-council/surrey,Surrey,http://id.esd.org.uk/service/1465,Council expenditure,29/03/2016,YSS YOUTH CENTRE IMPROVEMENTS,SAINSBURYS 0686,94.3,EQUIPMENT,"GROCERY STORES, SUPERMARKETS",5411
18/07/2016,http://opendatacommunities.org/id/county-council/surrey,Surrey,http://id.esd.org.uk/service/1465,Council expenditure,29/03/2016,STANWELL YOUTH CLUB,SAINSBURYS SACAT (4117,2.1,REFRESHMENT COSTS,"GROCERY STORES, SUPERMARKETS",5411
18/07/2016,http://opendatacommunities.org/id/county-council/surrey,Surrey,http://id.esd.org.uk/service/1465,Council expenditure,29/03/2016,COUNTY HALL,WWW.THEFPA.CO.UK,25.5,BOOKS,MISCELLANEOUS PUBLISHING AND PRINTING,2741
18/07/2016,http://opendatacommunities.org/id/county-council/surrey,Surrey,http://id.esd.org.uk/service/1465,Council expenditure,29/03/2016,SURREY ARTS OPEN STUDIOS,KREMER SIGNS,687.84,EQUIPMENT,MISCELLANEOUS PUBLISHING AND PRINTING,2741
18/07/2016,http://opendatacommunities.org/id/county-council/surrey,Surrey,http://id.esd.org.uk/service/1465,Council expenditure,29/03/2016,FARNHAM YC,AMAZON UK MARKETPLACE,15.95,EQUIPMENT,BOOK STORES,5942
18/07/2016,http://opendatacommunities.org/id/county-council/surrey,Surrey,http://id.esd.org.uk/service/1465,Council expenditure,29/03/2016,SE CARE - CP & COURT LAC,ARGOS RETAIL GROUP,129.94,CHILDREN ACT SEC 17 PAYMENTS,DISCOUNT STORES,5310
18/07/2016,http://opendatacommunities.org/id/county-council/surrey,Surrey,http://id.esd.org.uk/service/1465,Council expenditure,29/03/2016,SW CARE - LAC,WWW.BHCC-INTERNET,11,FEES,GOVERNMENT SERVICES-NOT ELSEWHERE CLASSIFIED,9399
18/07/2016,http://opendatacommunities.org/id/county-council/surrey,Surrey,http://id.esd.org.uk/service/1465,Council expenditure,29/03/2016,COMMUNICATIONS TEAM,ITUNES.COM/BILL,4.99,SUBSCRIPTIONS,RECORD SHOPS,5735
18/07/2016,http://opendatacommunities.org/id/county-council/surrey,Surrey,http://id.esd.org.uk/service/1465,Council expenditure,30/03/2016,DIRECT COSTS CONCESSIONARY FARES,SURREY CC CARD PAY,-25,NON-STAFF RELATED TRANSPORT COSTS,COMPUTER NETWORK/INFORMATION SERVICES,4816
18/07/2016,http://opendatacommunities.org/id/county-council/surrey,Surrey,http://id.esd.org.uk/service/1465,Council expenditure,30/03/2016,WORKPLACE COMMERCIAL TEAM,ASSOCIATION OF FILM CO,783.43,PUBLICITY,COMPUTER SOFTWARE STORES,5734
18/07/2016,http://opendatacommunities.org/id/county-council/surrey,Surrey,http://id.esd.org.uk/service/1465,Council expenditure,30/03/2016,BURBANK COMMUNITY HOME,T.K MAXX,24.02,EQUIPMENT,VARIETY STORES,5331
18/07/2016,http://opendatacommunities.org/id/county-council/surrey,Surrey,http://id.esd.org.uk/service/1465,Council expenditure,30/03/2016,FRIENDS & FAMILY CARE,ARGOS RETAIL GROUP,185.43,FURNITURE,DISCOUNT STORES,5310
18/07/2016,http://opendatacommunities.org/id/county-council/surrey,Surrey,http://id.esd.org.uk/service/1465,Council expenditure,30/03/2016,OTHER NON CWD HOME COSTS,VICTORIAPLUMB.COM,827,EQUIPMENT,MISCELLANEOUS AND SPECIALTY RETAIL STORES,5999
18/07/2016,http://opendatacommunities.org/id/county-council/surrey,Surrey,http://id.esd.org.uk/service/1465,Council expenditure,30/03/2016,HOPE SERVICE - EAST,BIRDWORLD,93.7,EDUC VISITS/HOLS/CAMPS/TOYS,LAWN AND GARDEN SUPPLY STORES,5261
18/07/2016,http://opendatacommunities.org/id/county-council/surrey,Surrey,http://id.esd.org.uk/service/1465,Council expenditure,30/03/2016,CHEYNE WALK COMMUNITY HOME,AMAZON UK MARKETPLACE,52.98,FURNITURE,BOOK STORES,5942
18/07/2016,http://opendatacommunities.org/id/county-council/surrey,Surrey,http://id.esd.org.uk/service/1465,Council expenditure,30/03/2016,OTHER NON CWD HOME COSTS,VICTORIAPLUMB.COM,945,EQUIPMENT,MISCELLANEOUS AND SPECIALTY RETAIL STORES,5999
18/07/2016,http://opendatacommunities.org/id/county-council/surrey,Surrey,http://id.esd.org.uk/service/1465,Council expenditure,30/03/2016,TRAINING COMMUNICATIONS,AMAZON EU,24.29,TRAINING EXPENSES EXTERNAL GENERAL,DIRECT MARKETING-OTHER DIRECT MARKETERS/NOT ELSEW.,5969
18/07/2016,http://opendatacommunities.org/id/county-council/surrey,Surrey,http://id.esd.org.uk/service/1465,Council expenditure,30/03/2016,MALLOW CRESCENT,AMAZON UK MARKETPLACE,51.68,PUBLICITY,BOOK STORES,5942
18/07/2016,http://opendatacommunities.org/id/county-council/surrey,Surrey,http://id.esd.org.uk/service/1465,Council expenditure,30/03/2016,TS SERVICE MANAGEMENT,D H C LTD,608.34,EQUIPMENT,MISCELLANEOUS AND SPECIALTY RETAIL STORES,5999
18/07/2016,http://opendatacommunities.org/id/county-council/surrey,Surrey,http://id.esd.org.uk/service/1465,Council expenditure,30/03/2016,TS SERVICE MANAGEMENT,D H C LTD,18.25,EQUIPMENT,MISCELLANEOUS AND SPECIALTY RETAIL STORES,5999
18/07/2016,http://opendatacommunities.org/id/county-council/surrey,Surrey,http://id.esd.org.uk/service/1465,Council expenditure,30/03/2016,OTHER NON CWD HOME COSTS,VICTORIAPLUMB.COM,896,EQUIPMENT,MISCELLANEOUS AND SPECIALTY RETAIL STORES,5999
18/07/2016,http://opendatacommunities.org/id/county-council/surrey,Surrey,http://id.esd.org.uk/service/1465,Council expenditure,30/03/2016,EXTENDED HOURS SREVICE,ASDA HOME SHOPPING,52.52,EDUC VISITS/HOLS/CAMPS/TOYS,"GROCERY STORES, SUPERMARKETS",5411
18/07/2016,http://opendatacommunities.org/id/county-council/surrey,Surrey,http://id.esd.org.uk/service/1465,Council expenditure,30/03/2016,EGHAM YC,WWW.AIRHOPTRAMPELINEOA,100,EDUC VISITS/HOLS/CAMPS/TOYS,RECREATIONAL AND SPORTING CAMPS,7032
18/07/2016,http://opendatacommunities.org/id/county-council/surrey,Surrey,http://id.esd.org.uk/service/1465,Council expenditure,30/03/2016,DIRECT COSTS CONCESSIONARY FARES,SURREY CC CARD PAY,25,NON-STAFF RELATED TRANSPORT COSTS,COMPUTER NETWORK/INFORMATION SERVICES,4816
18/07/2016,http://opendatacommunities.org/id/county-council/surrey,Surrey,http://id.esd.org.uk/service/1465,Council expenditure,30/03/2016,SUNBURY YC,ASDA  STORES,6.5,PURCHASE OF FOOD (RAW MATERIALS),"GROCERY STORES, SUPERMARKETS",5411
18/07/2016,http://opendatacommunities.org/id/county-council/surrey,Surrey,http://id.esd.org.uk/service/1465,Council expenditure,30/03/2016,CS BUSINESS SUPPORT WEST,WP-HANDS FREE COMP,156,EQUIPMENT,"COMPUTERS, COMPUTER PERIPHERAL EQUIPMENT, SOFTWARE",5045
18/07/2016,http://opendatacommunities.org/id/county-council/surrey,Surrey,http://id.esd.org.uk/service/1465,Council expenditure,30/03/2016,HOPE SERVICE - WEST,AMAZON UK MARKETPLACE,13.4,CURRICULUM CONSUMABLES,BOOK STORES,5942
18/07/2016,http://opendatacommunities.org/id/county-council/surrey,Surrey,http://id.esd.org.uk/service/1465,Council expenditure,30/03/2016,HERITAGE ENTERPRISE (SCAU),AMAZON UK MARKETPLACE,13.95,EQUIPMENT,BOOK STORES,5942
18/07/2016,http://opendatacommunities.org/id/county-council/surrey,Surrey,http://id.esd.org.uk/service/1465,Council expenditure,30/03/2016,HILLSIDE,SAINSBURYS SACAT 0675,9,PURCHASE OF FOOD (RAW MATERIALS),"GROCERY STORES, SUPERMARKETS",5411
18/07/2016,http://opendatacommunities.org/id/county-council/surrey,Surrey,http://id.esd.org.uk/service/1465,Council expenditure,30/03/2016,HILLSIDE,SAINSBURYS SACAT 0675,55.74,PURCHASE OF FOOD (RAW MATERIALS),"GROCERY STORES, SUPERMARKETS",5411
18/07/2016,http://opendatacommunities.org/id/county-council/surrey,Surrey,http://id.esd.org.uk/service/1465,Council expenditure,30/03/2016,EGHAM YC,AMAZON EU,1.95,CURRICULUM CONSUMABLES,DIRECT MARKETING-OTHER DIRECT MARKETERS/NOT ELSEW.,5969
18/07/2016,http://opendatacommunities.org/id/county-council/surrey,Surrey,http://id.esd.org.uk/service/1465,Council expenditure,30/03/2016,EXTENDED HOPE,WWW.DRUGS-CABINETS.CO.,295.39,FURNITURE,"ARCHITECTURAL, ENGINEERING, AND SURVEYING SERVICES",8911
18/07/2016,http://opendatacommunities.org/id/county-council/surrey,Surrey,http://id.esd.org.uk/service/1465,Council expenditure,30/03/2016,ADDLESTONE YC,TESCO STORES 2017,17.05,CURRICULUM CONSUMABLES,"GROCERY STORES, SUPERMARKETS",5411
18/07/2016,http://opendatacommunities.org/id/county-council/surrey,Surrey,http://id.esd.org.uk/service/1465,Council expenditure,30/03/2016,FARNHAM YC,AMAZON UK MARKETPLACE,11.11,EQUIPMENT,BOOK STORES,5942
18/07/2016,http://opendatacommunities.org/id/county-council/surrey,Surrey,http://id.esd.org.uk/service/1465,Council expenditure,30/03/2016,LIBERTAS COMMUNITY HOME,SAINSBURYS 0652,20.05,"CLOTHING, UNIFORM AND LAUNDRY","GROCERY STORES, SUPERMARKETS",5411
18/07/2016,http://opendatacommunities.org/id/county-council/surrey,Surrey,http://id.esd.org.uk/service/1465,Council expenditure,30/03/2016,LEAP SURREY HEATH,AMAZON UK MARKETPLACE,119.76,EDUC VISITS/HOLS/CAMPS/TOYS,BOOK STORES,5942
18/07/2016,http://opendatacommunities.org/id/county-council/surrey,Surrey,http://id.esd.org.uk/service/1465,Council expenditure,30/03/2016,CHEYNE WALK COMMUNITY HOME,VICTORIAPLUMB.COM,924.79,EQUIPMENT,MISCELLANEOUS AND SPECIALTY RETAIL STORES,5999
18/07/2016,http://opendatacommunities.org/id/county-council/surrey,Surrey,http://id.esd.org.uk/service/1465,Council expenditure,30/03/2016,SW SECTION 17 CARE,TRAVELODGE,499.65,CHILDREN ACT SEC 17 PAYMENTS,TRAVELODGE,3615
18/07/2016,http://opendatacommunities.org/id/county-council/surrey,Surrey,http://id.esd.org.uk/service/1465,Council expenditure,30/03/2016,FAIRCROFT COMMUNITY HOME,TOP GOLF,41.47,EDUC VISITS/HOLS/CAMPS/TOYS,"CLUBS-CNTRY,MBRSHIP(ATHLET,REC,SPRTS,PRIVATE GOLF",7997
18/07/2016,http://opendatacommunities.org/id/county-council/surrey,Surrey,http://id.esd.org.uk/service/1465,Council expenditure,30/03/2016,COMMUNICATIONS TEAM,ITUNES.COM/BILL,9.99,SUBSCRIPTIONS,RECORD SHOPS,5735
18/07/2016,http://opendatacommunities.org/id/county-council/surrey,Surrey,http://id.esd.org.uk/service/1465,Council expenditure,30/03/2016,HOPE SERVICE - WEST,AMAZON UK MARKETPLACE,12.6,CURRICULUM CONSUMABLES,BOOK STORES,5942
18/07/2016,http://opendatacommunities.org/id/county-council/surrey,Surrey,http://id.esd.org.uk/service/1465,Council expenditure,30/03/2016,ADDLESTONE YC,AMAZON UK MARKETPLACE,5.6,CURRICULUM CONSUMABLES,BOOK STORES,5942
18/07/2016,http://opendatacommunities.org/id/county-council/surrey,Surrey,http://id.esd.org.uk/service/1465,Council expenditure,30/03/2016,IMT CRITICAL ENVIRONMENTS,TALKTALK BUSINESS,"2,206.52",TELECOMMUNICATION CHARGES,TELECOM INCL PREPAID/RECURRING PHONE SVCS,4814
18/07/2016,http://opendatacommunities.org/id/county-council/surrey,Surrey,http://id.esd.org.uk/service/1465,Council expenditure,30/03/2016,SERVICE DELIVERY RESOURCES,BADGER BENCHES LTD,978,EQUIPMENT,"FLORIST SUPPLIES,NURSERY STOCK & FLOWERS",5193
18/07/2016,http://opendatacommunities.org/id/county-council/surrey,Surrey,http://id.esd.org.uk/service/1465,Council expenditure,30/03/2016,NW CARE - NON-LAC CP & COURT,WWW.WANDSWORTH.GOV.UK,11,FEES,GOVERNMENT SERVICES-NOT ELSEWHERE CLASSIFIED,9399
18/07/2016,http://opendatacommunities.org/id/county-council/surrey,Surrey,http://id.esd.org.uk/service/1465,Council expenditure,30/03/2016,BURBANK COMMUNITY HOME,ARGOS LTD,43.97,EQUIPMENT,DISCOUNT STORES,5310
18/07/2016,http://opendatacommunities.org/id/county-council/surrey,Surrey,http://id.esd.org.uk/service/1465,Council expenditure,30/03/2016,SW CARE - LAC,SURREY CC CARD PAY,11,FEES,COMPUTER NETWORK/INFORMATION SERVICES,4816
18/07/2016,http://opendatacommunities.org/id/county-council/surrey,Surrey,http://id.esd.org.uk/service/1465,Council expenditure,30/03/2016,TRADING STANDARDS SOUTH EAST LTD,ARGOS RETAIL GROUP,178.94,FURNITURE,DISCOUNT STORES,5310
18/07/2016,http://opendatacommunities.org/id/county-council/surrey,Surrey,http://id.esd.org.uk/service/1465,Council expenditure,30/03/2016,LEAP SURREY HEATH,THE CONSORTIUM/WMS,83.26,EDUC VISITS/HOLS/CAMPS/TOYS,DIRECT MARKETING-CONTINUITY/SUBSCRIPTION MERCHANTS,5968
18/07/2016,http://opendatacommunities.org/id/county-council/surrey,Surrey,http://id.esd.org.uk/service/1465,Council expenditure,30/03/2016,MULBERRY YC,DECATHLON UK LTD,"4,643.76",EQUIPMENT,SPORTING GOODS STORES,5941
18/07/2016,http://opendatacommunities.org/id/county-council/surrey,Surrey,http://id.esd.org.uk/service/1465,Council expenditure,30/03/2016,CHEYNE WALK COMMUNITY HOME,SAINSBURYS TO YOU 0026,151.2,PURCHASE OF FOOD (RAW MATERIALS),"GROCERY STORES, SUPERMARKETS",5411
18/07/2016,http://opendatacommunities.org/id/county-council/surrey,Surrey,http://id.esd.org.uk/service/1465,Council expenditure,30/03/2016,COUNTY HALL,AMAZON EU,20.07,DAY TO DAY MAINTENANCE,DIRECT MARKETING-OTHER DIRECT MARKETERS/NOT ELSEW.,5969
18/07/2016,http://opendatacommunities.org/id/county-council/surrey,Surrey,http://id.esd.org.uk/service/1465,Council expenditure,30/03/2016,HOPE SERVICE - EAST,BIRDWORLD,15.95,EDUC VISITS/HOLS/CAMPS/TOYS,LAWN AND GARDEN SUPPLY STORES,5261
18/07/2016,http://opendatacommunities.org/id/county-council/surrey,Surrey,http://id.esd.org.uk/service/1465,Council expenditure,30/03/2016,LEAP SURREY HEATH,AMAZON UK MARKETPLACE,5.4,EDUC VISITS/HOLS/CAMPS/TOYS,BOOK STORES,5942
18/07/2016,http://opendatacommunities.org/id/county-council/surrey,Surrey,http://id.esd.org.uk/service/1465,Council expenditure,30/03/2016,CHEYNE WALK COMMUNITY HOME,VICTORIAPLUMB.COM,887.9,EQUIPMENT,MISCELLANEOUS AND SPECIALTY RETAIL STORES,5999
18/07/2016,http://opendatacommunities.org/id/county-council/surrey,Surrey,http://id.esd.org.uk/service/1465,Council expenditure,30/03/2016,HOPE SERVICE - WEST,CURRYS S/S,13.99,CURRICULUM EQUIPMENT AND FURNITURE,ELECTRONIC SALES,5732
18/07/2016,http://opendatacommunities.org/id/county-council/surrey,Surrey,http://id.esd.org.uk/service/1465,Council expenditure,30/03/2016,COUNTY HALL,AMAZON UK MARKETPLACE,3.24,DAY TO DAY MAINTENANCE,BOOK STORES,5942
18/07/2016,http://opendatacommunities.org/id/county-council/surrey,Surrey,http://id.esd.org.uk/service/1465,Council expenditure,30/03/2016,SW CARE - LAC,FREEDOM LEISURE,15.2,CHILDREN ACT SEC 17 PAYMENTS,GOVERNMENT SERVICES-NOT ELSEWHERE CLASSIFIED,9399
18/07/2016,http://opendatacommunities.org/id/county-council/surrey,Surrey,http://id.esd.org.uk/service/1465,Council expenditure,30/03/2016,LEACROFT YC,POST OFFICE COUNTER,12.49,EQUIPMENT,POSTAL SERVICES-GOVERNMENT ONLY,9402
18/07/2016,http://opendatacommunities.org/id/county-council/surrey,Surrey,http://id.esd.org.uk/service/1465,Council expenditure,30/03/2016,INVESTIGATIONS & ENFORCEMENT TEAM       ,D H C LTD,"4,434.00",EQUIPMENT,MISCELLANEOUS AND SPECIALTY RETAIL STORES,5999
18/07/2016,http://opendatacommunities.org/id/county-council/surrey,Surrey,http://id.esd.org.uk/service/1465,Council expenditure,30/03/2016,INVESTIGATIONS & ENFORCEMENT TEAM       ,D H C LTD,133.02,EQUIPMENT,MISCELLANEOUS AND SPECIALTY RETAIL STORES,5999
18/07/2016,http://opendatacommunities.org/id/county-council/surrey,Surrey,http://id.esd.org.uk/service/1465,Council expenditure,30/03/2016,BURBANK COMMUNITY HOME,LOCKSHOPDIRECT,83.84,FIXTURES AND FITTINGS,"DETECTVE/PROTECTVE AGNCY,SECURITY SRVS, ARMOR CARS",7393
18/07/2016,http://opendatacommunities.org/id/county-council/surrey,Surrey,http://id.esd.org.uk/service/1465,Council expenditure,30/03/2016,EXTENDED HOPE,NEXT DIRECTORY,48.99,FURNITURE,FAMILY CLOTHING STORES,5651
18/07/2016,http://opendatacommunities.org/id/county-council/surrey,Surrey,http://id.esd.org.uk/service/1465,Council expenditure,30/03/2016,ADDLESTONE YC,AMAZON UK MARKETPLACE,1.92,CURRICULUM CONSUMABLES,BOOK STORES,5942
18/07/2016,http://opendatacommunities.org/id/county-council/surrey,Surrey,http://id.esd.org.uk/service/1465,Council expenditure,30/03/2016,TRANSPORT,AMAZON UK MARKETPLACE,18.42,COMPUTER HARDWARE,BOOK STORES,5942
18/07/2016,http://opendatacommunities.org/id/county-council/surrey,Surrey,http://id.esd.org.uk/service/1465,Council expenditure,30/03/2016,GOGMORE PARK FARM YC,SAINSBURYS SACAT 0004,3.45,REFRESHMENT COSTS,"GROCERY STORES, SUPERMARKETS",5411
18/07/2016,http://opendatacommunities.org/id/county-council/surrey,Surrey,http://id.esd.org.uk/service/1465,Council expenditure,30/03/2016,EXTENDED HOPE,WWW.EUREKADIRECT.CO.UK,44.4,EQUIPMENT,DENTAL/LAB/MED/OPHTHALMIC HOSP EQUIP & SUPPLIES,5047
18/07/2016,http://opendatacommunities.org/id/county-council/surrey,Surrey,http://id.esd.org.uk/service/1465,Council expenditure,30/03/2016,ENGLEFIELD GREEN YOUTH CENTRE,TESCO DIRECT,73.75,EQUIPMENT,MISCELLANEOUS AND SPECIALTY RETAIL STORES,5999
18/07/2016,http://opendatacommunities.org/id/county-council/surrey,Surrey,http://id.esd.org.uk/service/1465,Council expenditure,30/03/2016,FAIRCROFT COMMUNITY HOME,TESCO STORE 2160,68.6,CLEANING AND DOMESTIC SUPPLIES,"GROCERY STORES, SUPERMARKETS",5411
18/07/2016,http://opendatacommunities.org/id/county-council/surrey,Surrey,http://id.esd.org.uk/service/1465,Council expenditure,30/03/2016,HOPE SERVICE - WEST,PP 1017CODE,1,EDUC VISITS/HOLS/CAMPS/TOYS,PROFESSIONAL SERVICES-NOT ELSEWHERE CLASSIFIED,8999
18/07/2016,http://opendatacommunities.org/id/county-council/surrey,Surrey,http://id.esd.org.uk/service/1465,Council expenditure,30/03/2016,GUILDFORD YC,TELEPHONE SALE,196.1,EDUC VISITS/HOLS/CAMPS/TOYS,PASSENGER RAILWAYS,4112
18/07/2016,http://opendatacommunities.org/id/county-council/surrey,Surrey,http://id.esd.org.uk/service/1465,Council expenditure,30/03/2016,PROPERTY OPERATIONS TEAM,TESCO PFS 3783,20,PURCHASE OF BUILDING MATERIALS,SERVICE STATIONS WITH OR WITHOUT ANCILLARY SERVICE,5541
18/07/2016,http://opendatacommunities.org/id/county-council/surrey,Surrey,http://id.esd.org.uk/service/1465,Council expenditure,30/03/2016,ARUNDEL,TESCO STORES 5999,101.6,REFRESHMENT COSTS,"GROCERY STORES, SUPERMARKETS",5411
18/07/2016,http://opendatacommunities.org/id/county-council/surrey,Surrey,http://id.esd.org.uk/service/1465,Council expenditure,30/03/2016,ARUNDEL,TESCO STORES 5999,3.5,REFRESHMENT COSTS,"GROCERY STORES, SUPERMARKETS",5411
18/07/2016,http://opendatacommunities.org/id/county-council/surrey,Surrey,http://id.esd.org.uk/service/1465,Council expenditure,30/03/2016,SOLD DAY TO DAY OPERATIONS,AMAZON UK MARKETPLACE,3.79,EQUIPMENT,BOOK STORES,5942
18/07/2016,http://opendatacommunities.org/id/county-council/surrey,Surrey,http://id.esd.org.uk/service/1465,Council expenditure,30/03/2016,BURBANK COMMUNITY HOME,ROBERT DYAS HOLDNG LTD,39.98,EQUIPMENT,HARDWARE STORES,5251
18/07/2016,http://opendatacommunities.org/id/county-council/surrey,Surrey,http://id.esd.org.uk/service/1465,Council expenditure,30/03/2016,MALLOW CRESCENT,SAINSBURYS TO YOU 0686,11.5,PURCHASE OF FOOD (RAW MATERIALS),"GROCERY STORES, SUPERMARKETS",5411
18/07/2016,http://opendatacommunities.org/id/county-council/surrey,Surrey,http://id.esd.org.uk/service/1465,Council expenditure,30/03/2016,MALLOW CRESCENT,SAINSBURYS TO YOU 0686,114.08,PURCHASE OF FOOD (RAW MATERIALS),"GROCERY STORES, SUPERMARKETS",5411
18/07/2016,http://opendatacommunities.org/id/county-council/surrey,Surrey,http://id.esd.org.uk/service/1465,Council expenditure,30/03/2016,OCCUPATIONAL HEALTH,AMAZON UK MARKETPLACE,27.04,EQUIPMENT,BOOK STORES,5942
18/07/2016,http://opendatacommunities.org/id/county-council/surrey,Surrey,http://id.esd.org.uk/service/1465,Council expenditure,30/03/2016,HOLLAND CLOSE RESIDENTIAL HOME,DUNELM LTD,61.97,FIXTURES AND FITTINGS,"DRAPERY, UPOLSTERY, AND WINDOW COVERINGS STORES",5714
18/07/2016,http://opendatacommunities.org/id/county-council/surrey,Surrey,http://id.esd.org.uk/service/1465,Council expenditure,30/03/2016,EXTENDED HOURS SREVICE,ASDA HOME SHOPPING,-1.19,EDUC VISITS/HOLS/CAMPS/TOYS,"GROCERY STORES, SUPERMARKETS",5411
18/07/2016,http://opendatacommunities.org/id/county-council/surrey,Surrey,http://id.esd.org.uk/service/1465,Council expenditure,30/03/2016,KS4/RPA,AMAZON UK MARKETPLACE,40.54,EQUIPMENT,BOOK STORES,5942
18/07/2016,http://opendatacommunities.org/id/county-council/surrey,Surrey,http://id.esd.org.uk/service/1465,Council expenditure,30/03/2016,LEAP WOKING,GEORGE WEIL & SONS,16.5,EQUIPMENT,"ARTIST SUPPLY STORES, CRAFT SHOPS",5970
18/07/2016,http://opendatacommunities.org/id/county-council/surrey,Surrey,http://id.esd.org.uk/service/1465,Council expenditure,30/03/2016,HOPE SERVICE - WEST,SPORTSDIRECT 234,6,CURRICULUM CONSUMABLES,SPORTING GOODS STORES,5941
18/07/2016,http://opendatacommunities.org/id/county-council/surrey,Surrey,http://id.esd.org.uk/service/1465,Council expenditure,30/03/2016,IMM EMER CARE RESP,AMAZON UK MARKETPLACE,"1,008.99",OPERATIONAL FIRE EQUIPMENT,BOOK STORES,5942
18/07/2016,http://opendatacommunities.org/id/county-council/surrey,Surrey,http://id.esd.org.uk/service/1465,Council expenditure,30/03/2016,TRAINING-PROCUREMENT & CONTRACT MGMT,WWW.CIPS.ORG,127.5,TRAINING EXPENSES EXTERNAL GENERAL,"ORGANIZATIONS, MEMBERSHIP-NOT ELSEWHERE CLASSIFIED",8699
18/07/2016,http://opendatacommunities.org/id/county-council/surrey,Surrey,http://id.esd.org.uk/service/1465,Council expenditure,30/03/2016,BUSINESS AND COMPLIANCE TEAM            ,SCREWFIX DIRECT,24.99,"CLOTHING, UNIFORM AND LAUNDRY","BUILDING MATERIALS, LUMBER STORES",5211
18/07/2016,http://opendatacommunities.org/id/county-council/surrey,Surrey,http://id.esd.org.uk/service/1465,Council expenditure,30/03/2016,BUSINESS AND COMPLIANCE TEAM            ,SCREWFIX DIRECT,5,"CLOTHING, UNIFORM AND LAUNDRY","BUILDING MATERIALS, LUMBER STORES",5211
18/07/2016,http://opendatacommunities.org/id/county-council/surrey,Surrey,http://id.esd.org.uk/service/1465,Council expenditure,30/03/2016,CHEYNE WALK COMMUNITY HOME,CHESSINGTON WORLD,186,EDUC VISITS/HOLS/CAMPS/TOYS,"AMUSEMENT PARKS,CARNIVALS,CIRCUS,FORTUNE TELLERS",7996
18/07/2016,http://opendatacommunities.org/id/county-council/surrey,Surrey,http://id.esd.org.uk/service/1465,Council expenditure,30/03/2016,ADDLESTONE YC,AMAZON UK MARKETPLACE,6.13,CURRICULUM CONSUMABLES,BOOK STORES,5942
18/07/2016,http://opendatacommunities.org/id/county-council/surrey,Surrey,http://id.esd.org.uk/service/1465,Council expenditure,30/03/2016,NE CARE - CP & COURT LAC,SURREY CC CARD PAY,11,CHILDREN ACT SEC 17 PAYMENTS,COMPUTER NETWORK/INFORMATION SERVICES,4816
18/07/2016,http://opendatacommunities.org/id/county-council/surrey,Surrey,http://id.esd.org.uk/service/1465,Council expenditure,30/03/2016,BURBANK COMMUNITY HOME,SAINSBURYS TO YOU 0686,287.37,PURCHASE OF FOOD (RAW MATERIALS),"GROCERY STORES, SUPERMARKETS",5411
18/07/2016,http://opendatacommunities.org/id/county-council/surrey,Surrey,http://id.esd.org.uk/service/1465,Council expenditure,30/03/2016,SOLD DAY TO DAY OPERATIONS,AMAZON UK MARKETPLACE,9.95,EQUIPMENT,BOOK STORES,5942
18/07/2016,http://opendatacommunities.org/id/county-council/surrey,Surrey,http://id.esd.org.uk/service/1465,Council expenditure,31/03/2016,HOPE SERVICE - WEST,NANDOS WOKING,11.8,REFRESHMENT COSTS,"EATING PLACES, RESTAURANTS",5812
18/07/2016,http://opendatacommunities.org/id/county-council/surrey,Surrey,http://id.esd.org.uk/service/1465,Council expenditure,31/03/2016,NE EDUCATION PSYCHOLOGISTS,PEARSON ED LTD,-80.1,EQUIPMENT,SCHOOLS & EDUCATIONAL SVC-NOT ELSEWHERE CLASSIFIED,8299
18/07/2016,http://opendatacommunities.org/id/county-council/surrey,Surrey,http://id.esd.org.uk/service/1465,Council expenditure,31/03/2016,HOPE SERVICE - EAST,BP RUSHETT CONNECT,2.85,PURCHASE OF FOOD (RAW MATERIALS),SERVICE STATIONS WITH OR WITHOUT ANCILLARY SERVICE,5541
18/07/2016,http://opendatacommunities.org/id/county-council/surrey,Surrey,http://id.esd.org.uk/service/1465,Council expenditure,31/03/2016,POLICY AND PERFORMANCE TEAM,PREMIER INN,68.5,EXPENSES,PREMIER INN,3811
18/07/2016,http://opendatacommunities.org/id/county-council/surrey,Surrey,http://id.esd.org.uk/service/1465,Council expenditure,31/03/2016,PE/CDT MAINTENANCE OVERHEADS,BIL GROUP LTD,63,EQUIPMENT,HARDWARE EQUIPMENT AND SUPPLIES,5072
18/07/2016,http://opendatacommunities.org/id/county-council/surrey,Surrey,http://id.esd.org.uk/service/1465,Council expenditure,31/03/2016,SPLASH PROJECT,AMAZON UK MARKETPLACE,52.82,EDUC VISITS/HOLS/CAMPS/TOYS,BOOK STORES,5942
18/07/2016,http://opendatacommunities.org/id/county-council/surrey,Surrey,http://id.esd.org.uk/service/1465,Council expenditure,31/03/2016,TRAINING COMMUNICATIONS,D & A D,222,TRAINING EXPENSES EXTERNAL GENERAL,"ORGANIZATIONS, CHARITABLE AND SOCIAL SERVICES",8398
18/07/2016,http://opendatacommunities.org/id/county-council/surrey,Surrey,http://id.esd.org.uk/service/1465,Council expenditure,31/03/2016,TRANSPORT,AMAZON UK MARKETPLACE,55.93,VEHICLE REPAIRS AND MAINTENANCE,MISCELLANEOUS AND SPECIALTY RETAIL STORES,5999
18/07/2016,http://opendatacommunities.org/id/county-council/surrey,Surrey,http://id.esd.org.uk/service/1465,Council expenditure,31/03/2016,PE/CDT MAINTENANCE OVERHEADS,HARROD UK SPORT,72.58,ITEMS PURCHASED FOR RE-SALE,"SPORTS APPAREL, RIDING APPAREL STORES",5655
18/07/2016,http://opendatacommunities.org/id/county-council/surrey,Surrey,http://id.esd.org.uk/service/1465,Council expenditure,31/03/2016,SPLASH PROJECT,AMAZON UK MARKETPLACE,78.93,EDUC VISITS/HOLS/CAMPS/TOYS,BOOK STORES,5942
18/07/2016,http://opendatacommunities.org/id/county-council/surrey,Surrey,http://id.esd.org.uk/service/1465,Council expenditure,31/03/2016,BUSINESS AND COMPLIANCE TEAM            ,WWW.ARCO.CO.UK,94.49,EQUIPMENT,INDUSTRIAL SUPPLIES NOT ELSEWHERE CLASSIFIED,5085
18/07/2016,http://opendatacommunities.org/id/county-council/surrey,Surrey,http://id.esd.org.uk/service/1465,Council expenditure,31/03/2016,DOWNLANDS COUNTRYSIDE PROJECT,F R JONES & SON,71.39,EQUIPMENT,LAWN AND GARDEN SUPPLY STORES,5261
18/07/2016,http://opendatacommunities.org/id/county-council/surrey,Surrey,http://id.esd.org.uk/service/1465,Council expenditure,31/03/2016,CENTRAL COMMS - EARLY YEARS             ,FACEBOOK KJ23C96GS2,100,PUBLICITY,ADVERTISING SERVICES,7311
18/07/2016,http://opendatacommunities.org/id/county-council/surrey,Surrey,http://id.esd.org.uk/service/1465,Council expenditure,31/03/2016,ACL CENTRAL EXPENDITURE,FACEBOOK N3DXL8SCB2,70.66,PUBLICITY,ADVERTISING SERVICES,7311
18/07/2016,http://opendatacommunities.org/id/county-council/surrey,Surrey,http://id.esd.org.uk/service/1465,Council expenditure,31/03/2016,KARIBU COMMUNITY HOME,MILLETS,90,"CLOTHING, UNIFORM AND LAUNDRY",SPORTING GOODS STORES,5941
18/07/2016,http://opendatacommunities.org/id/county-council/surrey,Surrey,http://id.esd.org.uk/service/1465,Council expenditure,31/03/2016,BURBANK COMMUNITY HOME,THORPE PARK,236.93,EDUC VISITS/HOLS/CAMPS/TOYS,TOURIST ATTRACTIONS AND EXHIBITS,7991
18/07/2016,http://opendatacommunities.org/id/county-council/surrey,Surrey,http://id.esd.org.uk/service/1465,Council expenditure,31/03/2016,ADDLESTONE YC,AMAZON UK MARKETPLACE,1.58,EQUIPMENT,BOOK STORES,5942
18/07/2016,http://opendatacommunities.org/id/county-council/surrey,Surrey,http://id.esd.org.uk/service/1465,Council expenditure,31/03/2016,ADDLESTONE YC,AMAZON UK MARKETPLACE,4.7,CURRICULUM CONSUMABLES,BOOK STORES,5942
18/07/2016,http://opendatacommunities.org/id/county-council/surrey,Surrey,http://id.esd.org.uk/service/1465,Council expenditure,31/03/2016,SOLD DAY TO DAY OPERATIONS,AMAZON UK MARKETPLACE,39.95,EQUIPMENT,BOOK STORES,5942
18/07/2016,http://opendatacommunities.org/id/county-council/surrey,Surrey,http://id.esd.org.uk/service/1465,Council expenditure,31/03/2016,SPLASH PROJECT,AMAZON EU,55.24,EDUC VISITS/HOLS/CAMPS/TOYS,DIRECT MARKETING-OTHER DIRECT MARKETERS/NOT ELSEW.,5969
18/07/2016,http://opendatacommunities.org/id/county-council/surrey,Surrey,http://id.esd.org.uk/service/1465,Council expenditure,31/03/2016,TS SERVICE MANAGEMENT,TRADING STANDARDS INST,"3,789.80",SUBSCRIPTIONS,DIRECT MARKETING-COMBINATION CATALOG/RETAIL MERCH.,5965
18/07/2016,http://opendatacommunities.org/id/county-council/surrey,Surrey,http://id.esd.org.uk/service/1465,Council expenditure,31/03/2016,TRANSPORT,AMAZON UK MARKETPLACE,58,COMPUTER CONSUMABLES,BOOK STORES,5942
18/07/2016,http://opendatacommunities.org/id/county-council/surrey,Surrey,http://id.esd.org.uk/service/1465,Council expenditure,31/03/2016,TRAINING COMMUNICATIONS,AMAZON EU,64.83,TRAINING EXPENSES EXTERNAL GENERAL,DIRECT MARKETING-OTHER DIRECT MARKETERS/NOT ELSEW.,5969
18/07/2016,http://opendatacommunities.org/id/county-council/surrey,Surrey,http://id.esd.org.uk/service/1465,Council expenditure,31/03/2016,BURBANK COMMUNITY HOME,ODEON,10,3RD PARTY PAYMENTS PRIVATE INDIV,MOTION PICTURE THEATERS,7832
18/07/2016,http://opendatacommunities.org/id/county-council/surrey,Surrey,http://id.esd.org.uk/service/1465,Council expenditure,31/03/2016,ARUNDEL,M & S CARPETS & FL,142.5,EQUIPMENT,FLOOR COVERING STORES,5713
18/07/2016,http://opendatacommunities.org/id/county-council/surrey,Surrey,http://id.esd.org.uk/service/1465,Council expenditure,31/03/2016,GODALMING YC,WP-THE VIRTUAL COL,18,TRAINING EXPENSES EXTERNAL GENERAL,SCHOOLS & EDUCATIONAL SVC-NOT ELSEWHERE CLASSIFIED,8299
18/07/2016,http://opendatacommunities.org/id/county-council/surrey,Surrey,http://id.esd.org.uk/service/1465,Council expenditure,31/03/2016,GODALMING YC,THE RANGE,83.96,EQUIPMENT,DEPARTMENT STORES,5311
18/07/2016,http://opendatacommunities.org/id/county-council/surrey,Surrey,http://id.esd.org.uk/service/1465,Council expenditure,31/03/2016,READY FOR WORK YSS,VUE NCS CITB HS&E TEST,19.5,EQUIPMENT,SCHOOLS & EDUCATIONAL SVC-NOT ELSEWHERE CLASSIFIED,8299
18/07/2016,http://opendatacommunities.org/id/county-council/surrey,Surrey,http://id.esd.org.uk/service/1465,Council expenditure,31/03/2016,NW CARE - LAC,WWW.TENPIN.CO.UK,47.45,EDUC VISITS/HOLS/CAMPS/TOYS,"CLUBS-CNTRY,MBRSHIP(ATHLET,REC,SPRTS,PRIVATE GOLF",7997
18/07/2016,http://opendatacommunities.org/id/county-council/surrey,Surrey,http://id.esd.org.uk/service/1465,Council expenditure,31/03/2016,ADDLESTONE YC,AMAZON EU,44.04,EQUIPMENT,DIRECT MARKETING-OTHER DIRECT MARKETERS/NOT ELSEW.,5969
18/07/2016,http://opendatacommunities.org/id/county-council/surrey,Surrey,http://id.esd.org.uk/service/1465,Council expenditure,31/03/2016,SPLASH PROJECT,AMAZON UK MARKETPLACE,91.02,EDUC VISITS/HOLS/CAMPS/TOYS,BOOK STORES,5942
18/07/2016,http://opendatacommunities.org/id/county-council/surrey,Surrey,http://id.esd.org.uk/service/1465,Council expenditure,31/03/2016,CHEYNE WALK COMMUNITY HOME,TESCO STORES 2560,21.4,PURCHASE OF FOOD (RAW MATERIALS),"GROCERY STORES, SUPERMARKETS",5411
18/07/2016,http://opendatacommunities.org/id/county-council/surrey,Surrey,http://id.esd.org.uk/service/1465,Council expenditure,31/03/2016,THE BRIDGE YC,TESCO STORES 2812,16.3,PURCHASE OF FOOD (RAW MATERIALS),"GROCERY STORES, SUPERMARKETS",5411
18/07/2016,http://opendatacommunities.org/id/county-council/surrey,Surrey,http://id.esd.org.uk/service/1465,Council expenditure,31/03/2016,GODALMING YC,HOBBYCRAFT GROUP L,124.4,EQUIPMENT,"ARTIST SUPPLY STORES, CRAFT SHOPS",5970
18/07/2016,http://opendatacommunities.org/id/county-council/surrey,Surrey,http://id.esd.org.uk/service/1465,Council expenditure,31/03/2016,ACL CENTRAL EXPENDITURE,HELLOPRINT,58.68,PUBLICITY,"QUICK COPY,REPRODUCTION AND BLUEPRINTING SERVICES",7338
18/07/2016,http://opendatacommunities.org/id/county-council/surrey,Surrey,http://id.esd.org.uk/service/1465,Council expenditure,31/03/2016,CEO - PRIORITIES                        ,FACEBOOK 3NKSG9S9K2,600.05,PUBLICITY,ADVERTISING SERVICES,7311
18/07/2016,http://opendatacommunities.org/id/county-council/surrey,Surrey,http://id.esd.org.uk/service/1465,Council expenditure,31/03/2016,BURBANK COMMUNITY HOME,AMAZON UK MARKETPLACE,44.98,FURNITURE,BOOK STORES,5942
18/07/2016,http://opendatacommunities.org/id/county-council/surrey,Surrey,http://id.esd.org.uk/service/1465,Council expenditure,31/03/2016,BOOKS - ADULT NON-FICTION               ,AMAZON UK MARKETPLACE,22.78,LIBRARY RESOURCES,BOOK STORES,5942
18/07/2016,http://opendatacommunities.org/id/county-council/surrey,Surrey,http://id.esd.org.uk/service/1465,Council expenditure,31/03/2016,SPLASH PROJECT,AMAZON UK MARKETPLACE,17.99,EDUC VISITS/HOLS/CAMPS/TOYS,BOOK STORES,5942
18/07/2016,http://opendatacommunities.org/id/county-council/surrey,Surrey,http://id.esd.org.uk/service/1465,Council expenditure,31/03/2016,TRAINING CHILDREN'S,BRIAR ROSE,85,SUBSISTENCE AND CONFERENCE EXPENSES,"LODGING-HOTELS,MOTELS,RESORTS-NOT CLASSIFIED",7011
18/07/2016,http://opendatacommunities.org/id/county-council/surrey,Surrey,http://id.esd.org.uk/service/1465,Council expenditure,31/03/2016,TRANSPORT,INTRAMARK LIMITED,"1,134.00","CLOTHING, UNIFORM AND LAUNDRY",ACCESSORY AND APPAREL STORES-MISCELLANEOUS,5699
18/07/2016,http://opendatacommunities.org/id/county-council/surrey,Surrey,http://id.esd.org.uk/service/1465,Council expenditure,31/03/2016,SPLASH PROJECT,AMAZON UK MARKETPLACE,23.16,EDUC VISITS/HOLS/CAMPS/TOYS,BOOK STORES,5942
18/07/2016,http://opendatacommunities.org/id/county-council/surrey,Surrey,http://id.esd.org.uk/service/1465,Council expenditure,31/03/2016,CS BUSINESS SUPPORT WEST,AMAZON EU,22,STATIONERY,DIRECT MARKETING-OTHER DIRECT MARKETERS/NOT ELSEW.,5969
18/07/2016,http://opendatacommunities.org/id/county-council/surrey,Surrey,http://id.esd.org.uk/service/1465,Council expenditure,31/03/2016,KARIBU COMMUNITY HOME,SAINSBURYS 0683,159.05,EQUIPMENT,"GROCERY STORES, SUPERMARKETS",5411
18/07/2016,http://opendatacommunities.org/id/county-council/surrey,Surrey,http://id.esd.org.uk/service/1465,Council expenditure,31/03/2016,CAMHS SOCIAL WORKERS,WWW.LIFESTYLEBENEFITS.,934.03,EQUIPMENT,BUSINESS SERVICES-NOT ELSEWHERE CLASSIFIED,7399
18/07/2016,http://opendatacommunities.org/id/county-council/surrey,Surrey,http://id.esd.org.uk/service/1465,Council expenditure,31/03/2016,PE/CDT MAINTENANCE OVERHEADS,STAPLES UK,12.07,STATIONERY,"OFFICE, SCHOOL SUPPLY, AND STATIONERY STORES",5943
18/07/2016,http://opendatacommunities.org/id/county-council/surrey,Surrey,http://id.esd.org.uk/service/1465,Council expenditure,31/03/2016,BURBANK COMMUNITY HOME,ARGOS LTD,29.99,EQUIPMENT,DISCOUNT STORES,5310
18/07/2016,http://opendatacommunities.org/id/county-council/surrey,Surrey,http://id.esd.org.uk/service/1465,Council expenditure,31/03/2016,ARUNDEL,TESCO STORES 5999,84.21,REFRESHMENT COSTS,"GROCERY STORES, SUPERMARKETS",5411
18/07/2016,http://opendatacommunities.org/id/county-council/surrey,Surrey,http://id.esd.org.uk/service/1465,Council expenditure,31/03/2016,TS SERVICE MANAGEMENT,TRADING STANDARDS INST,"5,000.00",SUBSCRIPTIONS,DIRECT MARKETING-COMBINATION CATALOG/RETAIL MERCH.,5965
18/07/2016,http://opendatacommunities.org/id/county-council/surrey,Surrey,http://id.esd.org.uk/service/1465,Council expenditure,31/03/2016,SPLASH PROJECT,AMAZON UK MARKETPLACE,52.81,EDUC VISITS/HOLS/CAMPS/TOYS,BOOK STORES,5942
18/07/2016,http://opendatacommunities.org/id/county-council/surrey,Surrey,http://id.esd.org.uk/service/1465,Council expenditure,31/03/2016,BURBANK COMMUNITY HOME,HOBBYCRAFT,42,EDUC VISITS/HOLS/CAMPS/TOYS,"ARTIST SUPPLY STORES, CRAFT SHOPS",5970
18/07/2016,http://opendatacommunities.org/id/county-council/surrey,Surrey,http://id.esd.org.uk/service/1465,Council expenditure,31/03/2016,ASST DIRECTOR - FINANCE,WWW.DILYSJONES.CO.UK,454.8,TRAINING EXPENSES EXTERNAL GENERAL,PROFESSIONAL SERVICES-NOT ELSEWHERE CLASSIFIED,8999
18/07/2016,http://opendatacommunities.org/id/county-council/surrey,Surrey,http://id.esd.org.uk/service/1465,Council expenditure,31/03/2016,ADDLESTONE YC,AMAZON EU,4.5,CURRICULUM CONSUMABLES,DIRECT MARKETING-OTHER DIRECT MARKETERS/NOT ELSEW.,5969
18/07/2016,http://opendatacommunities.org/id/county-council/surrey,Surrey,http://id.esd.org.uk/service/1465,Council expenditure,31/03/2016,NW CARE - LAC,TRAINLINE,298.3,NON-STAFF RELATED TRANSPORT COSTS,PASSENGER RAILWAYS,4112
18/07/2016,http://opendatacommunities.org/id/county-council/surrey,Surrey,http://id.esd.org.uk/service/1465,Council expenditure,31/03/2016,READY FOR WORK YSS,VUE NCS CITB HS&E TEST,19.5,EQUIPMENT,SCHOOLS & EDUCATIONAL SVC-NOT ELSEWHERE CLASSIFIED,8299
18/07/2016,http://opendatacommunities.org/id/county-council/surrey,Surrey,http://id.esd.org.uk/service/1465,Council expenditure,31/03/2016,HILLSIDE,SAINSBURYS 0675,124.84,PURCHASE OF FOOD (RAW MATERIALS),"GROCERY STORES, SUPERMARKETS",5411
18/07/2016,http://opendatacommunities.org/id/county-council/surrey,Surrey,http://id.esd.org.uk/service/1465,Council expenditure,31/03/2016,FARNHAM YC,AMAZON UK MARKETPLACE,51.72,EQUIPMENT,BOOK STORES,5942
18/07/2016,http://opendatacommunities.org/id/county-council/surrey,Surrey,http://id.esd.org.uk/service/1465,Council expenditure,31/03/2016,PE/CDT MAINTENANCE OVERHEADS,WWW.EPSOM-EWELL.GOV.UK,370.35,TRADE REFUSE,GOVERNMENT SERVICES-NOT ELSEWHERE CLASSIFIED,9399
18/07/2016,http://opendatacommunities.org/id/county-council/surrey,Surrey,http://id.esd.org.uk/service/1465,Council expenditure,31/03/2016,HOLLAND CLOSE RESIDENTIAL HOME,RUGAL REPAIRS AND SALE,97.49,DAY TO DAY MAINTENANCE,HOUSEHOLD APPLIANCE STORES,5722
18/07/2016,http://opendatacommunities.org/id/county-council/surrey,Surrey,http://id.esd.org.uk/service/1465,Council expenditure,31/03/2016,SHEERWATER YC,ASDA STORES 4823,7.13,REFRESHMENT COSTS,"GROCERY STORES, SUPERMARKETS",5411
18/07/2016,http://opendatacommunities.org/id/county-council/surrey,Surrey,http://id.esd.org.uk/service/1465,Council expenditure,31/03/2016,READY FOR WORK YSS,VUE NCS CITB HS&E TEST,19.5,EDUC VISITS/HOLS/CAMPS/TOYS,SCHOOLS & EDUCATIONAL SVC-NOT ELSEWHERE CLASSIFIED,8299
18/07/2016,http://opendatacommunities.org/id/county-council/surrey,Surrey,http://id.esd.org.uk/service/1465,Council expenditure,31/03/2016,ADDLESTONE YC,AMAZON UK MARKETPLACE,23.03,CURRICULUM CONSUMABLES,BOOK STORES,5942
18/07/2016,http://opendatacommunities.org/id/county-council/surrey,Surrey,http://id.esd.org.uk/service/1465,Council expenditure,31/03/2016,KARIBU COMMUNITY HOME,CABALLO LOUNGE,24.55,PURCHASE OF FOOD (RAW MATERIALS),"EATING PLACES, RESTAURANTS",5812
18/07/2016,http://opendatacommunities.org/id/county-council/surrey,Surrey,http://id.esd.org.uk/service/1465,Council expenditure,31/03/2016,NORTH EAST AREA TEAM,PC WORLD ONLINE,69.99,EQUIPMENT,ELECTRONIC SALES,5732
18/07/2016,http://opendatacommunities.org/id/county-council/surrey,Surrey,http://id.esd.org.uk/service/1465,Council expenditure,31/03/2016,GODALMING YC,ARGOS RETAIL GROUP,92.43,EQUIPMENT,DISCOUNT STORES,5310
18/07/2016,http://opendatacommunities.org/id/county-council/surrey,Surrey,http://id.esd.org.uk/service/1465,Council expenditure,31/03/2016,SPLASH PROJECT,AMAZON UK MARKETPLACE,152.87,EDUC VISITS/HOLS/CAMPS/TOYS,BOOK STORES,5942
18/07/2016,http://opendatacommunities.org/id/county-council/surrey,Surrey,http://id.esd.org.uk/service/1465,Council expenditure,31/03/2016,HOPE SERVICE - WEST,THE BIG APPLE,42.3,EDUC VISITS/HOLS/CAMPS/TOYS,BOWLING ALLEYS,7933
18/07/2016,http://opendatacommunities.org/id/county-council/surrey,Surrey,http://id.esd.org.uk/service/1465,Council expenditure,31/03/2016,CEO - PRIORITIES                        ,FACEBOOK MES9B962S2,6.08,PUBLICITY,ADVERTISING SERVICES,7311
18/07/2016,http://opendatacommunities.org/id/county-council/surrey,Surrey,http://id.esd.org.uk/service/1465,Council expenditure,31/03/2016,READY FOR WORK YSS,VUE NCS CITB HS&E TEST,19.5,EQUIPMENT,SCHOOLS & EDUCATIONAL SVC-NOT ELSEWHERE CLASSIFIED,8299
18/07/2016,http://opendatacommunities.org/id/county-council/surrey,Surrey,http://id.esd.org.uk/service/1465,Council expenditure,31/03/2016,COUNTY HALL,AMAZON UK MARKETPLACE,6,EQUIPMENT,BOOK STORES,5942
18/07/2016,http://opendatacommunities.org/id/county-council/surrey,Surrey,http://id.esd.org.uk/service/1465,Council expenditure,31/03/2016,ARUNDEL,ASDA SUPERSTORE,47.44,CLEANING MATERIALS,"GROCERY STORES, SUPERMARKETS",5411
18/07/2016,http://opendatacommunities.org/id/county-council/surrey,Surrey,http://id.esd.org.uk/service/1465,Council expenditure,31/03/2016,SPLASH PROJECT,AMAZON UK MARKETPLACE,52.81,EDUC VISITS/HOLS/CAMPS/TOYS,BOOK STORES,5942
18/07/2016,http://opendatacommunities.org/id/county-council/surrey,Surrey,http://id.esd.org.uk/service/1465,Council expenditure,31/03/2016,NORTH EAST AREA TEAM,TESCO STORE 2812,43.14,REFRESHMENT COSTS,"GROCERY STORES, SUPERMARKETS",5411
18/07/2016,http://opendatacommunities.org/id/county-council/surrey,Surrey,http://id.esd.org.uk/service/1465,Council expenditure,31/03/2016,SPLASH PROJECT,AMAZON UK MARKETPLACE,79.94,EDUC VISITS/HOLS/CAMPS/TOYS,BOOK STORES,5942
18/07/2016,http://opendatacommunities.org/id/county-council/surrey,Surrey,http://id.esd.org.uk/service/1465,Council expenditure,31/03/2016,WOODLANDS COMMUNITY HOME,CINEWORLD,41.46,EDUC VISITS/HOLS/CAMPS/TOYS,"THEATRICAL PRODUCERS(EXCL MOTION PIX),TICKET AGNCY",7922
18/07/2016,http://opendatacommunities.org/id/county-council/surrey,Surrey,http://id.esd.org.uk/service/1465,Council expenditure,31/03/2016,READY FOR WORK YSS,VUE NCS CITB HS&E TEST,19.5,EQUIPMENT,SCHOOLS & EDUCATIONAL SVC-NOT ELSEWHERE CLASSIFIED,8299
18/07/2016,http://opendatacommunities.org/id/county-council/surrey,Surrey,http://id.esd.org.uk/service/1465,Council expenditure,31/03/2016,LAC INITIATIVES,CURRYS S/S,975.98,CURRICULUM EQUIPMENT AND FURNITURE,HOUSEHOLD APPLIANCE STORES,5722
18/07/2016,http://opendatacommunities.org/id/county-council/surrey,Surrey,http://id.esd.org.uk/service/1465,Council expenditure,31/03/2016,HOPE SERVICE - WEST,AMAZON UK MARKETPLACE,52.4,CURRICULUM CONSUMABLES,BOOK STORES,5942
18/07/2016,http://opendatacommunities.org/id/county-council/surrey,Surrey,http://id.esd.org.uk/service/1465,Council expenditure,31/03/2016,TANDRIDGE LOCALITY TEAM,AMAZON UK MARKETPLACE,41.99,BOOKS,BOOK STORES,5942
18/07/2016,http://opendatacommunities.org/id/county-council/surrey,Surrey,http://id.esd.org.uk/service/1465,Council expenditure,31/03/2016,LEAP SURREY HEATH,AMAZON UK MARKETPLACE,0.65,EDUC VISITS/HOLS/CAMPS/TOYS,BOOK STORES,5942
18/07/2016,http://opendatacommunities.org/id/county-council/surrey,Surrey,http://id.esd.org.uk/service/1465,Council expenditure,31/03/2016,IMT CRITICAL ENVIRONMENTS,AMAZON UK MARKETPLACE,17.97,REFRESHMENT COSTS,BOOK STORES,5942
18/07/2016,http://opendatacommunities.org/id/county-council/surrey,Surrey,http://id.esd.org.uk/service/1465,Council expenditure,01/04/2016,NW CARE - CP & COURT LAC,SURREY CC CARD PAY,11,FEES,COMPUTER NETWORK/INFORMATION SERVICES,4816
18/07/2016,http://opendatacommunities.org/id/county-council/surrey,Surrey,http://id.esd.org.uk/service/1465,Council expenditure,01/04/2016,SHEERWATER YC,SAINSBURYS 0686,50.08,PURCHASE OF FOOD (RAW MATERIALS),"GROCERY STORES, SUPERMARKETS",5411
18/07/2016,http://opendatacommunities.org/id/county-council/surrey,Surrey,http://id.esd.org.uk/service/1465,Council expenditure,01/04/2016,COUNTY HALL,AMAZON UK MARKETPLACE,8.45,DAY TO DAY MAINTENANCE,BOOK STORES,5942
18/07/2016,http://opendatacommunities.org/id/county-council/surrey,Surrey,http://id.esd.org.uk/service/1465,Council expenditure,01/04/2016,WOKING LIBRARY,AMAZON UK MARKETPLACE,101.79,EQUIPMENT,BOOK STORES,5942
18/07/2016,http://opendatacommunities.org/id/county-council/surrey,Surrey,http://id.esd.org.uk/service/1465,Council expenditure,01/04/2016,HEALTH EDU KENT SURREY @ SUSSEX,AMAZON UK MARKETPLACE,191.88,EQUIPMENT,BOOK STORES,5942
18/07/2016,http://opendatacommunities.org/id/county-council/surrey,Surrey,http://id.esd.org.uk/service/1465,Council expenditure,01/04/2016,SOLD DAY TO DAY OPERATIONS,POUNDLAND,17.1,CURRICULUM CONSUMABLES,DISCOUNT STORES,5310
18/07/2016,http://opendatacommunities.org/id/county-council/surrey,Surrey,http://id.esd.org.uk/service/1465,Council expenditure,01/04/2016,DOWNLANDS COUNTRYSIDE PROJECT,MOLE COUNTRY STORES,227.59,EQUIPMENT,AGRICULTURAL COOPERATIVES,763
18/07/2016,http://opendatacommunities.org/id/county-council/surrey,Surrey,http://id.esd.org.uk/service/1465,Council expenditure,01/04/2016,SW CARE - NON-LAC CP & COURT,TRAVELODGE,"1,577.00",CHILDREN ACT SEC 17 PAYMENTS,TRAVELODGE,3615
18/07/2016,http://opendatacommunities.org/id/county-council/surrey,Surrey,http://id.esd.org.uk/service/1465,Council expenditure,01/04/2016,BURBANK COMMUNITY HOME,MCDONALDS,3.38,REFRESHMENT COSTS,"EATING PLACES, RESTAURANTS",5812
18/07/2016,http://opendatacommunities.org/id/county-council/surrey,Surrey,http://id.esd.org.uk/service/1465,Council expenditure,01/04/2016,GODALMING YC,AMAZON UK MARKETPLACE,11.4,EQUIPMENT,BOOK STORES,5942
18/07/2016,http://opendatacommunities.org/id/county-council/surrey,Surrey,http://id.esd.org.uk/service/1465,Council expenditure,01/04/2016,LSTF GRANT,AMAZON EU,118,EQUIPMENT,DIRECT MARKETING-OTHER DIRECT MARKETERS/NOT ELSEW.,5969
18/07/2016,http://opendatacommunities.org/id/county-council/surrey,Surrey,http://id.esd.org.uk/service/1465,Council expenditure,01/04/2016,GODALMING YC,AMAZON UK MARKETPLACE,2.99,EQUIPMENT,BOOK STORES,5942
18/07/2016,http://opendatacommunities.org/id/county-council/surrey,Surrey,http://id.esd.org.uk/service/1465,Council expenditure,01/04/2016,HOPE SERVICE - WEST,SAINSBURYS SACAT 0828,1.5,PURCHASE OF FOOD (RAW MATERIALS),"GROCERY STORES, SUPERMARKETS",5411
18/07/2016,http://opendatacommunities.org/id/county-council/surrey,Surrey,http://id.esd.org.uk/service/1465,Council expenditure,01/04/2016,NW CARE - NON-LAC CP & COURT,TRAVELODGE,473,CHILDREN ACT SEC 17 PAYMENTS,TRAVELODGE,3615
18/07/2016,http://opendatacommunities.org/id/county-council/surrey,Surrey,http://id.esd.org.uk/service/1465,Council expenditure,01/04/2016,TS SERVICE MANAGEMENT,AMAZON UK MARKETPLACE,15.45,EQUIPMENT,BOOK STORES,5942
18/07/2016,http://opendatacommunities.org/id/county-council/surrey,Surrey,http://id.esd.org.uk/service/1465,Council expenditure,01/04/2016,WOKING LIBRARY,AMAZON UK MARKETPLACE,32,EQUIPMENT,BOOK STORES,5942
18/07/2016,http://opendatacommunities.org/id/county-council/surrey,Surrey,http://id.esd.org.uk/service/1465,Council expenditure,01/04/2016,ARUNDEL,ASDA SUPERSTORE,12,EQUIPMENT,"GROCERY STORES, SUPERMARKETS",5411
18/07/2016,http://opendatacommunities.org/id/county-council/surrey,Surrey,http://id.esd.org.uk/service/1465,Council expenditure,01/04/2016,CHEYNE WALK COMMUNITY HOME,MAX TESCO 3300,12.48,PURCHASE OF FOOD (RAW MATERIALS),PHOTOGRAPHIC STUDIOS,7221
18/07/2016,http://opendatacommunities.org/id/county-council/surrey,Surrey,http://id.esd.org.uk/service/1465,Council expenditure,01/04/2016,LIBERTAS COMMUNITY HOME,ORIENTAL EXPRESS,61.2,REFRESHMENT COSTS,FAST FOOD RESTAURANTS,5814
18/07/2016,http://opendatacommunities.org/id/county-council/surrey,Surrey,http://id.esd.org.uk/service/1465,Council expenditure,01/04/2016,ARUNDEL,TESCO STORES 5999,115.73,REFRESHMENT COSTS,"GROCERY STORES, SUPERMARKETS",5411
18/07/2016,http://opendatacommunities.org/id/county-council/surrey,Surrey,http://id.esd.org.uk/service/1465,Council expenditure,01/04/2016,LIBERTAS COMMUNITY HOME,43033785 COSTA COFFEE,5.75,REFRESHMENT COSTS,FAST FOOD RESTAURANTS,5814
18/07/2016,http://opendatacommunities.org/id/county-council/surrey,Surrey,http://id.esd.org.uk/service/1465,Council expenditure,01/04/2016,HILLSIDE,TESCO STORE 3149,10.63,PURCHASE OF FOOD (RAW MATERIALS),"GROCERY STORES, SUPERMARKETS",5411
18/07/2016,http://opendatacommunities.org/id/county-council/surrey,Surrey,http://id.esd.org.uk/service/1465,Council expenditure,01/04/2016,SOLD ESTATES MANAGEMENT,AMAZON UK MARKETPLACE,23.99,EQUIPMENT,BOOK STORES,5942
18/07/2016,http://opendatacommunities.org/id/county-council/surrey,Surrey,http://id.esd.org.uk/service/1465,Council expenditure,01/04/2016,TRANSPORT,HALFORDS 0757,3.99,VEHICLE REPAIRS AND MAINTENANCE,BICYCLE SHOPS-SALES AND SERVICE,5940
18/07/2016,http://opendatacommunities.org/id/county-council/surrey,Surrey,http://id.esd.org.uk/service/1465,Council expenditure,01/04/2016,WALTON YC,HALFORDS 0436,17.03,EQUIPMENT,BICYCLE SHOPS-SALES AND SERVICE,5940
18/07/2016,http://opendatacommunities.org/id/county-council/surrey,Surrey,http://id.esd.org.uk/service/1465,Council expenditure,01/04/2016,BURBANK COMMUNITY HOME,BOOTS OPTICIANS 3384,30.9,EQUIPMENT,"OPTICIANS,OPTICAL GOODS & EYEGLASSES",8043
18/07/2016,http://opendatacommunities.org/id/county-council/surrey,Surrey,http://id.esd.org.uk/service/1465,Council expenditure,01/04/2016,IMT CRITICAL ENVIRONMENTS,WWW.MILKANDMORE.CO.UK,43.03,REFRESHMENT COSTS,DIRECT MARKETING-CONTINUITY/SUBSCRIPTION MERCHANTS,5968
18/07/2016,http://opendatacommunities.org/id/county-council/surrey,Surrey,http://id.esd.org.uk/service/1465,Council expenditure,01/04/2016,SOLD DAY TO DAY OPERATIONS,CARD FACTORY,14.47,CURRICULUM CONSUMABLES,"GIFT, CARD, NOVELTY AND SOUVENIR SHOPS",5947
18/07/2016,http://opendatacommunities.org/id/county-council/surrey,Surrey,http://id.esd.org.uk/service/1465,Council expenditure,01/04/2016,LIBERTAS COMMUNITY HOME,SAINSBURYS 0652,13.05,PURCHASE OF FOOD (RAW MATERIALS),"GROCERY STORES, SUPERMARKETS",5411
18/07/2016,http://opendatacommunities.org/id/county-council/surrey,Surrey,http://id.esd.org.uk/service/1465,Council expenditure,01/04/2016,LIBERTAS COMMUNITY HOME,SAINSBURYS 0652,111.43,PURCHASE OF FOOD (RAW MATERIALS),"GROCERY STORES, SUPERMARKETS",5411
18/07/2016,http://opendatacommunities.org/id/county-council/surrey,Surrey,http://id.esd.org.uk/service/1465,Council expenditure,01/04/2016,LIBERTAS COMMUNITY HOME,SAINSBURYS 0652,8.5,EQUIPMENT,"GROCERY STORES, SUPERMARKETS",5411
18/07/2016,http://opendatacommunities.org/id/county-council/surrey,Surrey,http://id.esd.org.uk/service/1465,Council expenditure,01/04/2016,CHEYNE WALK COMMUNITY HOME,CFC TICKETS,15,EDUC VISITS/HOLS/CAMPS/TOYS,"CLUBS-CNTRY,MBRSHIP(ATHLET,REC,SPRTS,PRIVATE GOLF",7997
18/07/2016,http://opendatacommunities.org/id/county-council/surrey,Surrey,http://id.esd.org.uk/service/1465,Council expenditure,01/04/2016,NE EDUCATION PSYCHOLOGISTS,AMAZON UK MARKETPLACE,14.85,EQUIPMENT,BOOK STORES,5942
18/07/2016,http://opendatacommunities.org/id/county-council/surrey,Surrey,http://id.esd.org.uk/service/1465,Council expenditure,01/04/2016,SOLD CATERING,SAINSBURYS 0517,35.15,PURCHASE OF FOOD (RAW MATERIALS),"GROCERY STORES, SUPERMARKETS",5411
18/07/2016,http://opendatacommunities.org/id/county-council/surrey,Surrey,http://id.esd.org.uk/service/1465,Council expenditure,01/04/2016,OCCUPATIONAL HEALTH,VITALOGRAPH LTD,198,EQUIPMENT,"HEALTH PRACTITIONERS, MEDICAL SRVCS-NOT ELSEWHERE",8099
18/07/2016,http://opendatacommunities.org/id/county-council/surrey,Surrey,http://id.esd.org.uk/service/1465,Council expenditure,01/04/2016,EXTENDED HOPE,SOHOCOMMERCIAL,68.56,CURRICULUM EQUIPMENT AND FURNITURE,INDUSTRIAL SUPPLIES NOT ELSEWHERE CLASSIFIED,5085
18/07/2016,http://opendatacommunities.org/id/county-council/surrey,Surrey,http://id.esd.org.uk/service/1465,Council expenditure,01/04/2016,CSAF 50+,PRINTED.COM,-297.15,PRINTING,"QUICK COPY,REPRODUCTION AND BLUEPRINTING SERVICES",7338
18/07/2016,http://opendatacommunities.org/id/county-council/surrey,Surrey,http://id.esd.org.uk/service/1465,Council expenditure,01/04/2016,TS SERVICE MANAGEMENT,"AMAZON SVCS EUROPE,SAR",14.5,EQUIPMENT,BOOK STORES,5942
18/07/2016,http://opendatacommunities.org/id/county-council/surrey,Surrey,http://id.esd.org.uk/service/1465,Council expenditure,01/04/2016,CHEYNE WALK COMMUNITY HOME,CFC TICKETS,12,EDUC VISITS/HOLS/CAMPS/TOYS,"CLUBS-CNTRY,MBRSHIP(ATHLET,REC,SPRTS,PRIVATE GOLF",7997
18/07/2016,http://opendatacommunities.org/id/county-council/surrey,Surrey,http://id.esd.org.uk/service/1465,Council expenditure,01/04/2016,COUNTY HALL,JCM LOCKSMITHS LTD,70.2,DAY TO DAY MAINTENANCE,HARDWARE STORES,5251
18/07/2016,http://opendatacommunities.org/id/county-council/surrey,Surrey,http://id.esd.org.uk/service/1465,Council expenditure,01/04/2016,COUNTY HALL,AMAZON UK MARKETPLACE,11.78,DAY TO DAY MAINTENANCE,BOOK STORES,5942
18/07/2016,http://opendatacommunities.org/id/county-council/surrey,Surrey,http://id.esd.org.uk/service/1465,Council expenditure,01/04/2016,ACCESS AND PROGRESSION,ROYAL BOROUGH OF KINGS,201.57,EDUC VISITS/HOLS/CAMPS/TOYS,GOVERNMENT SERVICES-NOT ELSEWHERE CLASSIFIED,9399
18/07/2016,http://opendatacommunities.org/id/county-council/surrey,Surrey,http://id.esd.org.uk/service/1465,Council expenditure,01/04/2016,TRANSPORT,ASHBURY,27,TELECOMMUNICATION CHARGES,TELECOMMUNICATION EQUIPMENT INCL TELEPHONE SALES,4812
18/07/2016,http://opendatacommunities.org/id/county-council/surrey,Surrey,http://id.esd.org.uk/service/1465,Council expenditure,01/04/2016,TANDRIDGE LOCALITY TEAM,AMAZON UK MARKETPLACE,28.73,EQUIPMENT,BOOK STORES,5942
18/07/2016,http://opendatacommunities.org/id/county-council/surrey,Surrey,http://id.esd.org.uk/service/1465,Council expenditure,01/04/2016,E&I - TEXTILES                          ,FACEBOOK N823J9S9K2,50.12,PUBLICITY,ADVERTISING SERVICES,7311
18/07/2016,http://opendatacommunities.org/id/county-council/surrey,Surrey,http://id.esd.org.uk/service/1465,Council expenditure,01/04/2016,SPLASH PROJECT,AMAZON UK MARKETPLACE,-91.02,EDUC VISITS/HOLS/CAMPS/TOYS,MISCELLANEOUS AND SPECIALTY RETAIL STORES,5999
18/07/2016,http://opendatacommunities.org/id/county-council/surrey,Surrey,http://id.esd.org.uk/service/1465,Council expenditure,01/04/2016,BURBANK COMMUNITY HOME,MILANO PIZZA,35.95,REFRESHMENT COSTS,"GROCERY STORES, SUPERMARKETS",5411
18/07/2016,http://opendatacommunities.org/id/county-council/surrey,Surrey,http://id.esd.org.uk/service/1465,Council expenditure,01/04/2016,WALTON YC,HOMEBASE LTD 290,18.92,EQUIPMENT,"BUILDING MATERIALS, LUMBER STORES",5211
18/07/2016,http://opendatacommunities.org/id/county-council/surrey,Surrey,http://id.esd.org.uk/service/1465,Council expenditure,01/04/2016,PERFORMANCE AND KNOWLEDGE MANAGEMENT,AMAZON UK MARKETPLACE,6.49,EQUIPMENT,BOOK STORES,5942
18/07/2016,http://opendatacommunities.org/id/county-council/surrey,Surrey,http://id.esd.org.uk/service/1465,Council expenditure,01/04/2016,TRANSPORT,ASHBURY,81,TELECOMMUNICATION CHARGES,TELECOMMUNICATION EQUIPMENT INCL TELEPHONE SALES,4812
18/07/2016,http://opendatacommunities.org/id/county-council/surrey,Surrey,http://id.esd.org.uk/service/1465,Council expenditure,01/04/2016,SOLD DAY TO DAY OPERATIONS,POUNDLAND,5,CURRICULUM CONSUMABLES,DISCOUNT STORES,5310
18/07/2016,http://opendatacommunities.org/id/county-council/surrey,Surrey,http://id.esd.org.uk/service/1465,Council expenditure,01/04/2016,TRANSPORT,PAYPAL  LASTINGIMPR,4.2,DAY TO DAY MAINTENANCE,BUSINESS SERVICES-NOT ELSEWHERE CLASSIFIED,7399
18/07/2016,http://opendatacommunities.org/id/county-council/surrey,Surrey,http://id.esd.org.uk/service/1465,Council expenditure,01/04/2016,SECTOR MANAGER,TILLROLLSDIRECT.CO,202.38,EQUIPMENT,STATIONERY/OFFICE SUPPLIES/PRINTING & WRITING PAP.,5111
18/07/2016,http://opendatacommunities.org/id/county-council/surrey,Surrey,http://id.esd.org.uk/service/1465,Council expenditure,01/04/2016,ACL CENTRAL EXPENDITURE,HELLOPRINT,42.89,PUBLICITY,"QUICK COPY,REPRODUCTION AND BLUEPRINTING SERVICES",7338
18/07/2016,http://opendatacommunities.org/id/county-council/surrey,Surrey,http://id.esd.org.uk/service/1465,Council expenditure,01/04/2016,HOPE SERVICE - EAST,GREAT ART,145.33,CURRICULUM CONSUMABLES,DIRECT MARKETING-OTHER DIRECT MARKETERS/NOT ELSEW.,5969
18/07/2016,http://opendatacommunities.org/id/county-council/surrey,Surrey,http://id.esd.org.uk/service/1465,Council expenditure,01/04/2016,READY FOR WORK YSS,BUYTSHIRTSONLINELTD,52.55,EDUC VISITS/HOLS/CAMPS/TOYS,MEN'S AND BOY'S CLOTHING AND ACCESSORIES STORES,5611
18/07/2016,http://opendatacommunities.org/id/county-council/surrey,Surrey,http://id.esd.org.uk/service/1465,Council expenditure,01/04/2016,GODALMING YC,AMAZON UK MARKETPLACE,6.9,EQUIPMENT,BOOK STORES,5942
18/07/2016,http://opendatacommunities.org/id/county-council/surrey,Surrey,http://id.esd.org.uk/service/1465,Council expenditure,01/04/2016,SOLD PROFESSIONAL TRAINING AND DEVLPMNT,BCU,60,TRAINING EXPENSES EXTERNAL GENERAL,"CLUBS-CNTRY,MBRSHIP(ATHLET,REC,SPRTS,PRIVATE GOLF",7997
18/07/2016,http://opendatacommunities.org/id/county-council/surrey,Surrey,http://id.esd.org.uk/service/1465,Council expenditure,01/04/2016,BURBANK COMMUNITY HOME,WOKING BOROUGH COUNCIL,2.6,EDUC VISITS/HOLS/CAMPS/TOYS,AUTOMOBILE PARKING LOTS AND GARAGES,7523
18/07/2016,http://opendatacommunities.org/id/county-council/surrey,Surrey,http://id.esd.org.uk/service/1465,Council expenditure,01/04/2016,HOPE SERVICE - EAST,SPECIALIST CRAFTS LTD,211.27,CURRICULUM CONSUMABLES,"ARTIST SUPPLY STORES, CRAFT SHOPS",5970
18/07/2016,http://opendatacommunities.org/id/county-council/surrey,Surrey,http://id.esd.org.uk/service/1465,Council expenditure,01/04/2016,RUTH HOUSE,SAINSBURYS TO YOU 0686,36.9,PURCHASE OF FOOD (RAW MATERIALS),"GROCERY STORES, SUPERMARKETS",5411
18/07/2016,http://opendatacommunities.org/id/county-council/surrey,Surrey,http://id.esd.org.uk/service/1465,Council expenditure,01/04/2016,RUTH HOUSE,SAINSBURYS TO YOU 0686,188.15,PURCHASE OF FOOD (RAW MATERIALS),"GROCERY STORES, SUPERMARKETS",5411
18/07/2016,http://opendatacommunities.org/id/county-council/surrey,Surrey,http://id.esd.org.uk/service/1465,Council expenditure,01/04/2016,BURBANK COMMUNITY HOME,WWW.UKFLAIR.COM,53.96,EDUC VISITS/HOLS/CAMPS/TOYS,"SPORTS APPAREL, RIDING APPAREL STORES",5655
18/07/2016,http://opendatacommunities.org/id/county-council/surrey,Surrey,http://id.esd.org.uk/service/1465,Council expenditure,01/04/2016,EXTENDED HOPE,WWW.VIKING-DIRECT.CO.U,184.8,FURNITURE,STATIONERY/OFFICE SUPPLIES/PRINTING & WRITING PAP.,5111
18/07/2016,http://opendatacommunities.org/id/county-council/surrey,Surrey,http://id.esd.org.uk/service/1465,Council expenditure,01/04/2016,TRANSPORT,AMAZON UK MARKETPLACE,0.97,COMPUTER CONSUMABLES,BOOK STORES,5942
18/07/2016,http://opendatacommunities.org/id/county-council/surrey,Surrey,http://id.esd.org.uk/service/1465,Council expenditure,01/04/2016,HOLLAND CLOSE RESIDENTIAL HOME,KINDLE UNLIMITED,7.99,SUBSCRIPTIONS,RECORD SHOPS,5735
18/07/2016,http://opendatacommunities.org/id/county-council/surrey,Surrey,http://id.esd.org.uk/service/1465,Council expenditure,01/04/2016,TS SERVICE MANAGEMENT,AMAZON UK MARKETPLACE,35.37,EQUIPMENT,BOOK STORES,5942
18/07/2016,http://opendatacommunities.org/id/county-council/surrey,Surrey,http://id.esd.org.uk/service/1465,Council expenditure,02/04/2016,COMMUNICATIONS TEAM,TIMES NEWSPAPERS LTD,34.67,SUBSCRIPTIONS,"BOOKS,PERIODICALS AND NEWSPAPERS",5192
18/07/2016,http://opendatacommunities.org/id/county-council/surrey,Surrey,http://id.esd.org.uk/service/1465,Council expenditure,02/04/2016,KARIBU COMMUNITY HOME,CAFE 1,23.1,EDUC VISITS/HOLS/CAMPS/TOYS,"EATING PLACES, RESTAURANTS",5812
18/07/2016,http://opendatacommunities.org/id/county-council/surrey,Surrey,http://id.esd.org.uk/service/1465,Council expenditure,02/04/2016,DCLG FIRE CONTROL GRANT (CAPITAL),PAYPAL  COMMS EXP,"4,911.42",CE04 CAPITAL ICT,ELECTRONIC SALES,5732
18/07/2016,http://opendatacommunities.org/id/county-council/surrey,Surrey,http://id.esd.org.uk/service/1465,Council expenditure,02/04/2016,EXTENDED HOURS SREVICE,AMAZON EU,22.29,EDUC VISITS/HOLS/CAMPS/TOYS,DIRECT MARKETING-OTHER DIRECT MARKETERS/NOT ELSEW.,5969
18/07/2016,http://opendatacommunities.org/id/county-council/surrey,Surrey,http://id.esd.org.uk/service/1465,Council expenditure,02/04/2016,WOODLANDS COMMUNITY HOME,BRIGHTON PIER,51.5,EDUC VISITS/HOLS/CAMPS/TOYS,"EATING PLACES, RESTAURANTS",5812
18/07/2016,http://opendatacommunities.org/id/county-council/surrey,Surrey,http://id.esd.org.uk/service/1465,Council expenditure,02/04/2016,KARIBU COMMUNITY HOME,MARKS&SPENCER PLC SACA,35.55,"CLOTHING, UNIFORM AND LAUNDRY","GROCERY STORES, SUPERMARKETS",5411
18/07/2016,http://opendatacommunities.org/id/county-council/surrey,Surrey,http://id.esd.org.uk/service/1465,Council expenditure,02/04/2016,SUPERFAST BROADBAND ECONOMIC DEVELOPMENT,GOOGLE  SVCSAPPS_SUPER,16.5,COMPUTER SERVICES,DIRECT MARKETING-CONTINUITY/SUBSCRIPTION MERCHANTS,5968
18/07/2016,http://opendatacommunities.org/id/county-council/surrey,Surrey,http://id.esd.org.uk/service/1465,Council expenditure,02/04/2016,BURBANK COMMUNITY HOME,SUPERDRUG STORES PLC,5.99,3RD PARTY PAYMENTS PRIVATE INDIV,"DRUG STORES, PHARMACIES",5912
18/07/2016,http://opendatacommunities.org/id/county-council/surrey,Surrey,http://id.esd.org.uk/service/1465,Council expenditure,02/04/2016,WOODLANDS COMMUNITY HOME,SAINSBURYS SACAT(4180),10.45,EDUC VISITS/HOLS/CAMPS/TOYS,"GROCERY STORES, SUPERMARKETS",5411
18/07/2016,http://opendatacommunities.org/id/county-council/surrey,Surrey,http://id.esd.org.uk/service/1465,Council expenditure,02/04/2016,SOLD DAY TO DAY OPERATIONS,AMAZON EU,25.12,EQUIPMENT,DIRECT MARKETING-OTHER DIRECT MARKETERS/NOT ELSEW.,5969
18/07/2016,http://opendatacommunities.org/id/county-council/surrey,Surrey,http://id.esd.org.uk/service/1465,Council expenditure,02/04/2016,BURBANK COMMUNITY HOME,SAINSBURYS SACAT 0802,11,PURCHASE OF FOOD (RAW MATERIALS),"GROCERY STORES, SUPERMARKETS",5411
18/07/2016,http://opendatacommunities.org/id/county-council/surrey,Surrey,http://id.esd.org.uk/service/1465,Council expenditure,02/04/2016,YSS MANAGEMENT PRACTICE AND SUPPORT,AMAZON PRIME,79,SUBSCRIPTIONS,DIRECT MARKETING-CONTINUITY/SUBSCRIPTION MERCHANTS,5968
18/07/2016,http://opendatacommunities.org/id/county-council/surrey,Surrey,http://id.esd.org.uk/service/1465,Council expenditure,02/04/2016,HOLLAND CLOSE RESIDENTIAL HOME,TESCO-STORES 6647,165.6,PURCHASE OF FOOD (RAW MATERIALS),"GROCERY STORES, SUPERMARKETS",5411
18/07/2016,http://opendatacommunities.org/id/county-council/surrey,Surrey,http://id.esd.org.uk/service/1465,Council expenditure,02/04/2016,BURBANK COMMUNITY HOME,"BOOTS,WOKING",3.15,MEDICAL EXPENSES,"DRUG STORES, PHARMACIES",5912
18/07/2016,http://opendatacommunities.org/id/county-council/surrey,Surrey,http://id.esd.org.uk/service/1465,Council expenditure,02/04/2016,LAKERS YC,ARGOS LTD,23.99,E25 CATERING EQUIPMENT,DISCOUNT STORES,5310
18/07/2016,http://opendatacommunities.org/id/county-council/surrey,Surrey,http://id.esd.org.uk/service/1465,Council expenditure,02/04/2016,GODALMING YC,AMAZON UK MARKETPLACE,37.01,EQUIPMENT,BOOK STORES,5942
18/07/2016,http://opendatacommunities.org/id/county-council/surrey,Surrey,http://id.esd.org.uk/service/1465,Council expenditure,02/04/2016,LEGAL SUPPORT TEAM,AMAZON EU,23.41,STATIONERY,DIRECT MARKETING-OTHER DIRECT MARKETERS/NOT ELSEW.,5969
18/07/2016,http://opendatacommunities.org/id/county-council/surrey,Surrey,http://id.esd.org.uk/service/1465,Council expenditure,02/04/2016,HILLSIDE,TESCO STORE 3149,53.16,PURCHASE OF FOOD (RAW MATERIALS),"GROCERY STORES, SUPERMARKETS",5411
18/07/2016,http://opendatacommunities.org/id/county-council/surrey,Surrey,http://id.esd.org.uk/service/1465,Council expenditure,02/04/2016,HILLSIDE,TESCO STORE 3149,263.97,PURCHASE OF FOOD (RAW MATERIALS),"GROCERY STORES, SUPERMARKETS",5411
18/07/2016,http://opendatacommunities.org/id/county-council/surrey,Surrey,http://id.esd.org.uk/service/1465,Council expenditure,02/04/2016,HEALTH EDU KENT SURREY @ SUSSEX,AMAZON UK MARKETPLACE,18.95,EQUIPMENT,BOOK STORES,5942
18/07/2016,http://opendatacommunities.org/id/county-council/surrey,Surrey,http://id.esd.org.uk/service/1465,Council expenditure,02/04/2016,LIBERTAS COMMUNITY HOME,SAINSBURYS SACAT 0652,24.05,PURCHASE OF FOOD (RAW MATERIALS),"GROCERY STORES, SUPERMARKETS",5411
18/07/2016,http://opendatacommunities.org/id/county-council/surrey,Surrey,http://id.esd.org.uk/service/1465,Council expenditure,02/04/2016,BURBANK COMMUNITY HOME,WOKING BOROUGH COUNCIL,2.6,MISCELLANEOUS STAFF TRAVEL,AUTOMOBILE PARKING LOTS AND GARAGES,7523
18/07/2016,http://opendatacommunities.org/id/county-council/surrey,Surrey,http://id.esd.org.uk/service/1465,Council expenditure,02/04/2016,FAIRCROFT COMMUNITY HOME,KFC,21.25,REFRESHMENT COSTS,FAST FOOD RESTAURANTS,5814
18/07/2016,http://opendatacommunities.org/id/county-council/surrey,Surrey,http://id.esd.org.uk/service/1465,Council expenditure,02/04/2016,HILLSIDE,TESCO STORE 3149,-0.75,PURCHASE OF FOOD (RAW MATERIALS),"GROCERY STORES, SUPERMARKETS",5411
18/07/2016,http://opendatacommunities.org/id/county-council/surrey,Surrey,http://id.esd.org.uk/service/1465,Council expenditure,02/04/2016,KARIBU COMMUNITY HOME,SUPERDRUG STORES PLC,18.51,EQUIPMENT,"DRUG STORES, PHARMACIES",5912
18/07/2016,http://opendatacommunities.org/id/county-council/surrey,Surrey,http://id.esd.org.uk/service/1465,Council expenditure,02/04/2016,BURBANK COMMUNITY HOME,PRIMARK,11,"CLOTHING, UNIFORM AND LAUNDRY",FAMILY CLOTHING STORES,5651
18/07/2016,http://opendatacommunities.org/id/county-council/surrey,Surrey,http://id.esd.org.uk/service/1465,Council expenditure,03/04/2016,TRANSPORT,PAYPAL  ARGOSDIRECT,449.99,COMPUTER HARDWARE,VARIETY STORES,5331
18/07/2016,http://opendatacommunities.org/id/county-council/surrey,Surrey,http://id.esd.org.uk/service/1465,Council expenditure,03/04/2016,SAP COMPETENCY CENTRE,AMAZON MKTPLACE PMTS,"1,699.53",COMPUTER SERVICES,MISCELLANEOUS AND SPECIALTY RETAIL STORES,5999
18/07/2016,http://opendatacommunities.org/id/county-council/surrey,Surrey,http://id.esd.org.uk/service/1465,Council expenditure,03/04/2016,BURBANK COMMUNITY HOME,W M MORRISONS,18.22,PURCHASE OF FOOD (RAW MATERIALS),"GROCERY STORES, SUPERMARKETS",5411
18/07/2016,http://opendatacommunities.org/id/county-council/surrey,Surrey,http://id.esd.org.uk/service/1465,Council expenditure,03/04/2016,LEACROFT YC,AMAZON UK MARKETPLACE,26.94,EQUIPMENT,BOOK STORES,5942
18/07/2016,http://opendatacommunities.org/id/county-council/surrey,Surrey,http://id.esd.org.uk/service/1465,Council expenditure,03/04/2016,FAIRCROFT COMMUNITY HOME,ODEON,28.95,EDUC VISITS/HOLS/CAMPS/TOYS,MOTION PICTURE THEATERS,7832
18/07/2016,http://opendatacommunities.org/id/county-council/surrey,Surrey,http://id.esd.org.uk/service/1465,Council expenditure,03/04/2016,WALTON YC,TICKETOFFICESALE,47.85,EDUC VISITS/HOLS/CAMPS/TOYS,PASSENGER RAILWAYS,4112
18/07/2016,http://opendatacommunities.org/id/county-council/surrey,Surrey,http://id.esd.org.uk/service/1465,Council expenditure,04/04/2016,SHEPPERTON YC,SHEPPERTON  CONNECT,25.73,REFRESHMENT COSTS,PETROLEUM AND PETROLEUM PRODUCTS,5172
18/07/2016,http://opendatacommunities.org/id/county-council/surrey,Surrey,http://id.esd.org.uk/service/1465,Council expenditure,04/04/2016,DOFE AND BEL EXPEDITIONS,TAHDAH VERIFIED,30,FEES,COMPUTER SOFTWARE STORES,5734
18/07/2016,http://opendatacommunities.org/id/county-council/surrey,Surrey,http://id.esd.org.uk/service/1465,Council expenditure,04/04/2016,THE STREET YC,PRIMARK,22.5,EQUIPMENT,FAMILY CLOTHING STORES,5651
18/07/2016,http://opendatacommunities.org/id/county-council/surrey,Surrey,http://id.esd.org.uk/service/1465,Council expenditure,04/04/2016,BURBANK COMMUNITY HOME,WOKING BOROUGH COUNCIL,2.6,MISCELLANEOUS STAFF TRAVEL,AUTOMOBILE PARKING LOTS AND GARAGES,7523
18/07/2016,http://opendatacommunities.org/id/county-council/surrey,Surrey,http://id.esd.org.uk/service/1465,Council expenditure,04/04/2016,MALLOW CRESCENT,SAINSBURYS TO YOU 0686,1.5,PURCHASE OF FOOD (RAW MATERIALS),"GROCERY STORES, SUPERMARKETS",5411
18/07/2016,http://opendatacommunities.org/id/county-council/surrey,Surrey,http://id.esd.org.uk/service/1465,Council expenditure,04/04/2016,MALLOW CRESCENT,SAINSBURYS TO YOU 0686,108.61,PURCHASE OF FOOD (RAW MATERIALS),"GROCERY STORES, SUPERMARKETS",5411
18/07/2016,http://opendatacommunities.org/id/county-council/surrey,Surrey,http://id.esd.org.uk/service/1465,Council expenditure,04/04/2016,GUILDFORD YC,WAITROSE 589,0.89,PURCHASE OF FOOD (RAW MATERIALS),"GROCERY STORES, SUPERMARKETS",5411
18/07/2016,http://opendatacommunities.org/id/county-council/surrey,Surrey,http://id.esd.org.uk/service/1465,Council expenditure,04/04/2016,COUNTY HALL,SCREWFIX DIRECT,329.41,DAY TO DAY MAINTENANCE,"BUILDING MATERIALS, LUMBER STORES",5211
18/07/2016,http://opendatacommunities.org/id/county-council/surrey,Surrey,http://id.esd.org.uk/service/1465,Council expenditure,04/04/2016,PROPERTY OPERATIONS TEAM,WICKES,39.58,PURCHASE OF BUILDING MATERIALS,HOME SUPPLY WAREHOUSE STORES,5200
18/07/2016,http://opendatacommunities.org/id/county-council/surrey,Surrey,http://id.esd.org.uk/service/1465,Council expenditure,04/04/2016,LOWER MOLE COUNTRYSIDE PROJECT,PHS GROUP,33.1,CLEANING AND DOMESTIC SUPPLIES,BUSINESS SERVICES-NOT ELSEWHERE CLASSIFIED,7399
18/07/2016,http://opendatacommunities.org/id/county-council/surrey,Surrey,http://id.esd.org.uk/service/1465,Council expenditure,04/04/2016,MALLOW CRESCENT,SAINSBURYS TO YOU 0686,12.5,PURCHASE OF FOOD (RAW MATERIALS),"GROCERY STORES, SUPERMARKETS",5411
18/07/2016,http://opendatacommunities.org/id/county-council/surrey,Surrey,http://id.esd.org.uk/service/1465,Council expenditure,04/04/2016,MALLOW CRESCENT,SAINSBURYS TO YOU 0686,112.55,PURCHASE OF FOOD (RAW MATERIALS),"GROCERY STORES, SUPERMARKETS",5411
18/07/2016,http://opendatacommunities.org/id/county-council/surrey,Surrey,http://id.esd.org.uk/service/1465,Council expenditure,04/04/2016,DCLG FIRE CONTROL GRANT (CAPITAL),ARGOS RETAIL GROUP,669,CE04 CAPITAL ICT,DISCOUNT STORES,5310
18/07/2016,http://opendatacommunities.org/id/county-council/surrey,Surrey,http://id.esd.org.uk/service/1465,Council expenditure,04/04/2016,COACH BURSARIES                         ,SOVEREIGNS,9.65,REFRESHMENT COSTS,"EATING PLACES, RESTAURANTS",5812
18/07/2016,http://opendatacommunities.org/id/county-council/surrey,Surrey,http://id.esd.org.uk/service/1465,Council expenditure,04/04/2016,DCLG FIRE CONTROL GRANT (CAPITAL),ARGOS RETAIL GROUP,669,CE04 CAPITAL ICT,DISCOUNT STORES,5310
18/07/2016,http://opendatacommunities.org/id/county-council/surrey,Surrey,http://id.esd.org.uk/service/1465,Council expenditure,04/04/2016,DEEPCUT CORONER,TRAVELODGE,125,WITNESS/JUROR EXP,TRAVELODGE,3615
18/07/2016,http://opendatacommunities.org/id/county-council/surrey,Surrey,http://id.esd.org.uk/service/1465,Council expenditure,04/04/2016,DCLG FIRE CONTROL GRANT (CAPITAL),ARGOS RETAIL GROUP,177,CE04 CAPITAL ICT,DISCOUNT STORES,5310
18/07/2016,http://opendatacommunities.org/id/county-council/surrey,Surrey,http://id.esd.org.uk/service/1465,Council expenditure,04/04/2016,AD OPERATIONS HIGHWAYS AND COUNTRYSIDE,WWW.NEOPOST.CO.UK,408,POSTAGE AND COURIER CHARGES,STATIONERY/OFFICE SUPPLIES/PRINTING & WRITING PAP.,5111
18/07/2016,http://opendatacommunities.org/id/county-council/surrey,Surrey,http://id.esd.org.uk/service/1465,Council expenditure,04/04/2016,BURBANK COMMUNITY HOME,RSM DOMESTIC APPLIANCE,25,EQUIPMENT,HOUSEHOLD APPLIANCE STORES,5722
18/07/2016,http://opendatacommunities.org/id/county-council/surrey,Surrey,http://id.esd.org.uk/service/1465,Council expenditure,04/04/2016,PROPERTY OPERATIONS TEAM,TOOLSTATION LTD,23.48,PURCHASE OF BUILDING MATERIALS,HARDWARE STORES,5251
18/07/2016,http://opendatacommunities.org/id/county-council/surrey,Surrey,http://id.esd.org.uk/service/1465,Council expenditure,04/04/2016,TRANSPORT,MOBILE FLEETWASH UK LT,108,VEHICLE REPAIRS AND MAINTENANCE,CAR WASHES,7542
18/07/2016,http://opendatacommunities.org/id/county-council/surrey,Surrey,http://id.esd.org.uk/service/1465,Council expenditure,04/04/2016,TRANSPORT,PAYPAL  MINIMOST,68.95,DAY TO DAY MAINTENANCE,ELECTRONIC SALES,5732
18/07/2016,http://opendatacommunities.org/id/county-council/surrey,Surrey,http://id.esd.org.uk/service/1465,Council expenditure,04/04/2016,TRANSPORT,WWW.THESIGNBUILD.CO.UK,664.08,DAY TO DAY MAINTENANCE,"GLASS, PAINT, WALLPAPER STORES",5231
18/07/2016,http://opendatacommunities.org/id/county-council/surrey,Surrey,http://id.esd.org.uk/service/1465,Council expenditure,04/04/2016,NORTH EAST AREA TEAM,COSTA,5.2,REFRESHMENT COSTS,"EATING PLACES, RESTAURANTS",5812
18/07/2016,http://opendatacommunities.org/id/county-council/surrey,Surrey,http://id.esd.org.uk/service/1465,Council expenditure,04/04/2016,TRANSPORT,PAYPAL  SUPREMEHAMP,27.5,DAY TO DAY MAINTENANCE,"GIFT, CARD, NOVELTY AND SOUVENIR SHOPS",5947
18/07/2016,http://opendatacommunities.org/id/county-council/surrey,Surrey,http://id.esd.org.uk/service/1465,Council expenditure,04/04/2016,HOPE SERVICE - WEST,SAINSBURYS LOC 4409,8.05,PURCHASE OF FOOD (RAW MATERIALS),"GROCERY STORES, SUPERMARKETS",5411
18/07/2016,http://opendatacommunities.org/id/county-council/surrey,Surrey,http://id.esd.org.uk/service/1465,Council expenditure,04/04/2016,WALTON YC,ACCENT CATERING SERVIC,39.85,REFRESHMENT COSTS,CATERERS,5811
18/07/2016,http://opendatacommunities.org/id/county-council/surrey,Surrey,http://id.esd.org.uk/service/1465,Council expenditure,04/04/2016,GODALMING YC,WAITROSE 216,2.4,REFRESHMENT COSTS,"GROCERY STORES, SUPERMARKETS",5411
18/07/2016,http://opendatacommunities.org/id/county-council/surrey,Surrey,http://id.esd.org.uk/service/1465,Council expenditure,04/04/2016,PRISON CAPITATION                       ,AMAZON UK MARKETPLACE,5.92,LIBRARY RESOURCES,BOOK STORES,5942
18/07/2016,http://opendatacommunities.org/id/county-council/surrey,Surrey,http://id.esd.org.uk/service/1465,Council expenditure,04/04/2016,ELMBRIDGE STAFFING,BASILO PIZZA,21.35,PURCHASE OF FOOD (RAW MATERIALS),FAST FOOD RESTAURANTS,5814
18/07/2016,http://opendatacommunities.org/id/county-council/surrey,Surrey,http://id.esd.org.uk/service/1465,Council expenditure,04/04/2016,APPLEWOOD,ASDA HOME SHOPPING,-8.88,PURCHASE OF FOOD (RAW MATERIALS),"GROCERY STORES, SUPERMARKETS",5411
18/07/2016,http://opendatacommunities.org/id/county-council/surrey,Surrey,http://id.esd.org.uk/service/1465,Council expenditure,04/04/2016,TRANSPORT,ARGOS RETAIL GROUP,379.99,COMPUTER HARDWARE,DISCOUNT STORES,5310
18/07/2016,http://opendatacommunities.org/id/county-council/surrey,Surrey,http://id.esd.org.uk/service/1465,Council expenditure,04/04/2016,COUNTY HALL,TLC (SOUTHERN) LTD,58.2,DAY TO DAY MAINTENANCE,HOUSEHOLD APPLIANCE STORES,5722
18/07/2016,http://opendatacommunities.org/id/county-council/surrey,Surrey,http://id.esd.org.uk/service/1465,Council expenditure,04/04/2016,MALLOW CRESCENT,SAINSBURYS TO YOU 0686,-1.8,PURCHASE OF FOOD (RAW MATERIALS),"GROCERY STORES, SUPERMARKETS",5411
18/07/2016,http://opendatacommunities.org/id/county-council/surrey,Surrey,http://id.esd.org.uk/service/1465,Council expenditure,04/04/2016,APPLEWOOD,ASDA HOME SHOPPING,-7.49,PURCHASE OF FOOD (RAW MATERIALS),"GROCERY STORES, SUPERMARKETS",5411
18/07/2016,http://opendatacommunities.org/id/county-council/surrey,Surrey,http://id.esd.org.uk/service/1465,Council expenditure,04/04/2016,TRANSPORT,PAYPAL  UNIVERSALSI,0.99,DAY TO DAY MAINTENANCE,ADVERTISING SERVICES,7311
18/07/2016,http://opendatacommunities.org/id/county-council/surrey,Surrey,http://id.esd.org.uk/service/1465,Council expenditure,04/04/2016,CHEYNE WALK COMMUNITY HOME,CINEWORLD,47.49,EDUC VISITS/HOLS/CAMPS/TOYS,"THEATRICAL PRODUCERS(EXCL MOTION PIX),TICKET AGNCY",7922
18/07/2016,http://opendatacommunities.org/id/county-council/surrey,Surrey,http://id.esd.org.uk/service/1465,Council expenditure,04/04/2016,TRANSPORT,ARGOS RETAIL GROUP,449.99,COMPUTER HARDWARE,DISCOUNT STORES,5310
18/07/2016,http://opendatacommunities.org/id/county-council/surrey,Surrey,http://id.esd.org.uk/service/1465,Council expenditure,04/04/2016,MALLOW CRESCENT,SAINSBURYS TO YOU 0686,10.2,PURCHASE OF FOOD (RAW MATERIALS),"GROCERY STORES, SUPERMARKETS",5411
18/07/2016,http://opendatacommunities.org/id/county-council/surrey,Surrey,http://id.esd.org.uk/service/1465,Council expenditure,04/04/2016,MALLOW CRESCENT,SAINSBURYS TO YOU 0686,95.89,PURCHASE OF FOOD (RAW MATERIALS),"GROCERY STORES, SUPERMARKETS",5411
18/07/2016,http://opendatacommunities.org/id/county-council/surrey,Surrey,http://id.esd.org.uk/service/1465,Council expenditure,04/04/2016,TRANSPORT,SP SERVICES,"1,908.00",OPERATIONAL FIRE EQUIPMENT,DENTAL/LAB/MED/OPHTHALMIC HOSP EQUIP & SUPPLIES,5047
18/07/2016,http://opendatacommunities.org/id/county-council/surrey,Surrey,http://id.esd.org.uk/service/1465,Council expenditure,04/04/2016,WEB OPERATIONS TEAM,HOOTSUITE MEDIA INC.,5.22,SUBSCRIPTIONS,BUSINESS SERVICES-NOT ELSEWHERE CLASSIFIED,7399
18/07/2016,http://opendatacommunities.org/id/county-council/surrey,Surrey,http://id.esd.org.uk/service/1465,Council expenditure,04/04/2016,BURBANK COMMUNITY HOME,SAINSBURYS SACAT 0802,6.05,PURCHASE OF FOOD (RAW MATERIALS),"GROCERY STORES, SUPERMARKETS",5411
18/07/2016,http://opendatacommunities.org/id/county-council/surrey,Surrey,http://id.esd.org.uk/service/1465,Council expenditure,04/04/2016,MAYFORD CENTRE - BUSINESS,WICKES,15.49,DAY TO DAY MAINTENANCE,HOME SUPPLY WAREHOUSE STORES,5200
18/07/2016,http://opendatacommunities.org/id/county-council/surrey,Surrey,http://id.esd.org.uk/service/1465,Council expenditure,04/04/2016,TRANSPORT,PAYPAL  KINGFISHERD,202.78,DAY TO DAY MAINTENANCE,INDUSTRIAL SUPPLIES NOT ELSEWHERE CLASSIFIED,5085
18/07/2016,http://opendatacommunities.org/id/county-council/surrey,Surrey,http://id.esd.org.uk/service/1465,Council expenditure,04/04/2016,TRANSPORT,PAYPAL  BESTBUY,7.92,DAY TO DAY MAINTENANCE,ACCESSORY AND APPAREL STORES-MISCELLANEOUS,5699
18/07/2016,http://opendatacommunities.org/id/county-council/surrey,Surrey,http://id.esd.org.uk/service/1465,Council expenditure,04/04/2016,PROC - E&I AND C&C,JOCKEY CLUB RACECOURSE,"1,614.00",VENUE COSTS (INCLUDING HIRE OF ROOMS),"ATHLTIC FIELDS,COMMRCL SPRT,SPRT CLBS,SPRT PROMOTR",7941
18/07/2016,http://opendatacommunities.org/id/county-council/surrey,Surrey,http://id.esd.org.uk/service/1465,Council expenditure,04/04/2016,RUTH HOUSE,WOVEN LABELS UK LT,11.98,"CLOTHING, UNIFORM AND LAUNDRY",ACCESSORY AND APPAREL STORES-MISCELLANEOUS,5699
18/07/2016,http://opendatacommunities.org/id/county-council/surrey,Surrey,http://id.esd.org.uk/service/1465,Council expenditure,04/04/2016,HOPE SERVICE - EAST,SAINSBURYS 0683,35.19,PURCHASE OF FOOD (RAW MATERIALS),"GROCERY STORES, SUPERMARKETS",5411
18/07/2016,http://opendatacommunities.org/id/county-council/surrey,Surrey,http://id.esd.org.uk/service/1465,Council expenditure,04/04/2016,SHEPPERTON YC,CO-OP GROUP 070762,26.72,REFRESHMENT COSTS,"GROCERY STORES, SUPERMARKETS",5411
18/07/2016,http://opendatacommunities.org/id/county-council/surrey,Surrey,http://id.esd.org.uk/service/1465,Council expenditure,04/04/2016,BUSINESS UNIT,UNIVERSITY OF LONDON,150,TRAINING EXPENSES EXTERNAL GENERAL,OTHER SERVICES (NOT ELSEWHERE CLASSIFIED),7299
18/07/2016,http://opendatacommunities.org/id/county-council/surrey,Surrey,http://id.esd.org.uk/service/1465,Council expenditure,04/04/2016,TRANSPORT,ARGOS RETAIL GROUP,383.94,COMPUTER HARDWARE,DISCOUNT STORES,5310
18/07/2016,http://opendatacommunities.org/id/county-council/surrey,Surrey,http://id.esd.org.uk/service/1465,Council expenditure,04/04/2016,KARIBU COMMUNITY HOME,WELCOME BREAK STARBUCK,3.55,PURCHASE OF FOOD (RAW MATERIALS),"MISC FOOD STORE-CONVENIENCE,MRKT,SPLTY,VENDNG MACS",5499
18/07/2016,http://opendatacommunities.org/id/county-council/surrey,Surrey,http://id.esd.org.uk/service/1465,Council expenditure,04/04/2016,KARIBU COMMUNITY HOME,WELCOME BREAK BK,13.98,PURCHASE OF FOOD (RAW MATERIALS),"MISC FOOD STORE-CONVENIENCE,MRKT,SPLTY,VENDNG MACS",5499
18/07/2016,http://opendatacommunities.org/id/county-council/surrey,Surrey,http://id.esd.org.uk/service/1465,Council expenditure,04/04/2016,LIBERTAS COMMUNITY HOME,SAINSBURYS 0652,12,PURCHASE OF FOOD (RAW MATERIALS),"GROCERY STORES, SUPERMARKETS",5411
18/07/2016,http://opendatacommunities.org/id/county-council/surrey,Surrey,http://id.esd.org.uk/service/1465,Council expenditure,04/04/2016,LIBERTAS COMMUNITY HOME,SAINSBURYS 0652,130.69,PURCHASE OF FOOD (RAW MATERIALS),"GROCERY STORES, SUPERMARKETS",5411
18/07/2016,http://opendatacommunities.org/id/county-council/surrey,Surrey,http://id.esd.org.uk/service/1465,Council expenditure,04/04/2016,LIBERTAS COMMUNITY HOME,SAINSBURYS 0652,3,EQUIPMENT,"GROCERY STORES, SUPERMARKETS",5411
18/07/2016,http://opendatacommunities.org/id/county-council/surrey,Surrey,http://id.esd.org.uk/service/1465,Council expenditure,04/04/2016,APPLEWOOD,ASDA HOME SHOPPING,170.91,PURCHASE OF FOOD (RAW MATERIALS),"GROCERY STORES, SUPERMARKETS",5411
18/07/2016,http://opendatacommunities.org/id/county-council/surrey,Surrey,http://id.esd.org.uk/service/1465,Council expenditure,04/04/2016,TRANSPORT,AMAZON UK MARKETPLACE,87.96,COMPUTER CONSUMABLES,BOOK STORES,5942
18/07/2016,http://opendatacommunities.org/id/county-council/surrey,Surrey,http://id.esd.org.uk/service/1465,Council expenditure,04/04/2016,ASSET PLANNING - OPERATIONS,ETI LTD,31.2,EQUIPMENT,INDUSTRIAL SUPPLIES NOT ELSEWHERE CLASSIFIED,5085
18/07/2016,http://opendatacommunities.org/id/county-council/surrey,Surrey,http://id.esd.org.uk/service/1465,Council expenditure,04/04/2016,ADDLESTONE YC,CO-OP GROUP 310379,10.75,REFRESHMENT COSTS,"GROCERY STORES, SUPERMARKETS",5411
18/07/2016,http://opendatacommunities.org/id/county-council/surrey,Surrey,http://id.esd.org.uk/service/1465,Council expenditure,04/04/2016,HEAD OF CUSTOMER SERVICES,GOOGLE  ADWS9122782225,67.4,SUBSCRIPTIONS,DIRECT MARKETING-CONTINUITY/SUBSCRIPTION MERCHANTS,5968
18/07/2016,http://opendatacommunities.org/id/county-council/surrey,Surrey,http://id.esd.org.uk/service/1465,Council expenditure,04/04/2016,KARIBU COMMUNITY HOME,WELCOME BREAK,25.74,PURCHASE OF FOOD (RAW MATERIALS),"MISC FOOD STORE-CONVENIENCE,MRKT,SPLTY,VENDNG MACS",5499
18/07/2016,http://opendatacommunities.org/id/county-council/surrey,Surrey,http://id.esd.org.uk/service/1465,Council expenditure,04/04/2016,HOPE SERVICE - WEST,SAINSBURYS SACAT(4409),31.6,PURCHASE OF FOOD (RAW MATERIALS),"GROCERY STORES, SUPERMARKETS",5411
18/07/2016,http://opendatacommunities.org/id/county-council/surrey,Surrey,http://id.esd.org.uk/service/1465,Council expenditure,04/04/2016,MALLOW CRESCENT,TESCO STORE 2590,8.6,PURCHASE OF FOOD (RAW MATERIALS),"GROCERY STORES, SUPERMARKETS",5411
18/07/2016,http://opendatacommunities.org/id/county-council/surrey,Surrey,http://id.esd.org.uk/service/1465,Council expenditure,04/04/2016,MALLOW CRESCENT,TESCO STORE 2590,66.07,PURCHASE OF FOOD (RAW MATERIALS),"GROCERY STORES, SUPERMARKETS",5411
18/07/2016,http://opendatacommunities.org/id/county-council/surrey,Surrey,http://id.esd.org.uk/service/1465,Council expenditure,04/04/2016,REIGATE & BANSTEAD LOCAL CARE OP,WWW.REIGATE-BANSTEAD.G,77.39,LOCAL AUTHORITIES,GOVERNMENT SERVICES-NOT ELSEWHERE CLASSIFIED,9399
18/07/2016,http://opendatacommunities.org/id/county-council/surrey,Surrey,http://id.esd.org.uk/service/1465,Council expenditure,04/04/2016,TRANSPORT,PAYPAL  ZELAFAY,69.45,DAY TO DAY MAINTENANCE,VARIETY STORES,5331
18/07/2016,http://opendatacommunities.org/id/county-council/surrey,Surrey,http://id.esd.org.uk/service/1465,Council expenditure,04/04/2016,THE STREET YC,WAITROSE 838,2.25,PURCHASE OF FOOD (RAW MATERIALS),"GROCERY STORES, SUPERMARKETS",5411
18/07/2016,http://opendatacommunities.org/id/county-council/surrey,Surrey,http://id.esd.org.uk/service/1465,Council expenditure,04/04/2016,HOPE SERVICE - WEST,AMAZON EU,14.17,CURRICULUM EQUIPMENT AND FURNITURE,DIRECT MARKETING-OTHER DIRECT MARKETERS/NOT ELSEW.,5969
18/07/2016,http://opendatacommunities.org/id/county-council/surrey,Surrey,http://id.esd.org.uk/service/1465,Council expenditure,04/04/2016,DOWNLANDS COUNTRYSIDE PROJECT,EPSOM SKIP HIRE CO LTD,306,EQUIPMENT,"COMMERCIAL EQUIPMENT, NOT ELSEWHERE CLASSIFIED",5046
18/07/2016,http://opendatacommunities.org/id/county-council/surrey,Surrey,http://id.esd.org.uk/service/1465,Council expenditure,04/04/2016,NORTH EAST AREA TEAM,TESCO STORE 2812,23.05,REFRESHMENT COSTS,"GROCERY STORES, SUPERMARKETS",5411
18/07/2016,http://opendatacommunities.org/id/county-council/surrey,Surrey,http://id.esd.org.uk/service/1465,Council expenditure,04/04/2016,LINTONS YC,CO-OP GROUP 310385,10.48,REFRESHMENT COSTS,"GROCERY STORES, SUPERMARKETS",5411
18/07/2016,http://opendatacommunities.org/id/county-council/surrey,Surrey,http://id.esd.org.uk/service/1465,Council expenditure,04/04/2016,FRIMLEY YC,TESCO STORES 3149,7.65,PURCHASE OF FOOD (RAW MATERIALS),"GROCERY STORES, SUPERMARKETS",5411
18/07/2016,http://opendatacommunities.org/id/county-council/surrey,Surrey,http://id.esd.org.uk/service/1465,Council expenditure,04/04/2016,E&I - TEXTILES                          ,GOOGLE  ADWS2060179426,500,PUBLICITY,DIRECT MARKETING-CONTINUITY/SUBSCRIPTION MERCHANTS,5968
18/07/2016,http://opendatacommunities.org/id/county-council/surrey,Surrey,http://id.esd.org.uk/service/1465,Council expenditure,04/04/2016,TRANSPORT,PAYPAL  MCUKTRADING,20.32,DAY TO DAY MAINTENANCE,HARDWARE STORES,5251
18/07/2016,http://opendatacommunities.org/id/county-council/surrey,Surrey,http://id.esd.org.uk/service/1465,Council expenditure,05/04/2016,ELMBRIDGE STAFFING,NANDOS WOKING,11.2,REFRESHMENT COSTS,"EATING PLACES, RESTAURANTS",5812
18/07/2016,http://opendatacommunities.org/id/county-council/surrey,Surrey,http://id.esd.org.uk/service/1465,Council expenditure,05/04/2016,ELMBRIDGE STAFFING,NANDOS WOKING,40.3,REFRESHMENT COSTS,"EATING PLACES, RESTAURANTS",5812
18/07/2016,http://opendatacommunities.org/id/county-council/surrey,Surrey,http://id.esd.org.uk/service/1465,Council expenditure,05/04/2016,LEAP BUDGET,PAYPAL  EARLYLEARNI,197.94,EDUC VISITS/HOLS/CAMPS/TOYS,"ARTIST SUPPLY STORES, CRAFT SHOPS",5970
18/07/2016,http://opendatacommunities.org/id/county-council/surrey,Surrey,http://id.esd.org.uk/service/1465,Council expenditure,05/04/2016,LIBERTAS COMMUNITY HOME,BP MERROW CONVENIENCE,4.65,REFRESHMENT COSTS,SERVICE STATIONS WITH OR WITHOUT ANCILLARY SERVICE,5541
18/07/2016,http://opendatacommunities.org/id/county-council/surrey,Surrey,http://id.esd.org.uk/service/1465,Council expenditure,05/04/2016,TRAINING AND DEVELOPMENT,PREMIER INN 44536525,429.96,TRAINING EXPENSES EXTERNAL GENERAL,"EATING PLACES, RESTAURANTS",5812
18/07/2016,http://opendatacommunities.org/id/county-council/surrey,Surrey,http://id.esd.org.uk/service/1465,Council expenditure,05/04/2016,LIBERTAS COMMUNITY HOME,BP MERROW CONVENIENCE,29.1,REFRESHMENT COSTS,SERVICE STATIONS WITH OR WITHOUT ANCILLARY SERVICE,5541
18/07/2016,http://opendatacommunities.org/id/county-council/surrey,Surrey,http://id.esd.org.uk/service/1465,Council expenditure,05/04/2016,TRAFFIC,THE PARROT INN,12.7,REFRESHMENT COSTS,"BAR,LOUNGE,DISCO,NIGHTCLUB,TAVERN-ALCOHOLIC DRINKS",5813
18/07/2016,http://opendatacommunities.org/id/county-council/surrey,Surrey,http://id.esd.org.uk/service/1465,Council expenditure,05/04/2016,ELMBRIDGE STAFFING,MCDONALDS,3.78,REFRESHMENT COSTS,FAST FOOD RESTAURANTS,5814
18/07/2016,http://opendatacommunities.org/id/county-council/surrey,Surrey,http://id.esd.org.uk/service/1465,Council expenditure,05/04/2016,ELMBRIDGE STAFFING,WOKING COUNCIL PARKING,3.9,EDUC VISITS/HOLS/CAMPS/TOYS,AUTOMOBILE PARKING LOTS AND GARAGES,7523
18/07/2016,http://opendatacommunities.org/id/county-council/surrey,Surrey,http://id.esd.org.uk/service/1465,Council expenditure,05/04/2016,GUILDFORD YC,CAMBRIDGE THEATRE,6,EDUC VISITS/HOLS/CAMPS/TOYS,"EATING PLACES, RESTAURANTS",5812
18/07/2016,http://opendatacommunities.org/id/county-council/surrey,Surrey,http://id.esd.org.uk/service/1465,Council expenditure,05/04/2016,SOLD DAY TO DAY OPERATIONS,TESCO STORES 3102,8.53,EQUIPMENT,"GROCERY STORES, SUPERMARKETS",5411
18/07/2016,http://opendatacommunities.org/id/county-council/surrey,Surrey,http://id.esd.org.uk/service/1465,Council expenditure,05/04/2016,LEACROFT YC,AMAZON UK MARKETPLACE,174.95,EQUIPMENT,BOOK STORES,5942
18/07/2016,http://opendatacommunities.org/id/county-council/surrey,Surrey,http://id.esd.org.uk/service/1465,Council expenditure,05/04/2016,ACCESS 2 EDUC' (COUNTY) MEDICAL SERVICE,"AMAZON SVCS EUROPE,SAR",49.07,EQUIPMENT,BOOK STORES,5942
18/07/2016,http://opendatacommunities.org/id/county-council/surrey,Surrey,http://id.esd.org.uk/service/1465,Council expenditure,05/04/2016,LEAP WOKING,AMAZON UK MARKETPLACE,3.65,EQUIPMENT,BOOK STORES,5942
18/07/2016,http://opendatacommunities.org/id/county-council/surrey,Surrey,http://id.esd.org.uk/service/1465,Council expenditure,05/04/2016,ROW AREA3 MV EPS ELM                    ,MOORHOUSE SANDPITS,403.85,UPKEEP OF GROUNDS,INDUSTRIAL SUPPLIES NOT ELSEWHERE CLASSIFIED,5085
18/07/2016,http://opendatacommunities.org/id/county-council/surrey,Surrey,http://id.esd.org.uk/service/1465,Council expenditure,05/04/2016,WOODLANDS COMMUNITY HOME,TABLE TABLE41017950,35.96,PURCHASE OF FOOD (RAW MATERIALS),"EATING PLACES, RESTAURANTS",5812
18/07/2016,http://opendatacommunities.org/id/county-council/surrey,Surrey,http://id.esd.org.uk/service/1465,Council expenditure,05/04/2016,SHEPPERTON YC,CO-OP GROUP 070762,11.5,REFRESHMENT COSTS,"GROCERY STORES, SUPERMARKETS",5411
18/07/2016,http://opendatacommunities.org/id/county-council/surrey,Surrey,http://id.esd.org.uk/service/1465,Council expenditure,05/04/2016,WOODLANDS COMMUNITY HOME,ALTON TOWERS,10,EDUC VISITS/HOLS/CAMPS/TOYS,"AMUSEMENT PARKS,CARNIVALS,CIRCUS,FORTUNE TELLERS",7996
18/07/2016,http://opendatacommunities.org/id/county-council/surrey,Surrey,http://id.esd.org.uk/service/1465,Council expenditure,05/04/2016,TRANSPORT,POWER4LAPTOPS,20.99,COMPUTER CONSUMABLES,"COMPUTERS, COMPUTER PERIPHERAL EQUIPMENT, SOFTWARE",5045
18/07/2016,http://opendatacommunities.org/id/county-council/surrey,Surrey,http://id.esd.org.uk/service/1465,Council expenditure,05/04/2016,CHEYNE WALK COMMUNITY HOME,SAINSBURYS PFS(1524),6,PURCHASE OF FOOD (RAW MATERIALS),SERVICE STATIONS WITH OR WITHOUT ANCILLARY SERVICE,5541
18/07/2016,http://opendatacommunities.org/id/county-council/surrey,Surrey,http://id.esd.org.uk/service/1465,Council expenditure,05/04/2016,CHEYNE WALK COMMUNITY HOME,THORPE PARK RESORT,6,PURCHASE OF FOOD (RAW MATERIALS),"AMUSEMENT PARKS,CARNIVALS,CIRCUS,FORTUNE TELLERS",7996
18/07/2016,http://opendatacommunities.org/id/county-council/surrey,Surrey,http://id.esd.org.uk/service/1465,Council expenditure,05/04/2016,WOODLANDS COMMUNITY HOME,SAINSBURYS PFS0239,54.25,VEHICLE RUNNING COSTS,SERVICE STATIONS WITH OR WITHOUT ANCILLARY SERVICE,5541
18/07/2016,http://opendatacommunities.org/id/county-council/surrey,Surrey,http://id.esd.org.uk/service/1465,Council expenditure,05/04/2016,TRANSPORT,HARWOODS LANDROVER,23.2,VEHICLE REPAIRS AND MAINTENANCE,AUTOMOTIVE SERVICE SHOPS,7538
18/07/2016,http://opendatacommunities.org/id/county-council/surrey,Surrey,http://id.esd.org.uk/service/1465,Council expenditure,05/04/2016,PE/CDT MAINTENANCE OVERHEADS,SPECIALIST INSTRUMENT,144,EQUIPMENT,ELECTRICAL PARTS AND EQUIPMENT,5065
18/07/2016,http://opendatacommunities.org/id/county-council/surrey,Surrey,http://id.esd.org.uk/service/1465,Council expenditure,05/04/2016,DCLG FIRE CONTROL GRANT (CAPITAL),ARGOS RETAIL GROUP,197.99,CE04 CAPITAL ICT,DISCOUNT STORES,5310
18/07/2016,http://opendatacommunities.org/id/county-council/surrey,Surrey,http://id.esd.org.uk/service/1465,Council expenditure,05/04/2016,SOLD DAY TO DAY OPERATIONS,AMAZON EU,26.55,EQUIPMENT,DIRECT MARKETING-OTHER DIRECT MARKETERS/NOT ELSEW.,5969
18/07/2016,http://opendatacommunities.org/id/county-council/surrey,Surrey,http://id.esd.org.uk/service/1465,Council expenditure,05/04/2016,TRANSPORT,PAYPAL  MARK MARK,17.33,COMPUTER CONSUMABLES,TELECOMMUNICATION EQUIPMENT INCL TELEPHONE SALES,4812
18/07/2016,http://opendatacommunities.org/id/county-council/surrey,Surrey,http://id.esd.org.uk/service/1465,Council expenditure,05/04/2016,CHEYNE WALK COMMUNITY HOME,KFC - THORPE PARK,58.59,EDUC VISITS/HOLS/CAMPS/TOYS,FAST FOOD RESTAURANTS,5814
18/07/2016,http://opendatacommunities.org/id/county-council/surrey,Surrey,http://id.esd.org.uk/service/1465,Council expenditure,05/04/2016,HILLSIDE,SAINSBURYS PFS 0103,46.25,NON-STAFF RELATED TRANSPORT COSTS,SERVICE STATIONS WITH OR WITHOUT ANCILLARY SERVICE,5541
18/07/2016,http://opendatacommunities.org/id/county-council/surrey,Surrey,http://id.esd.org.uk/service/1465,Council expenditure,05/04/2016,ASSET PLANNING GROUP,AMAZON UK MARKETPLACE,19.99,EQUIPMENT,BOOK STORES,5942
18/07/2016,http://opendatacommunities.org/id/county-council/surrey,Surrey,http://id.esd.org.uk/service/1465,Council expenditure,05/04/2016,TRANSPORT,AMAZON EU,23.18,COMPUTER HARDWARE,DIRECT MARKETING-OTHER DIRECT MARKETERS/NOT ELSEW.,5969
18/07/2016,http://opendatacommunities.org/id/county-council/surrey,Surrey,http://id.esd.org.uk/service/1465,Council expenditure,05/04/2016,TRANSPORT,AMAZON UK MARKETPLACE,19.97,OPERATIONAL FIRE EQUIPMENT,BOOK STORES,5942
18/07/2016,http://opendatacommunities.org/id/county-council/surrey,Surrey,http://id.esd.org.uk/service/1465,Council expenditure,05/04/2016,WOODLANDS COMMUNITY HOME,M6 TOLL,4,NON-STAFF RELATED TRANSPORT COSTS,"BRIDGE AND ROAD FEES, TOLLS",4784
18/07/2016,http://opendatacommunities.org/id/county-council/surrey,Surrey,http://id.esd.org.uk/service/1465,Council expenditure,05/04/2016,DCLG FIRE CONTROL GRANT (CAPITAL),ARGOS RETAIL GROUP,197.99,CE04 CAPITAL ICT,DISCOUNT STORES,5310
18/07/2016,http://opendatacommunities.org/id/county-council/surrey,Surrey,http://id.esd.org.uk/service/1465,Council expenditure,05/04/2016,TRANSPORT,AMAZON UK MARKETPLACE,14.9,COMPUTER CONSUMABLES,BOOK STORES,5942
18/07/2016,http://opendatacommunities.org/id/county-council/surrey,Surrey,http://id.esd.org.uk/service/1465,Council expenditure,05/04/2016,ASH YC,CO-OP GROUP FOOD,6.32,CURRICULUM CONSUMABLES,"GROCERY STORES, SUPERMARKETS",5411
18/07/2016,http://opendatacommunities.org/id/county-council/surrey,Surrey,http://id.esd.org.uk/service/1465,Council expenditure,05/04/2016,ROW VOLUNTEERS EAST                     ,RJAS LTD,95.53,EQUIPMENT,HARDWARE EQUIPMENT AND SUPPLIES,5072
18/07/2016,http://opendatacommunities.org/id/county-council/surrey,Surrey,http://id.esd.org.uk/service/1465,Council expenditure,05/04/2016,GUILDFORD YC,ASDA STORES,3.89,PURCHASE OF FOOD (RAW MATERIALS),"GROCERY STORES, SUPERMARKETS",5411
18/07/2016,http://opendatacommunities.org/id/county-council/surrey,Surrey,http://id.esd.org.uk/service/1465,Council expenditure,05/04/2016,LEAP WOKING,AMAZON UK MARKETPLACE,4.05,EQUIPMENT,BOOK STORES,5942
18/07/2016,http://opendatacommunities.org/id/county-council/surrey,Surrey,http://id.esd.org.uk/service/1465,Council expenditure,05/04/2016,WOODLANDS COMMUNITY HOME,SAINSBURYS 0686,68,CLEANING MATERIALS,"GROCERY STORES, SUPERMARKETS",5411
18/07/2016,http://opendatacommunities.org/id/county-council/surrey,Surrey,http://id.esd.org.uk/service/1465,Council expenditure,05/04/2016,WOODLANDS COMMUNITY HOME,SAINSBURYS 0686,7.85,PURCHASE OF FOOD (RAW MATERIALS),"GROCERY STORES, SUPERMARKETS",5411
18/07/2016,http://opendatacommunities.org/id/county-council/surrey,Surrey,http://id.esd.org.uk/service/1465,Council expenditure,05/04/2016,WOODLANDS COMMUNITY HOME,SAINSBURYS 0686,48.12,PURCHASE OF FOOD (RAW MATERIALS),"GROCERY STORES, SUPERMARKETS",5411
18/07/2016,http://opendatacommunities.org/id/county-council/surrey,Surrey,http://id.esd.org.uk/service/1465,Council expenditure,05/04/2016,TRAINING AND DEVELOPMENT,HUMAN FOCUS INT,30,TRAINING EXPENSES EXTERNAL GENERAL,"COLLEGES, UNIV, PRO SCHOOLS, JUNIOR COLLEGES",8220
18/07/2016,http://opendatacommunities.org/id/county-council/surrey,Surrey,http://id.esd.org.uk/service/1465,Council expenditure,05/04/2016,SOLD DAY TO DAY OPERATIONS,AMAZON UK MARKETPLACE,58.98,EQUIPMENT,BOOK STORES,5942
18/07/2016,http://opendatacommunities.org/id/county-council/surrey,Surrey,http://id.esd.org.uk/service/1465,Council expenditure,05/04/2016,SCHOOL GAMES LOC 2015-16                ,PRINTED.COM,92.12,PRINTING,"QUICK COPY,REPRODUCTION AND BLUEPRINTING SERVICES",7338
18/07/2016,http://opendatacommunities.org/id/county-council/surrey,Surrey,http://id.esd.org.uk/service/1465,Council expenditure,05/04/2016,BURBANK COMMUNITY HOME,W M MORRISONS,21.83,PURCHASE OF FOOD (RAW MATERIALS),"GROCERY STORES, SUPERMARKETS",5411
18/07/2016,http://opendatacommunities.org/id/county-council/surrey,Surrey,http://id.esd.org.uk/service/1465,Council expenditure,05/04/2016,HILLSIDE,SAINSBURYS 0675,61.83,PURCHASE OF FOOD (RAW MATERIALS),"GROCERY STORES, SUPERMARKETS",5411
18/07/2016,http://opendatacommunities.org/id/county-council/surrey,Surrey,http://id.esd.org.uk/service/1465,Council expenditure,05/04/2016,TRANSPORT,CURRYS ONLINE,559.98,EQUIPMENT,ELECTRONIC SALES,5732
18/07/2016,http://opendatacommunities.org/id/county-council/surrey,Surrey,http://id.esd.org.uk/service/1465,Council expenditure,05/04/2016,TRANSPORT,AMAZON UK MARKETPLACE,3.49,DAY TO DAY MAINTENANCE,BOOK STORES,5942
18/07/2016,http://opendatacommunities.org/id/county-council/surrey,Surrey,http://id.esd.org.uk/service/1465,Council expenditure,05/04/2016,TRANSPORT,CHARNLEY ARMS,35.63,OPERATIONAL FIRE EQUIPMENT,"BAR,LOUNGE,DISCO,NIGHTCLUB,TAVERN-ALCOHOLIC DRINKS",5813
18/07/2016,http://opendatacommunities.org/id/county-council/surrey,Surrey,http://id.esd.org.uk/service/1465,Council expenditure,05/04/2016,LEAP BUDGET,SPACEKRAFT.CO.UK,27.54,EDUC VISITS/HOLS/CAMPS/TOYS,DIRECT MARKETING-CONTINUITY/SUBSCRIPTION MERCHANTS,5968
18/07/2016,http://opendatacommunities.org/id/county-council/surrey,Surrey,http://id.esd.org.uk/service/1465,Council expenditure,05/04/2016,CHEYNE WALK COMMUNITY HOME,THORPE PARK RESORT,11.1,PURCHASE OF FOOD (RAW MATERIALS),"AMUSEMENT PARKS,CARNIVALS,CIRCUS,FORTUNE TELLERS",7996
18/07/2016,http://opendatacommunities.org/id/county-council/surrey,Surrey,http://id.esd.org.uk/service/1465,Council expenditure,05/04/2016,LEAP WOKING,AMAZON UK MARKETPLACE,6.99,EQUIPMENT,BOOK STORES,5942
18/07/2016,http://opendatacommunities.org/id/county-council/surrey,Surrey,http://id.esd.org.uk/service/1465,Council expenditure,05/04/2016,ELMBRIDGE STAFFING,THE BIG APPLE,35.8,EDUC VISITS/HOLS/CAMPS/TOYS,BOWLING ALLEYS,7933
18/07/2016,http://opendatacommunities.org/id/county-council/surrey,Surrey,http://id.esd.org.uk/service/1465,Council expenditure,05/04/2016,LEAP BUDGET,WWW.SMARTKIDS2.CO.UK,24.18,EDUC VISITS/HOLS/CAMPS/TOYS,SCHOOLS & EDUCATIONAL SVC-NOT ELSEWHERE CLASSIFIED,8299
18/07/2016,http://opendatacommunities.org/id/county-council/surrey,Surrey,http://id.esd.org.uk/service/1465,Council expenditure,05/04/2016,TRANSPORT,PAYPAL  MARK MARK,17.33,COMPUTER CONSUMABLES,TELECOMMUNICATION EQUIPMENT INCL TELEPHONE SALES,4812
18/07/2016,http://opendatacommunities.org/id/county-council/surrey,Surrey,http://id.esd.org.uk/service/1465,Council expenditure,05/04/2016,PE/CDT MAINTENANCE OVERHEADS,SCREWFIX DIRECT,271.64,EQUIPMENT,"BUILDING MATERIALS, LUMBER STORES",5211
18/07/2016,http://opendatacommunities.org/id/county-council/surrey,Surrey,http://id.esd.org.uk/service/1465,Council expenditure,05/04/2016,BURBANK COMMUNITY HOME,MARTIN MCCOLL,7.19,REFRESHMENT COSTS,"MISC FOOD STORE-CONVENIENCE,MRKT,SPLTY,VENDNG MACS",5499
18/07/2016,http://opendatacommunities.org/id/county-council/surrey,Surrey,http://id.esd.org.uk/service/1465,Council expenditure,05/04/2016,GUILDFORD YC,TICKETOFFICESALE,20.3,NON-STAFF RELATED TRANSPORT COSTS,PASSENGER RAILWAYS,4112
18/07/2016,http://opendatacommunities.org/id/county-council/surrey,Surrey,http://id.esd.org.uk/service/1465,Council expenditure,05/04/2016,PROJECTS AND CONTRACTS GROUP,ARGOS RETAIL GROUP,99.99,EQUIPMENT,DISCOUNT STORES,5310
18/07/2016,http://opendatacommunities.org/id/county-council/surrey,Surrey,http://id.esd.org.uk/service/1465,Council expenditure,05/04/2016,LEAP WOKING,GEORGE WEIL & SONS,11.4,EQUIPMENT,"ARTIST SUPPLY STORES, CRAFT SHOPS",5970
18/07/2016,http://opendatacommunities.org/id/county-council/surrey,Surrey,http://id.esd.org.uk/service/1465,Council expenditure,05/04/2016,SOLD CATERING,DAIRY CREST,52.92,PURCHASE OF FOOD (RAW MATERIALS),"MISC FOOD STORE-CONVENIENCE,MRKT,SPLTY,VENDNG MACS",5499
18/07/2016,http://opendatacommunities.org/id/county-council/surrey,Surrey,http://id.esd.org.uk/service/1465,Council expenditure,05/04/2016,TRANSPORT,PAYPAL  ZNUUKLIMITE,90,DAY TO DAY MAINTENANCE,CHILDREN'S AND INFANT'S WEAR STORES,5641
18/07/2016,http://opendatacommunities.org/id/county-council/surrey,Surrey,http://id.esd.org.uk/service/1465,Council expenditure,05/04/2016,TRAINING,PAYPAL  TAINSIGHT63,132,TRAINING EXPENSES EXTERNAL GENERAL,"CONSULTING, MANAGEMENT, AND PUBLIC RELATIONS SVCS",7392
18/07/2016,http://opendatacommunities.org/id/county-council/surrey,Surrey,http://id.esd.org.uk/service/1465,Council expenditure,05/04/2016,LEAP BUDGET,AMAZON UK MARKETPLACE,29.95,EDUC VISITS/HOLS/CAMPS/TOYS,BOOK STORES,5942
18/07/2016,http://opendatacommunities.org/id/county-council/surrey,Surrey,http://id.esd.org.uk/service/1465,Council expenditure,05/04/2016,CHEYNE WALK COMMUNITY HOME,PICSOLVE INTERNATIONAL,15,EQUIPMENT,PHOTOGRAPHIC STUDIOS,7221
18/07/2016,http://opendatacommunities.org/id/county-council/surrey,Surrey,http://id.esd.org.uk/service/1465,Council expenditure,05/04/2016,TARGETED INTERVENTION,43032200 COSTA COFFEE,10.1,EDUC VISITS/HOLS/CAMPS/TOYS,FAST FOOD RESTAURANTS,5814
18/07/2016,http://opendatacommunities.org/id/county-council/surrey,Surrey,http://id.esd.org.uk/service/1465,Council expenditure,05/04/2016,FRIMLEY YC,CO-OP GROUP 350033,2.35,EQUIPMENT,"GROCERY STORES, SUPERMARKETS",5411
18/07/2016,http://opendatacommunities.org/id/county-council/surrey,Surrey,http://id.esd.org.uk/service/1465,Council expenditure,05/04/2016,TRANSPORT,PAYPAL  RADIOWORLD,102.43,COMPUTER HARDWARE,ELECTRONIC SALES,5732
18/07/2016,http://opendatacommunities.org/id/county-council/surrey,Surrey,http://id.esd.org.uk/service/1465,Council expenditure,05/04/2016,SW CARE - NON-LAC CP & COURT,TRAVELODGE,"1,010.00",CHILDREN ACT SEC 17 PAYMENTS,TRAVELODGE,3615
18/07/2016,http://opendatacommunities.org/id/county-council/surrey,Surrey,http://id.esd.org.uk/service/1465,Council expenditure,05/04/2016,TRAINING SERVICES FOR YOUNG PEOPLE,BRITISH A,148.15,TRAINING EXPENSES EXTERNAL GENERAL,BRITISH A,3005
18/07/2016,http://opendatacommunities.org/id/county-council/surrey,Surrey,http://id.esd.org.uk/service/1465,Council expenditure,05/04/2016,ELMBRIDGE STAFFING,FREEDOM LEISURE,6,EDUC VISITS/HOLS/CAMPS/TOYS,GOVERNMENT SERVICES-NOT ELSEWHERE CLASSIFIED,9399
18/07/2016,http://opendatacommunities.org/id/county-council/surrey,Surrey,http://id.esd.org.uk/service/1465,Council expenditure,05/04/2016,TRANSPORT,CURRYS ONLINE,499.98,E25 CATERING EQUIPMENT,ELECTRONIC SALES,5732
18/07/2016,http://opendatacommunities.org/id/county-council/surrey,Surrey,http://id.esd.org.uk/service/1465,Council expenditure,05/04/2016,TS SERVICE MANAGEMENT,HARLEQUIN THEATRE,156,VENUE COSTS (INCLUDING HIRE OF ROOMS),GOVERNMENT SERVICES-NOT ELSEWHERE CLASSIFIED,9399
18/07/2016,http://opendatacommunities.org/id/county-council/surrey,Surrey,http://id.esd.org.uk/service/1465,Council expenditure,05/04/2016,WOODLANDS COMMUNITY HOME,ALTON TOWERS,59.28,PURCHASE OF FOOD (RAW MATERIALS),"AMUSEMENT PARKS,CARNIVALS,CIRCUS,FORTUNE TELLERS",7996
18/07/2016,http://opendatacommunities.org/id/county-council/surrey,Surrey,http://id.esd.org.uk/service/1465,Council expenditure,05/04/2016,EGHAM YC,TESCO STORES 2017,5.96,REFRESHMENT COSTS,"GROCERY STORES, SUPERMARKETS",5411
18/07/2016,http://opendatacommunities.org/id/county-council/surrey,Surrey,http://id.esd.org.uk/service/1465,Council expenditure,05/04/2016,TRANSPORT,PAYPAL  MLSMARTINLY ML,203.8,COMPUTER HARDWARE,ELECTRONIC SALES,5732
18/07/2016,http://opendatacommunities.org/id/county-council/surrey,Surrey,http://id.esd.org.uk/service/1465,Council expenditure,05/04/2016,FRIMLEY YC,GRAVITY FORCE LTD,3,EDUC VISITS/HOLS/CAMPS/TOYS,RECREATION SERVICES (NOT ELSEWHERE CLASSIFIED),7999
18/07/2016,http://opendatacommunities.org/id/county-council/surrey,Surrey,http://id.esd.org.uk/service/1465,Council expenditure,05/04/2016,LEAP BUDGET,AMAZON UK MARKETPLACE,23.74,EDUC VISITS/HOLS/CAMPS/TOYS,BOOK STORES,5942
18/07/2016,http://opendatacommunities.org/id/county-council/surrey,Surrey,http://id.esd.org.uk/service/1465,Council expenditure,05/04/2016,PROPERTY OPERATIONS TEAM,SHELL KINGSTON HIL,52,PURCHASE OF BUILDING MATERIALS,SERVICE STATIONS WITH OR WITHOUT ANCILLARY SERVICE,5541
18/07/2016,http://opendatacommunities.org/id/county-council/surrey,Surrey,http://id.esd.org.uk/service/1465,Council expenditure,05/04/2016,TRAINING SERVICES FOR YOUNG PEOPLE,EXPEDIA 111549546288,3,TRAINING EXPENSES EXTERNAL GENERAL,TRAVEL AGENCIES AND TOUR OPERATORS,4722
18/07/2016,http://opendatacommunities.org/id/county-council/surrey,Surrey,http://id.esd.org.uk/service/1465,Council expenditure,05/04/2016,LEAP BUDGET,AMAZON EU,12.78,EDUC VISITS/HOLS/CAMPS/TOYS,DIRECT MARKETING-OTHER DIRECT MARKETERS/NOT ELSEW.,5969
18/07/2016,http://opendatacommunities.org/id/county-council/surrey,Surrey,http://id.esd.org.uk/service/1465,Council expenditure,06/04/2016,ELMBRIDGE STAFFING,BP WISLEY SOUTH,29.91,EDUC VISITS/HOLS/CAMPS/TOYS,SERVICE STATIONS WITH OR WITHOUT ANCILLARY SERVICE,5541
18/07/2016,http://opendatacommunities.org/id/county-council/surrey,Surrey,http://id.esd.org.uk/service/1465,Council expenditure,06/04/2016,WOODLANDS COMMUNITY HOME,THE BIG APPLE,23.9,EDUC VISITS/HOLS/CAMPS/TOYS,BOWLING ALLEYS,7933
18/07/2016,http://opendatacommunities.org/id/county-council/surrey,Surrey,http://id.esd.org.uk/service/1465,Council expenditure,06/04/2016,LEAP WOKING,AMAZON UK MARKETPLACE,3.2,EQUIPMENT,BOOK STORES,5942
18/07/2016,http://opendatacommunities.org/id/county-council/surrey,Surrey,http://id.esd.org.uk/service/1465,Council expenditure,06/04/2016,DEPUTYSHIP TEAM,TALKTALK TELECOM,65.81,3RD PARTY PAYMENTS PRIVATE INDIV,COMPUTER NETWORK/INFORMATION SERVICES,4816
18/07/2016,http://opendatacommunities.org/id/county-council/surrey,Surrey,http://id.esd.org.uk/service/1465,Council expenditure,06/04/2016,SW CARE - LAC,GRO HM PASSPORT OFFICE,23.4,LEGAL EXPENSES,GOVERNMENT SERVICES-NOT ELSEWHERE CLASSIFIED,9399
18/07/2016,http://opendatacommunities.org/id/county-council/surrey,Surrey,http://id.esd.org.uk/service/1465,Council expenditure,06/04/2016,CLOSED LANDFILL,VAN WALT AGRICULTURAL,284.4,EQUIPMENT,DIRECT MARKETING-OTHER DIRECT MARKETERS/NOT ELSEW.,5969
18/07/2016,http://opendatacommunities.org/id/county-council/surrey,Surrey,http://id.esd.org.uk/service/1465,Council expenditure,06/04/2016,TRANSPORT,AMAZON EU,37.85,STATIONERY,DIRECT MARKETING-OTHER DIRECT MARKETERS/NOT ELSEW.,5969
18/07/2016,http://opendatacommunities.org/id/county-council/surrey,Surrey,http://id.esd.org.uk/service/1465,Council expenditure,06/04/2016,FAIRCROFT COMMUNITY HOME,KFC - THORPE PARK,7.28,REFRESHMENT COSTS,FAST FOOD RESTAURANTS,5814
18/07/2016,http://opendatacommunities.org/id/county-council/surrey,Surrey,http://id.esd.org.uk/service/1465,Council expenditure,06/04/2016,RUTH HOUSE,MILANO PIZZA,60.96,REFRESHMENT COSTS,"GROCERY STORES, SUPERMARKETS",5411
18/07/2016,http://opendatacommunities.org/id/county-council/surrey,Surrey,http://id.esd.org.uk/service/1465,Council expenditure,06/04/2016,GOGMORE PARK FARM YC,TESCO STORES-2017,3,REFRESHMENT COSTS,"GROCERY STORES, SUPERMARKETS",5411
18/07/2016,http://opendatacommunities.org/id/county-council/surrey,Surrey,http://id.esd.org.uk/service/1465,Council expenditure,06/04/2016,COUNTY HALL,CURRYS ONLINE,269.97,EQUIPMENT,ELECTRONIC SALES,5732
18/07/2016,http://opendatacommunities.org/id/county-council/surrey,Surrey,http://id.esd.org.uk/service/1465,Council expenditure,06/04/2016,BURBANK COMMUNITY HOME,W M MORRISONS,9.66,PURCHASE OF FOOD (RAW MATERIALS),"GROCERY STORES, SUPERMARKETS",5411
18/07/2016,http://opendatacommunities.org/id/county-council/surrey,Surrey,http://id.esd.org.uk/service/1465,Council expenditure,06/04/2016,RUTH HOUSE,ARGOS LTD,8.77,EQUIPMENT,DISCOUNT STORES,5310
18/07/2016,http://opendatacommunities.org/id/county-council/surrey,Surrey,http://id.esd.org.uk/service/1465,Council expenditure,06/04/2016,READY FOR WORK YSS,TESCO STORES 6669,39.99,REFRESHMENT COSTS,"GROCERY STORES, SUPERMARKETS",5411
18/07/2016,http://opendatacommunities.org/id/county-council/surrey,Surrey,http://id.esd.org.uk/service/1465,Council expenditure,06/04/2016,SW CARE - CP & COURT LAC,TRAVELODGE,92,CHILDREN ACT SEC 17 PAYMENTS,TRAVELODGE,3615
18/07/2016,http://opendatacommunities.org/id/county-council/surrey,Surrey,http://id.esd.org.uk/service/1465,Council expenditure,06/04/2016,FAIRCROFT COMMUNITY HOME,HOME BARGAINS BYFLEET,62.8,EQUIPMENT,HARDWARE STORES,5251
18/07/2016,http://opendatacommunities.org/id/county-council/surrey,Surrey,http://id.esd.org.uk/service/1465,Council expenditure,06/04/2016,ARUNDEL,TESCO STORES 5999,100.61,REFRESHMENT COSTS,"GROCERY STORES, SUPERMARKETS",5411
18/07/2016,http://opendatacommunities.org/id/county-council/surrey,Surrey,http://id.esd.org.uk/service/1465,Council expenditure,06/04/2016,DCLG FIRE CONTROL GRANT (CAPITAL),CPC,191.64,CE04 CAPITAL ICT,ELECTRICAL PARTS AND EQUIPMENT,5065
18/07/2016,http://opendatacommunities.org/id/county-council/surrey,Surrey,http://id.esd.org.uk/service/1465,Council expenditure,06/04/2016,ARUNDEL,TESCO STORE 3539,-1.5,REFRESHMENT COSTS,"GROCERY STORES, SUPERMARKETS",5411
18/07/2016,http://opendatacommunities.org/id/county-council/surrey,Surrey,http://id.esd.org.uk/service/1465,Council expenditure,06/04/2016,FAIRCROFT COMMUNITY HOME,THORPE PARK /ENT/,49.99,EDUC VISITS/HOLS/CAMPS/TOYS,"AMUSEMENT PARKS,CARNIVALS,CIRCUS,FORTUNE TELLERS",7996
18/07/2016,http://opendatacommunities.org/id/county-council/surrey,Surrey,http://id.esd.org.uk/service/1465,Council expenditure,06/04/2016,LEAP BUDGET,AMAZON UK MARKETPLACE,15.96,EDUC VISITS/HOLS/CAMPS/TOYS,BOOK STORES,5942
18/07/2016,http://opendatacommunities.org/id/county-council/surrey,Surrey,http://id.esd.org.uk/service/1465,Council expenditure,06/04/2016,SOLD DAY TO DAY OPERATIONS,SOUND AND LIGHT LD,319,EQUIPMENT,ELECTRONIC SALES,5732
18/07/2016,http://opendatacommunities.org/id/county-council/surrey,Surrey,http://id.esd.org.uk/service/1465,Council expenditure,06/04/2016,FRIMLEY YC,THE SOUTHERN CO-OP,6.19,REFRESHMENT COSTS,DEPARTMENT STORES,5311
18/07/2016,http://opendatacommunities.org/id/county-council/surrey,Surrey,http://id.esd.org.uk/service/1465,Council expenditure,06/04/2016,SOUTH EAST AREA TEAM,BELL CARRIAGE LTD,10,NON-STAFF RELATED TRANSPORT COSTS,LIMOUSINES AND TAXICABS,4121
18/07/2016,http://opendatacommunities.org/id/county-council/surrey,Surrey,http://id.esd.org.uk/service/1465,Council expenditure,06/04/2016,NW CARE - LAC,SURREY CC CARD PAY,21,FEES,COMPUTER NETWORK/INFORMATION SERVICES,4816
18/07/2016,http://opendatacommunities.org/id/county-council/surrey,Surrey,http://id.esd.org.uk/service/1465,Council expenditure,06/04/2016,SE CARE - NON-LAC CP & COURT,ARGOS RETAIL GROUP,39.99,CHILDREN ACT SEC 17 PAYMENTS,DISCOUNT STORES,5310
18/07/2016,http://opendatacommunities.org/id/county-council/surrey,Surrey,http://id.esd.org.uk/service/1465,Council expenditure,06/04/2016,"NW REF, ASS & INT SERVICE - HUB 1",SURREY CC CARD PAY,16,FEES,COMPUTER NETWORK/INFORMATION SERVICES,4816
18/07/2016,http://opendatacommunities.org/id/county-council/surrey,Surrey,http://id.esd.org.uk/service/1465,Council expenditure,06/04/2016,HOPE SERVICE - WEST,SAINSBURYS SACAT(4409),13.4,PURCHASE OF FOOD (RAW MATERIALS),"GROCERY STORES, SUPERMARKETS",5411
18/07/2016,http://opendatacommunities.org/id/county-council/surrey,Surrey,http://id.esd.org.uk/service/1465,Council expenditure,06/04/2016,KARIBU COMMUNITY HOME,SAINSBURYS 0683,27.45,EQUIPMENT,"GROCERY STORES, SUPERMARKETS",5411
18/07/2016,http://opendatacommunities.org/id/county-council/surrey,Surrey,http://id.esd.org.uk/service/1465,Council expenditure,06/04/2016,CORPORATE GROUP - LEGAL SERVICES,MARKS&SPENCER PLC,49.5,REFRESHMENT COSTS,"GROCERY STORES, SUPERMARKETS",5411
18/07/2016,http://opendatacommunities.org/id/county-council/surrey,Surrey,http://id.esd.org.uk/service/1465,Council expenditure,06/04/2016,HOPE SERVICE - EAST,SAINSBURYS 0683,51.76,PURCHASE OF FOOD (RAW MATERIALS),"GROCERY STORES, SUPERMARKETS",5411
18/07/2016,http://opendatacommunities.org/id/county-council/surrey,Surrey,http://id.esd.org.uk/service/1465,Council expenditure,06/04/2016,MALLOW CRESCENT,SAINSBURYS TO YOU 0686,13.75,PURCHASE OF FOOD (RAW MATERIALS),"GROCERY STORES, SUPERMARKETS",5411
18/07/2016,http://opendatacommunities.org/id/county-council/surrey,Surrey,http://id.esd.org.uk/service/1465,Council expenditure,06/04/2016,MALLOW CRESCENT,SAINSBURYS TO YOU 0686,89.7,PURCHASE OF FOOD (RAW MATERIALS),"GROCERY STORES, SUPERMARKETS",5411
18/07/2016,http://opendatacommunities.org/id/county-council/surrey,Surrey,http://id.esd.org.uk/service/1465,Council expenditure,06/04/2016,PE/CDT MAINTENANCE OVERHEADS,BEACON ELECTRIC(GUILDF,86.36,EQUIPMENT,ELECTRICAL PARTS AND EQUIPMENT,5065
18/07/2016,http://opendatacommunities.org/id/county-council/surrey,Surrey,http://id.esd.org.uk/service/1465,Council expenditure,06/04/2016,CHEYNE WALK COMMUNITY HOME,AMFBOWLING.CO.UK,34.85,EDUC VISITS/HOLS/CAMPS/TOYS,BOWLING ALLEYS,7933
18/07/2016,http://opendatacommunities.org/id/county-council/surrey,Surrey,http://id.esd.org.uk/service/1465,Council expenditure,06/04/2016,TRANSPORT,AMAZON EU,6.49,COMPUTER CONSUMABLES,DIRECT MARKETING-OTHER DIRECT MARKETERS/NOT ELSEW.,5969
18/07/2016,http://opendatacommunities.org/id/county-council/surrey,Surrey,http://id.esd.org.uk/service/1465,Council expenditure,06/04/2016,HOPE SERVICE - EAST,ANCHOR FAST PRODUC,410.4,CURRICULUM EQUIPMENT AND FURNITURE,"EQUIP, FURNITURE, HOME FURNSHNGS STRS (EXCPT APPL)",5712
18/07/2016,http://opendatacommunities.org/id/county-council/surrey,Surrey,http://id.esd.org.uk/service/1465,Council expenditure,06/04/2016,RUTH HOUSE,AMAZON UK MARKETPLACE,10.92,EDUC VISITS/HOLS/CAMPS/TOYS,BOOK STORES,5942
18/07/2016,http://opendatacommunities.org/id/county-council/surrey,Surrey,http://id.esd.org.uk/service/1465,Council expenditure,06/04/2016,BURBANK COMMUNITY HOME,THORPE PARK RESORT,17.85,REFRESHMENT COSTS,"AMUSEMENT PARKS,CARNIVALS,CIRCUS,FORTUNE TELLERS",7996
18/07/2016,http://opendatacommunities.org/id/county-council/surrey,Surrey,http://id.esd.org.uk/service/1465,Council expenditure,06/04/2016,SW SECTION 17 CARE,TRAVELODGE,585.65,CHILDREN ACT SEC 17 PAYMENTS,TRAVELODGE,3615
18/07/2016,http://opendatacommunities.org/id/county-council/surrey,Surrey,http://id.esd.org.uk/service/1465,Council expenditure,06/04/2016,HILLSIDE,SAINSBURYS 0675,11.9,PURCHASE OF FOOD (RAW MATERIALS),"GROCERY STORES, SUPERMARKETS",5411
18/07/2016,http://opendatacommunities.org/id/county-council/surrey,Surrey,http://id.esd.org.uk/service/1465,Council expenditure,06/04/2016,HILLSIDE,SAINSBURYS 0675,41.12,PURCHASE OF FOOD (RAW MATERIALS),"GROCERY STORES, SUPERMARKETS",5411
18/07/2016,http://opendatacommunities.org/id/county-council/surrey,Surrey,http://id.esd.org.uk/service/1465,Council expenditure,06/04/2016,IMPROVING OUTCOMES - ECAT,WWW.SUSSEX.AC.UK,100,SUBSISTENCE AND CONFERENCE EXPENSES,"COLLEGES, UNIV, PRO SCHOOLS, JUNIOR COLLEGES",8220
18/07/2016,http://opendatacommunities.org/id/county-council/surrey,Surrey,http://id.esd.org.uk/service/1465,Council expenditure,06/04/2016,TRAINING AND DEVELOPMENT,PINCENTS MANOR,260,TRAINING EXPENSES EXTERNAL GENERAL,"LODGING-HOTELS,MOTELS,RESORTS-NOT CLASSIFIED",7011
18/07/2016,http://opendatacommunities.org/id/county-council/surrey,Surrey,http://id.esd.org.uk/service/1465,Council expenditure,06/04/2016,SPLASH PROJECT,AMAZON UK MARKETPLACE,16.94,EDUC VISITS/HOLS/CAMPS/TOYS,MISCELLANEOUS AND SPECIALTY RETAIL STORES,5999
18/07/2016,http://opendatacommunities.org/id/county-council/surrey,Surrey,http://id.esd.org.uk/service/1465,Council expenditure,06/04/2016,SFRS TRAINING,QUALSAFE LTD,93.6,TRAINING EXPENSES EXTERNAL GENERAL,SCHOOLS & EDUCATIONAL SVC-NOT ELSEWHERE CLASSIFIED,8299
18/07/2016,http://opendatacommunities.org/id/county-council/surrey,Surrey,http://id.esd.org.uk/service/1465,Council expenditure,06/04/2016,SFRS TRAINING,QUALSAFE LTD,1.87,TRAINING EXPENSES EXTERNAL GENERAL,SCHOOLS & EDUCATIONAL SVC-NOT ELSEWHERE CLASSIFIED,8299
18/07/2016,http://opendatacommunities.org/id/county-council/surrey,Surrey,http://id.esd.org.uk/service/1465,Council expenditure,06/04/2016,CHEYNE WALK COMMUNITY HOME,SAINSBURYS TO YOU 0026,190.52,PURCHASE OF FOOD (RAW MATERIALS),"GROCERY STORES, SUPERMARKETS",5411
18/07/2016,http://opendatacommunities.org/id/county-council/surrey,Surrey,http://id.esd.org.uk/service/1465,Council expenditure,06/04/2016,BURBANK COMMUNITY HOME,SAINSBURYS TO YOU 0686,322.76,PURCHASE OF FOOD (RAW MATERIALS),"GROCERY STORES, SUPERMARKETS",5411
18/07/2016,http://opendatacommunities.org/id/county-council/surrey,Surrey,http://id.esd.org.uk/service/1465,Council expenditure,06/04/2016,DEVELOPMENT TEAM,POWTOON LTD,200.02,COMPUTER SOFTWARE,MISCELLANEOUS AND SPECIALTY RETAIL STORES,5999
18/07/2016,http://opendatacommunities.org/id/county-council/surrey,Surrey,http://id.esd.org.uk/service/1465,Council expenditure,06/04/2016,SOVEREIGNS YC,AMFBOWLING.CO.UK,157.4,EDUC VISITS/HOLS/CAMPS/TOYS,BOWLING ALLEYS,7933
18/07/2016,http://opendatacommunities.org/id/county-council/surrey,Surrey,http://id.esd.org.uk/service/1465,Council expenditure,06/04/2016,ADOPTION TEAM,AMAZON UK MARKETPLACE,35.45,STATIONERY,BOOK STORES,5942
18/07/2016,http://opendatacommunities.org/id/county-council/surrey,Surrey,http://id.esd.org.uk/service/1465,Council expenditure,06/04/2016,WORKPLACE COMMERCIAL TEAM,LIVERPOOL CITY COUNCIL,-300,PUBLICITY,GOVERNMENT SERVICES-NOT ELSEWHERE CLASSIFIED,9399
18/07/2016,http://opendatacommunities.org/id/county-council/surrey,Surrey,http://id.esd.org.uk/service/1465,Council expenditure,06/04/2016,SOLD ESTATES MANAGEMENT,CITY ELECTRICAL FA,9.22,DAY TO DAY MAINTENANCE,"BUILDING MATERIALS, LUMBER STORES",5211
18/07/2016,http://opendatacommunities.org/id/county-council/surrey,Surrey,http://id.esd.org.uk/service/1465,Council expenditure,06/04/2016,LEAP WOKING,AMAZON UK MARKETPLACE,3.7,EQUIPMENT,BOOK STORES,5942
18/07/2016,http://opendatacommunities.org/id/county-council/surrey,Surrey,http://id.esd.org.uk/service/1465,Council expenditure,06/04/2016,TRANSPORT,PAYPAL  PROFESSIONA,37.35,COMPUTER CONSUMABLES,PROFESSIONAL SERVICES-NOT ELSEWHERE CLASSIFIED,8999
18/07/2016,http://opendatacommunities.org/id/county-council/surrey,Surrey,http://id.esd.org.uk/service/1465,Council expenditure,06/04/2016,FAIRCROFT COMMUNITY HOME,THORPE PARK /ENT/,49.99,EDUC VISITS/HOLS/CAMPS/TOYS,"AMUSEMENT PARKS,CARNIVALS,CIRCUS,FORTUNE TELLERS",7996
18/07/2016,http://opendatacommunities.org/id/county-council/surrey,Surrey,http://id.esd.org.uk/service/1465,Council expenditure,06/04/2016,BURBANK COMMUNITY HOME,BURGER KING,14.48,REFRESHMENT COSTS,"EATING PLACES, RESTAURANTS",5812
18/07/2016,http://opendatacommunities.org/id/county-council/surrey,Surrey,http://id.esd.org.uk/service/1465,Council expenditure,06/04/2016,CHEYNE WALK COMMUNITY HOME,AMF BOWLING,9.57,PURCHASE OF FOOD (RAW MATERIALS),"CLUBS-CNTRY,MBRSHIP(ATHLET,REC,SPRTS,PRIVATE GOLF",7997
18/07/2016,http://opendatacommunities.org/id/county-council/surrey,Surrey,http://id.esd.org.uk/service/1465,Council expenditure,06/04/2016,CSF COMMUNICATIONS TEAM,HOOTSUITE MEDIA INC.,9.59,SUBSCRIPTIONS,BUSINESS SERVICES-NOT ELSEWHERE CLASSIFIED,7399
18/07/2016,http://opendatacommunities.org/id/county-council/surrey,Surrey,http://id.esd.org.uk/service/1465,Council expenditure,06/04/2016,DOWNLANDS COUNTRYSIDE PROJECT,THE OUTDOORS COMPANY,104.99,"CLOTHING, UNIFORM AND LAUNDRY",SPORTING GOODS STORES,5941
18/07/2016,http://opendatacommunities.org/id/county-council/surrey,Surrey,http://id.esd.org.uk/service/1465,Council expenditure,06/04/2016,COUNTY HALL,FINERFILTERS LTD,223.84,DAY TO DAY MAINTENANCE,AIR CONDITIONING AND REFRIGERATION REPAIR SHOPS,7623
18/07/2016,http://opendatacommunities.org/id/county-council/surrey,Surrey,http://id.esd.org.uk/service/1465,Council expenditure,06/04/2016,HOLLAND CLOSE RESIDENTIAL HOME,WILKO RETAIL LIMIT,19,EQUIPMENT,HOUSEHOLD APPLIANCE STORES,5722
18/07/2016,http://opendatacommunities.org/id/county-council/surrey,Surrey,http://id.esd.org.uk/service/1465,Council expenditure,06/04/2016,WORKPLACE COMMERCIAL TEAM,LIVERPOOL CITY COUNCIL,-300,PUBLICITY,GOVERNMENT SERVICES-NOT ELSEWHERE CLASSIFIED,9399
18/07/2016,http://opendatacommunities.org/id/county-council/surrey,Surrey,http://id.esd.org.uk/service/1465,Council expenditure,06/04/2016,PE/CDT MAINTENANCE OVERHEADS,ANDREW PAGE LTD,62.4,EQUIPMENT,"AUTOMOTIVE PARTS, ACCESSORIES STORES",5533
18/07/2016,http://opendatacommunities.org/id/county-council/surrey,Surrey,http://id.esd.org.uk/service/1465,Council expenditure,06/04/2016,AD OPERATIONS HIGHWAYS AND COUNTRYSIDE,WWW.NEOPOST.CO.UK,510,POSTAGE AND COURIER CHARGES,STATIONERY/OFFICE SUPPLIES/PRINTING & WRITING PAP.,5111
18/07/2016,http://opendatacommunities.org/id/county-council/surrey,Surrey,http://id.esd.org.uk/service/1465,Council expenditure,06/04/2016,BELLFIELDS YC,SPORTSDIRECT,17.98,EQUIPMENT,SPORTING GOODS STORES,5941
18/07/2016,http://opendatacommunities.org/id/county-council/surrey,Surrey,http://id.esd.org.uk/service/1465,Council expenditure,06/04/2016,LEAP WOKING,WWW.BAKERROSS.CO.UK,30.89,EQUIPMENT,"ARTIST SUPPLY STORES, CRAFT SHOPS",5970
18/07/2016,http://opendatacommunities.org/id/county-council/surrey,Surrey,http://id.esd.org.uk/service/1465,Council expenditure,06/04/2016,QUADRANT COURT WOKING,B AND Q 1029,51,EQUIPMENT,"BUILDING MATERIALS, LUMBER STORES",5211
18/07/2016,http://opendatacommunities.org/id/county-council/surrey,Surrey,http://id.esd.org.uk/service/1465,Council expenditure,06/04/2016,SW CARE - LAC,SURREY CC CARD PAY,17,LEGAL EXPENSES,COMPUTER NETWORK/INFORMATION SERVICES,4816
18/07/2016,http://opendatacommunities.org/id/county-council/surrey,Surrey,http://id.esd.org.uk/service/1465,Council expenditure,06/04/2016,NW YOUTH WORKERS - SPELTHORNE,AMAZON EU,18.98,BOOKS,DIRECT MARKETING-OTHER DIRECT MARKETERS/NOT ELSEW.,5969
18/07/2016,http://opendatacommunities.org/id/county-council/surrey,Surrey,http://id.esd.org.uk/service/1465,Council expenditure,06/04/2016,COVEHAM,SAINSBURYS TO YOU 0687,10.25,REFRESHMENT COSTS,"GROCERY STORES, SUPERMARKETS",5411
18/07/2016,http://opendatacommunities.org/id/county-council/surrey,Surrey,http://id.esd.org.uk/service/1465,Council expenditure,06/04/2016,COVEHAM,SAINSBURYS TO YOU 0687,154.13,REFRESHMENT COSTS,"GROCERY STORES, SUPERMARKETS",5411
18/07/2016,http://opendatacommunities.org/id/county-council/surrey,Surrey,http://id.esd.org.uk/service/1465,Council expenditure,06/04/2016,STOUGHTON YC,RYMAN,7.98,STATIONERY,"OFFICE, SCHOOL SUPPLY, AND STATIONERY STORES",5943
18/07/2016,http://opendatacommunities.org/id/county-council/surrey,Surrey,http://id.esd.org.uk/service/1465,Council expenditure,06/04/2016,ASSET PLANNING - OPERATIONS,B AND Q 1029,84,EQUIPMENT,"BUILDING MATERIALS, LUMBER STORES",5211
18/07/2016,http://opendatacommunities.org/id/county-council/surrey,Surrey,http://id.esd.org.uk/service/1465,Council expenditure,06/04/2016,TRAINING SERVICES FOR YOUNG PEOPLE,TRAVELODGE,37,TRAINING EXPENSES EXTERNAL GENERAL,TRAVELODGE,3615
18/07/2016,http://opendatacommunities.org/id/county-council/surrey,Surrey,http://id.esd.org.uk/service/1465,Council expenditure,06/04/2016,APPLEWOOD,WIGHTMAN & PARRISH LTD,44.11,CLEANING MATERIALS,DENTAL/LAB/MED/OPHTHALMIC HOSP EQUIP & SUPPLIES,5047
18/07/2016,http://opendatacommunities.org/id/county-council/surrey,Surrey,http://id.esd.org.uk/service/1465,Council expenditure,06/04/2016,PE/CDT MAINTENANCE OVERHEADS,MARGNOR FASTENERS,160.92,EQUIPMENT,MISCELLANEOUS AND SPECIALTY RETAIL STORES,5999
18/07/2016,http://opendatacommunities.org/id/county-council/surrey,Surrey,http://id.esd.org.uk/service/1465,Council expenditure,06/04/2016,TRAINING AND DEVELOPMENT,WWW.CFOASERVICES.CO.UK,396,SUBSISTENCE AND CONFERENCE EXPENSES,"ORGANIZATIONS, MEMBERSHIP-NOT ELSEWHERE CLASSIFIED",8699
18/07/2016,http://opendatacommunities.org/id/county-council/surrey,Surrey,http://id.esd.org.uk/service/1465,Council expenditure,06/04/2016,NW EDUCATION WELFARE OFFICERS,AMAZON EU,19.98,BOOKS,DIRECT MARKETING-OTHER DIRECT MARKETERS/NOT ELSEW.,5969
18/07/2016,http://opendatacommunities.org/id/county-council/surrey,Surrey,http://id.esd.org.uk/service/1465,Council expenditure,06/04/2016,TRANSPORT,CPC,168.71,COMPUTER CONSUMABLES,ELECTRICAL PARTS AND EQUIPMENT,5065
18/07/2016,http://opendatacommunities.org/id/county-council/surrey,Surrey,http://id.esd.org.uk/service/1465,Council expenditure,06/04/2016,WOODLANDS COMMUNITY HOME,ATG TICKETS,179.5,EDUC VISITS/HOLS/CAMPS/TOYS,"THEATRICAL PRODUCERS(EXCL MOTION PIX),TICKET AGNCY",7922
18/07/2016,http://opendatacommunities.org/id/county-council/surrey,Surrey,http://id.esd.org.uk/service/1465,Council expenditure,06/04/2016,NW CARE - NON-LAC CP & COURT,GRO HM PASSPORT OFFICE,9.25,CHILDREN ACT SEC 17 PAYMENTS,GOVERNMENT SERVICES-NOT ELSEWHERE CLASSIFIED,9399
18/07/2016,http://opendatacommunities.org/id/county-council/surrey,Surrey,http://id.esd.org.uk/service/1465,Council expenditure,06/04/2016,EGHAM YC,CRAGGY ISLAND LTD,5.55,REFRESHMENT COSTS,"CLUBS-CNTRY,MBRSHIP(ATHLET,REC,SPRTS,PRIVATE GOLF",7997
18/07/2016,http://opendatacommunities.org/id/county-council/surrey,Surrey,http://id.esd.org.uk/service/1465,Council expenditure,06/04/2016,LEAP WOKING,AMAZON UK MARKETPLACE,4.77,EQUIPMENT,BOOK STORES,5942
18/07/2016,http://opendatacommunities.org/id/county-council/surrey,Surrey,http://id.esd.org.uk/service/1465,Council expenditure,06/04/2016,SPLASH PROJECT,AMAZON UK MARKETPLACE,9,EDUC VISITS/HOLS/CAMPS/TOYS,MISCELLANEOUS AND SPECIALTY RETAIL STORES,5999
18/07/2016,http://opendatacommunities.org/id/county-council/surrey,Surrey,http://id.esd.org.uk/service/1465,Council expenditure,07/04/2016,EGHAM YC,DEMON SERVICE STATION,29.75,VEHICLE RUNNING COSTS,SERVICE STATIONS WITH OR WITHOUT ANCILLARY SERVICE,5541
18/07/2016,http://opendatacommunities.org/id/county-council/surrey,Surrey,http://id.esd.org.uk/service/1465,Council expenditure,07/04/2016,EXTENDED HOPE,BP WISLEY SOUTH,10.55,PURCHASE OF FOOD (RAW MATERIALS),SERVICE STATIONS WITH OR WITHOUT ANCILLARY SERVICE,5541
18/07/2016,http://opendatacommunities.org/id/county-council/surrey,Surrey,http://id.esd.org.uk/service/1465,Council expenditure,07/04/2016,ASSET STRATEGY & PLANNING MANAGER,RICS,174,TRAINING EXPENSES EXTERNAL GENERAL,"ORGANIZATIONS, MEMBERSHIP-NOT ELSEWHERE CLASSIFIED",8699
18/07/2016,http://opendatacommunities.org/id/county-council/surrey,Surrey,http://id.esd.org.uk/service/1465,Council expenditure,07/04/2016,KARIBU COMMUNITY HOME,PARENTPAY.COM,70,PURCHASE OF FOOD (RAW MATERIALS),"COLLEGES, UNIV, PRO SCHOOLS, JUNIOR COLLEGES",8220
18/07/2016,http://opendatacommunities.org/id/county-council/surrey,Surrey,http://id.esd.org.uk/service/1465,Council expenditure,07/04/2016,SUNBURY YC,TESCO STORE 3220,18.6,PURCHASE OF FOOD (RAW MATERIALS),"GROCERY STORES, SUPERMARKETS",5411
18/07/2016,http://opendatacommunities.org/id/county-council/surrey,Surrey,http://id.esd.org.uk/service/1465,Council expenditure,07/04/2016,BUSINESS AND COMPLIANCE TEAM            ,KINGSCROFTL,13.98,EQUIPMENT,BUSINESS SERVICES-NOT ELSEWHERE CLASSIFIED,7399
18/07/2016,http://opendatacommunities.org/id/county-council/surrey,Surrey,http://id.esd.org.uk/service/1465,Council expenditure,07/04/2016,NORTH EAST AREA TEAM,SAINSBURYS 0679,23.36,REFRESHMENT COSTS,"GROCERY STORES, SUPERMARKETS",5411
18/07/2016,http://opendatacommunities.org/id/county-council/surrey,Surrey,http://id.esd.org.uk/service/1465,Council expenditure,07/04/2016,ACL CENTRAL EXPENDITURE,AMAZON EU,63.89,COMPUTER HARDWARE,DIRECT MARKETING-OTHER DIRECT MARKETERS/NOT ELSEW.,5969
18/07/2016,http://opendatacommunities.org/id/county-council/surrey,Surrey,http://id.esd.org.uk/service/1465,Council expenditure,07/04/2016,ENGLEFIELD GREEN YOUTH CENTRE,TESCO STORES 2454,15.92,CURRICULUM CONSUMABLES,"GROCERY STORES, SUPERMARKETS",5411
18/07/2016,http://opendatacommunities.org/id/county-council/surrey,Surrey,http://id.esd.org.uk/service/1465,Council expenditure,07/04/2016,COUNTY HALL,SAINSBURYS 0032,6.65,CLEANING AND DOMESTIC SUPPLIES,"GROCERY STORES, SUPERMARKETS",5411
18/07/2016,http://opendatacommunities.org/id/county-council/surrey,Surrey,http://id.esd.org.uk/service/1465,Council expenditure,07/04/2016,RUTH HOUSE,WWW.NISBETS.COM,200.74,EQUIPMENT,DIRECT MARKETING-CATALOG MERCHANTS,5964
18/07/2016,http://opendatacommunities.org/id/county-council/surrey,Surrey,http://id.esd.org.uk/service/1465,Council expenditure,07/04/2016,SW CARE - NON-LAC CP & COURT,TRAVELODGE,162,CHILDREN ACT SEC 17 PAYMENTS,TRAVELODGE,3615
18/07/2016,http://opendatacommunities.org/id/county-council/surrey,Surrey,http://id.esd.org.uk/service/1465,Council expenditure,07/04/2016,SOVEREIGNS YC,W M MORRISONS,21.36,PURCHASE OF FOOD (RAW MATERIALS),"GROCERY STORES, SUPERMARKETS",5411
18/07/2016,http://opendatacommunities.org/id/county-council/surrey,Surrey,http://id.esd.org.uk/service/1465,Council expenditure,07/04/2016,TARGETED INTERVENTION,MCDONALDS,3.97,EDUC VISITS/HOLS/CAMPS/TOYS,"EATING PLACES, RESTAURANTS",5812
18/07/2016,http://opendatacommunities.org/id/county-council/surrey,Surrey,http://id.esd.org.uk/service/1465,Council expenditure,07/04/2016,THE STREET YC,WM MORRISONS,19.32,PURCHASE OF FOOD (RAW MATERIALS),"GROCERY STORES, SUPERMARKETS",5411
18/07/2016,http://opendatacommunities.org/id/county-council/surrey,Surrey,http://id.esd.org.uk/service/1465,Council expenditure,07/04/2016,OLD DEAN YC,SAINSBURYS SACAT (4115,9.45,PURCHASE OF FOOD (RAW MATERIALS),"GROCERY STORES, SUPERMARKETS",5411
18/07/2016,http://opendatacommunities.org/id/county-council/surrey,Surrey,http://id.esd.org.uk/service/1465,Council expenditure,07/04/2016,PASSENGER TRANSPORT INITIATIVES,WWW.TRANSPORTXTRA.COM,120,SUBSCRIPTIONS,BUSINESS SERVICES-NOT ELSEWHERE CLASSIFIED,7399
18/07/2016,http://opendatacommunities.org/id/county-council/surrey,Surrey,http://id.esd.org.uk/service/1465,Council expenditure,07/04/2016,PASSENGER TRANSPORT INITIATIVES,WWW.TRANSPORTXTRA.COM,300,SUBSCRIPTIONS,BUSINESS SERVICES-NOT ELSEWHERE CLASSIFIED,7399
18/07/2016,http://opendatacommunities.org/id/county-council/surrey,Surrey,http://id.esd.org.uk/service/1465,Council expenditure,07/04/2016,LOWER MOLE COUNTRYSIDE PROJECT,PAYPAL  TOTALLYWELL,133.85,"CLOTHING, UNIFORM AND LAUNDRY",SHOE STORES,5661
18/07/2016,http://opendatacommunities.org/id/county-council/surrey,Surrey,http://id.esd.org.uk/service/1465,Council expenditure,07/04/2016,THE STREET YC,WM MORRISONS,1.89,PURCHASE OF FOOD (RAW MATERIALS),"GROCERY STORES, SUPERMARKETS",5411
18/07/2016,http://opendatacommunities.org/id/county-council/surrey,Surrey,http://id.esd.org.uk/service/1465,Council expenditure,07/04/2016,LOWER MOLE COUNTRYSIDE PROJECT,BRITISHPARTS.CO.UK,22.57,VEHICLE RUNNING COSTS,MISC/AUTO/AIRCRAFT/FARM EQUIP  NOT ELSEWHERE CLASS,5599
18/07/2016,http://opendatacommunities.org/id/county-council/surrey,Surrey,http://id.esd.org.uk/service/1465,Council expenditure,07/04/2016,SE EDUCATION PSYCHOLOGISTS,AMAZON EU,9.55,EQUIPMENT,DIRECT MARKETING-OTHER DIRECT MARKETERS/NOT ELSEW.,5969
18/07/2016,http://opendatacommunities.org/id/county-council/surrey,Surrey,http://id.esd.org.uk/service/1465,Council expenditure,07/04/2016,ACL CENTRAL EXPENDITURE,SHOECARE - CAMBERLEY,19.65,DAY TO DAY MAINTENANCE,"HAT CLEANING SHOPS, SHOE REPAIR SHOPS, SHOE SHINE",7251
18/07/2016,http://opendatacommunities.org/id/county-council/surrey,Surrey,http://id.esd.org.uk/service/1465,Council expenditure,07/04/2016,EXTENDED HOPE,SAINSBURYS 0652,28.05,PURCHASE OF FOOD (RAW MATERIALS),"GROCERY STORES, SUPERMARKETS",5411
18/07/2016,http://opendatacommunities.org/id/county-council/surrey,Surrey,http://id.esd.org.uk/service/1465,Council expenditure,07/04/2016,TRAFFIC MANAGEMENT,CPC,76.57,FIXTURES AND FITTINGS,ELECTRICAL PARTS AND EQUIPMENT,5065
18/07/2016,http://opendatacommunities.org/id/county-council/surrey,Surrey,http://id.esd.org.uk/service/1465,Council expenditure,07/04/2016,ACL CENTRAL EXPENDITURE,SAINSBURYS LOC 4334,6.95,PURCHASE OF FOOD (RAW MATERIALS),"GROCERY STORES, SUPERMARKETS",5411
18/07/2016,http://opendatacommunities.org/id/county-council/surrey,Surrey,http://id.esd.org.uk/service/1465,Council expenditure,07/04/2016,ADDLESTONE YC,AMAZON UK MARKETPLACE,1.88,EQUIPMENT,BOOK STORES,5942
18/07/2016,http://opendatacommunities.org/id/county-council/surrey,Surrey,http://id.esd.org.uk/service/1465,Council expenditure,07/04/2016,DCLG FIRE CONTROL GRANT (CAPITAL),PAYPAL  COMMS EXP,"4,851.43",CE04 CAPITAL ICT,ELECTRONIC SALES,5732
18/07/2016,http://opendatacommunities.org/id/county-council/surrey,Surrey,http://id.esd.org.uk/service/1465,Council expenditure,07/04/2016,FRIMLEY YC,ONE STOP 1396,4,PURCHASE OF FOOD (RAW MATERIALS),"GROCERY STORES, SUPERMARKETS",5411
18/07/2016,http://opendatacommunities.org/id/county-council/surrey,Surrey,http://id.esd.org.uk/service/1465,Council expenditure,07/04/2016,ACL CENTRAL EXPENDITURE,TESCO STORE 3220,109.12,PURCHASE OF FOOD (RAW MATERIALS),"GROCERY STORES, SUPERMARKETS",5411
18/07/2016,http://opendatacommunities.org/id/county-council/surrey,Surrey,http://id.esd.org.uk/service/1465,Council expenditure,07/04/2016,SUSTAINABILITY GROUP,EV CHARGING ELEKTROMOT,80,EQUIPMENT,DIRECT MARKETING-OTHER DIRECT MARKETERS/NOT ELSEW.,5969
18/07/2016,http://opendatacommunities.org/id/county-council/surrey,Surrey,http://id.esd.org.uk/service/1465,Council expenditure,07/04/2016,LOWER MOLE COUNTRYSIDE PROJECT,BRITISHPARTS.CO.UK,22.57,VEHICLE RUNNING COSTS,MISC/AUTO/AIRCRAFT/FARM EQUIP  NOT ELSEWHERE CLASS,5599
18/07/2016,http://opendatacommunities.org/id/county-council/surrey,Surrey,http://id.esd.org.uk/service/1465,Council expenditure,07/04/2016,COVEHAM,ROBERT DYAS HOLDNG LTD,29.99,FIXTURES AND FITTINGS,HARDWARE STORES,5251
18/07/2016,http://opendatacommunities.org/id/county-council/surrey,Surrey,http://id.esd.org.uk/service/1465,Council expenditure,07/04/2016,LOWER MOLE COUNTRYSIDE PROJECT,SCREWFIX DIRECT,11.98,EQUIPMENT,"BUILDING MATERIALS, LUMBER STORES",5211
18/07/2016,http://opendatacommunities.org/id/county-council/surrey,Surrey,http://id.esd.org.uk/service/1465,Council expenditure,07/04/2016,KARIBU COMMUNITY HOME,PARENTPAY.COM,70,PURCHASE OF FOOD (RAW MATERIALS),"COLLEGES, UNIV, PRO SCHOOLS, JUNIOR COLLEGES",8220
18/07/2016,http://opendatacommunities.org/id/county-council/surrey,Surrey,http://id.esd.org.uk/service/1465,Council expenditure,07/04/2016,LIBERTAS COMMUNITY HOME,T K MAXX,9.99,3RD PARTY PAYMENTS PRIVATE INDIV,VARIETY STORES,5331
18/07/2016,http://opendatacommunities.org/id/county-council/surrey,Surrey,http://id.esd.org.uk/service/1465,Council expenditure,07/04/2016,SURREY ARTS OPEN STUDIOS,AMAZON EU,22.43,STATIONERY,DIRECT MARKETING-OTHER DIRECT MARKETERS/NOT ELSEW.,5969
18/07/2016,http://opendatacommunities.org/id/county-council/surrey,Surrey,http://id.esd.org.uk/service/1465,Council expenditure,07/04/2016,GOGMORE PARK FARM YC,CRAGGY ISLAND LTD,4.05,REFRESHMENT COSTS,"CLUBS-CNTRY,MBRSHIP(ATHLET,REC,SPRTS,PRIVATE GOLF",7997
18/07/2016,http://opendatacommunities.org/id/county-council/surrey,Surrey,http://id.esd.org.uk/service/1465,Council expenditure,07/04/2016,BURBANK COMMUNITY HOME,SHELL BURNT CM 199,8.43,REFRESHMENT COSTS,SERVICE STATIONS WITH OR WITHOUT ANCILLARY SERVICE,5541
18/07/2016,http://opendatacommunities.org/id/county-council/surrey,Surrey,http://id.esd.org.uk/service/1465,Council expenditure,07/04/2016,RUTH HOUSE,ASDA STORES 4823,91.12,"CLOTHING, UNIFORM AND LAUNDRY","GROCERY STORES, SUPERMARKETS",5411
18/07/2016,http://opendatacommunities.org/id/county-council/surrey,Surrey,http://id.esd.org.uk/service/1465,Council expenditure,07/04/2016,TARGETED INTERVENTION,MB WORLD,50,EDUC VISITS/HOLS/CAMPS/TOYS,AUTOMOTIVE SERVICE SHOPS,7538
18/07/2016,http://opendatacommunities.org/id/county-council/surrey,Surrey,http://id.esd.org.uk/service/1465,Council expenditure,07/04/2016,LAKERS YC,ASDA STORES 4823,28.47,ITEMS PURCHASED FOR RE-SALE,"GROCERY STORES, SUPERMARKETS",5411
18/07/2016,http://opendatacommunities.org/id/county-council/surrey,Surrey,http://id.esd.org.uk/service/1465,Council expenditure,07/04/2016,ACL CENTRAL EXPENDITURE,W M MORRISONS,126.93,REFRESHMENT COSTS,"GROCERY STORES, SUPERMARKETS",5411
18/07/2016,http://opendatacommunities.org/id/county-council/surrey,Surrey,http://id.esd.org.uk/service/1465,Council expenditure,07/04/2016,ARUNDEL,TESCO STORES 5999,66.58,REFRESHMENT COSTS,"GROCERY STORES, SUPERMARKETS",5411
18/07/2016,http://opendatacommunities.org/id/county-council/surrey,Surrey,http://id.esd.org.uk/service/1465,Council expenditure,07/04/2016,ARUNDEL,TESCO STORES 5999,8,REFRESHMENT COSTS,"GROCERY STORES, SUPERMARKETS",5411
18/07/2016,http://opendatacommunities.org/id/county-council/surrey,Surrey,http://id.esd.org.uk/service/1465,Council expenditure,07/04/2016,CHEYNE WALK COMMUNITY HOME,TESCO STORE 2560,32.1,EQUIPMENT,"GROCERY STORES, SUPERMARKETS",5411
18/07/2016,http://opendatacommunities.org/id/county-council/surrey,Surrey,http://id.esd.org.uk/service/1465,Council expenditure,07/04/2016,SOLD CATERING,ASDA SUPERSTORE,51.41,PURCHASE OF FOOD (RAW MATERIALS),"GROCERY STORES, SUPERMARKETS",5411
18/07/2016,http://opendatacommunities.org/id/county-council/surrey,Surrey,http://id.esd.org.uk/service/1465,Council expenditure,07/04/2016,SE EDUCATION PSYCHOLOGISTS,AMAZON UK MARKETPLACE,2.83,EQUIPMENT,BOOK STORES,5942
18/07/2016,http://opendatacommunities.org/id/county-council/surrey,Surrey,http://id.esd.org.uk/service/1465,Council expenditure,07/04/2016,KARIBU COMMUNITY HOME,PARENTPAY.COM,102,PURCHASE OF FOOD (RAW MATERIALS),"COLLEGES, UNIV, PRO SCHOOLS, JUNIOR COLLEGES",8220
18/07/2016,http://opendatacommunities.org/id/county-council/surrey,Surrey,http://id.esd.org.uk/service/1465,Council expenditure,07/04/2016,PROPERTY OPERATIONS TEAM,HALFORDS 0725,6.99,PURCHASE OF BUILDING MATERIALS,BICYCLE SHOPS-SALES AND SERVICE,5940
18/07/2016,http://opendatacommunities.org/id/county-council/surrey,Surrey,http://id.esd.org.uk/service/1465,Council expenditure,07/04/2016,DCLG FIRE CONTROL GRANT (CAPITAL),PAYPAL  COMMS EXP,"1,054.30",CE04 CAPITAL ICT,ELECTRONIC SALES,5732
18/07/2016,http://opendatacommunities.org/id/county-council/surrey,Surrey,http://id.esd.org.uk/service/1465,Council expenditure,07/04/2016,YSS YOUTH CENTRE IMPROVEMENTS,WWW.JAYDEELIVING.CO.UK,127.14,EQUIPMENT,BUSINESS SERVICES-NOT ELSEWHERE CLASSIFIED,7399
18/07/2016,http://opendatacommunities.org/id/county-council/surrey,Surrey,http://id.esd.org.uk/service/1465,Council expenditure,07/04/2016,MISC EDCAT SUPPORT,EB LEVEL 2 AWARD IN H,100,TRAINING EXPENSES EXTERNAL GENERAL,BUSINESS SERVICES-NOT ELSEWHERE CLASSIFIED,7399
18/07/2016,http://opendatacommunities.org/id/county-council/surrey,Surrey,http://id.esd.org.uk/service/1465,Council expenditure,07/04/2016,CHEYNE WALK COMMUNITY HOME,TESCO STORE 2560,17.28,PURCHASE OF FOOD (RAW MATERIALS),"GROCERY STORES, SUPERMARKETS",5411
18/07/2016,http://opendatacommunities.org/id/county-council/surrey,Surrey,http://id.esd.org.uk/service/1465,Council expenditure,07/04/2016,LINTONS YC,CO-OP GROUP 310385,7.5,REFRESHMENT COSTS,"GROCERY STORES, SUPERMARKETS",5411
18/07/2016,http://opendatacommunities.org/id/county-council/surrey,Surrey,http://id.esd.org.uk/service/1465,Council expenditure,07/04/2016,CORPORATE GROUP - LEGAL SERVICES,COMPANIES HOUSE,13,FEES,GOVERNMENT SERVICES-NOT ELSEWHERE CLASSIFIED,9399
18/07/2016,http://opendatacommunities.org/id/county-council/surrey,Surrey,http://id.esd.org.uk/service/1465,Council expenditure,07/04/2016,HOPE SERVICE - EAST,CLS ALDERSHOT,5,EDUC VISITS/HOLS/CAMPS/TOYS,"CLUBS-CNTRY,MBRSHIP(ATHLET,REC,SPRTS,PRIVATE GOLF",7997
18/07/2016,http://opendatacommunities.org/id/county-council/surrey,Surrey,http://id.esd.org.uk/service/1465,Council expenditure,07/04/2016,HILLSIDE,SAINSBURYS 0675,56.15,PURCHASE OF FOOD (RAW MATERIALS),"GROCERY STORES, SUPERMARKETS",5411
18/07/2016,http://opendatacommunities.org/id/county-council/surrey,Surrey,http://id.esd.org.uk/service/1465,Council expenditure,07/04/2016,DOWNLANDS COUNTRYSIDE PROJECT,MOLE COUNTRY STORES,129.6,EQUIPMENT,AGRICULTURAL COOPERATIVES,763
18/07/2016,http://opendatacommunities.org/id/county-council/surrey,Surrey,http://id.esd.org.uk/service/1465,Council expenditure,07/04/2016,WORKING TOGETHER,AMAZON UK MARKETPLACE,78.57,EQUIPMENT,BOOK STORES,5942
18/07/2016,http://opendatacommunities.org/id/county-council/surrey,Surrey,http://id.esd.org.uk/service/1465,Council expenditure,07/04/2016,SOUTH EAST AREA TEAM,SAINSBURYS SACAT 0032,9.7,REFRESHMENT COSTS,"GROCERY STORES, SUPERMARKETS",5411
18/07/2016,http://opendatacommunities.org/id/county-council/surrey,Surrey,http://id.esd.org.uk/service/1465,Council expenditure,08/04/2016,SW CARE - CP & COURT LAC,TRAVELODGE,3,CHILDREN ACT SEC 17 PAYMENTS,TRAVELODGE,3615
18/07/2016,http://opendatacommunities.org/id/county-council/surrey,Surrey,http://id.esd.org.uk/service/1465,Council expenditure,08/04/2016,HILLSIDE,TESCO STORE 3149,79.17,PURCHASE OF FOOD (RAW MATERIALS),"GROCERY STORES, SUPERMARKETS",5411
18/07/2016,http://opendatacommunities.org/id/county-council/surrey,Surrey,http://id.esd.org.uk/service/1465,Council expenditure,08/04/2016,FAIRCROFT COMMUNITY HOME,SAINSBURYS 0687,48,EQUIPMENT,"GROCERY STORES, SUPERMARKETS",5411
18/07/2016,http://opendatacommunities.org/id/county-council/surrey,Surrey,http://id.esd.org.uk/service/1465,Council expenditure,08/04/2016,SE EDUCATION PSYCHOLOGISTS,AMAZON UK MARKETPLACE,6.42,EQUIPMENT,BOOK STORES,5942
18/07/2016,http://opendatacommunities.org/id/county-council/surrey,Surrey,http://id.esd.org.uk/service/1465,Council expenditure,08/04/2016,ACL CENTRAL EXPENDITURE,RUDGWICK METALS LT,256.56,EQUIPMENT,"ROOFING AND SIDING, SHEET METAL WORK CONTRACTORS",1761
18/07/2016,http://opendatacommunities.org/id/county-council/surrey,Surrey,http://id.esd.org.uk/service/1465,Council expenditure,08/04/2016,ACL CENTRAL EXPENDITURE,W P NOTCUTT LTD,31.74,EQUIPMENT,"BUILDING MATERIALS, LUMBER STORES",5211
18/07/2016,http://opendatacommunities.org/id/county-council/surrey,Surrey,http://id.esd.org.uk/service/1465,Council expenditure,08/04/2016,KARIBU COMMUNITY HOME,NCP LIMITED P&D,3.2,NON-STAFF RELATED TRANSPORT COSTS,AUTOMOBILE PARKING LOTS AND GARAGES,7523
18/07/2016,http://opendatacommunities.org/id/county-council/surrey,Surrey,http://id.esd.org.uk/service/1465,Council expenditure,08/04/2016,BURBANK COMMUNITY HOME,WOKING BOROUGH COUNCIL,1.3,EDUC VISITS/HOLS/CAMPS/TOYS,AUTOMOBILE PARKING LOTS AND GARAGES,7523
18/07/2016,http://opendatacommunities.org/id/county-council/surrey,Surrey,http://id.esd.org.uk/service/1465,Council expenditure,08/04/2016,TRANSPORT,ASH SAFETY,129,OPERATIONAL FIRE EQUIPMENT,INDUSTRIAL SUPPLIES NOT ELSEWHERE CLASSIFIED,5085
18/07/2016,http://opendatacommunities.org/id/county-council/surrey,Surrey,http://id.esd.org.uk/service/1465,Council expenditure,08/04/2016,TRANSPORT,LANDROVER CROYDON,391.99,VEHICLE REPAIRS AND MAINTENANCE,AUTOMOTIVE SERVICE SHOPS,7538
18/07/2016,http://opendatacommunities.org/id/county-council/surrey,Surrey,http://id.esd.org.uk/service/1465,Council expenditure,08/04/2016,THE EDGE YC,SAINSBURYS SACAT 0652,8.65,PURCHASE OF FOOD (RAW MATERIALS),"GROCERY STORES, SUPERMARKETS",5411
18/07/2016,http://opendatacommunities.org/id/county-council/surrey,Surrey,http://id.esd.org.uk/service/1465,Council expenditure,08/04/2016,SOLD DAY TO DAY OPERATIONS,POUNDLAND,26.2,CURRICULUM CONSUMABLES,DISCOUNT STORES,5310
18/07/2016,http://opendatacommunities.org/id/county-council/surrey,Surrey,http://id.esd.org.uk/service/1465,Council expenditure,08/04/2016,VIRTUAL SCHOOL FOR LAC PUPIL PREMIUM,NORTH TYNESIDE,150,SUBSISTENCE AND CONFERENCE EXPENSES,GOVERNMENT SERVICES-NOT ELSEWHERE CLASSIFIED,9399
18/07/2016,http://opendatacommunities.org/id/county-council/surrey,Surrey,http://id.esd.org.uk/service/1465,Council expenditure,08/04/2016,ARUNDEL,EPSOM PLAYHOUSE,13.6,EDUC VISITS/HOLS/CAMPS/TOYS,MISCELLANEOUS GENERAL MERCHANDISE,5399
18/07/2016,http://opendatacommunities.org/id/county-council/surrey,Surrey,http://id.esd.org.uk/service/1465,Council expenditure,08/04/2016,SEN & INCLUSION,NDNA,59,BOOKS,"ORGANIZATIONS, CHARITABLE AND SOCIAL SERVICES",8398
18/07/2016,http://opendatacommunities.org/id/county-council/surrey,Surrey,http://id.esd.org.uk/service/1465,Council expenditure,08/04/2016,SE EDUCATION PSYCHOLOGISTS,AMAZON EU,81.73,BOOKS,DIRECT MARKETING-OTHER DIRECT MARKETERS/NOT ELSEW.,5969
18/07/2016,http://opendatacommunities.org/id/county-council/surrey,Surrey,http://id.esd.org.uk/service/1465,Council expenditure,08/04/2016,IMT CRITICAL ENVIRONMENTS,AMAZON UK MARKETPLACE,2.5,EQUIPMENT,BOOK STORES,5942
18/07/2016,http://opendatacommunities.org/id/county-council/surrey,Surrey,http://id.esd.org.uk/service/1465,Council expenditure,08/04/2016,CORONER,SAINSBURYS TO YOU 0686,54,REFRESHMENT COSTS,"GROCERY STORES, SUPERMARKETS",5411
18/07/2016,http://opendatacommunities.org/id/county-council/surrey,Surrey,http://id.esd.org.uk/service/1465,Council expenditure,08/04/2016,PROPERTY OPERATIONS TEAM,TOOLSTATION LTD,35.03,PURCHASE OF BUILDING MATERIALS,HARDWARE STORES,5251
18/07/2016,http://opendatacommunities.org/id/county-council/surrey,Surrey,http://id.esd.org.uk/service/1465,Council expenditure,08/04/2016,RUTH HOUSE,MILESTONE MUSEUM,16.3,EDUC VISITS/HOLS/CAMPS/TOYS,TOURIST ATTRACTIONS AND EXHIBITS,7991
18/07/2016,http://opendatacommunities.org/id/county-council/surrey,Surrey,http://id.esd.org.uk/service/1465,Council expenditure,08/04/2016,CHEYNE WALK COMMUNITY HOME,AMAZON UK MARKETPLACE,3.98,EQUIPMENT,BOOK STORES,5942
18/07/2016,http://opendatacommunities.org/id/county-council/surrey,Surrey,http://id.esd.org.uk/service/1465,Council expenditure,08/04/2016,WOODLANDS COMMUNITY HOME,SAINSBURYS PFS0487,48,VEHICLE RUNNING COSTS,SERVICE STATIONS WITH OR WITHOUT ANCILLARY SERVICE,5541
18/07/2016,http://opendatacommunities.org/id/county-council/surrey,Surrey,http://id.esd.org.uk/service/1465,Council expenditure,08/04/2016,WOODLANDS COMMUNITY HOME,ATG TICKETS,42.3,EDUC VISITS/HOLS/CAMPS/TOYS,"THEATRICAL PRODUCERS(EXCL MOTION PIX),TICKET AGNCY",7922
18/07/2016,http://opendatacommunities.org/id/county-council/surrey,Surrey,http://id.esd.org.uk/service/1465,Council expenditure,08/04/2016,WOODLANDS COMMUNITY HOME,SAINSBURYS 0686,119.52,PURCHASE OF FOOD (RAW MATERIALS),"GROCERY STORES, SUPERMARKETS",5411
18/07/2016,http://opendatacommunities.org/id/county-council/surrey,Surrey,http://id.esd.org.uk/service/1465,Council expenditure,08/04/2016,WOODLANDS COMMUNITY HOME,SAINSBURYS 0686,6.4,PURCHASE OF FOOD (RAW MATERIALS),"GROCERY STORES, SUPERMARKETS",5411
18/07/2016,http://opendatacommunities.org/id/county-council/surrey,Surrey,http://id.esd.org.uk/service/1465,Council expenditure,08/04/2016,WOODLANDS COMMUNITY HOME,SAINSBURYS 0686,2,EDUC VISITS/HOLS/CAMPS/TOYS,"GROCERY STORES, SUPERMARKETS",5411
18/07/2016,http://opendatacommunities.org/id/county-council/surrey,Surrey,http://id.esd.org.uk/service/1465,Council expenditure,08/04/2016,RUTH HOUSE,MILESTONE MUSEUM,18.9,EDUC VISITS/HOLS/CAMPS/TOYS,TOURIST ATTRACTIONS AND EXHIBITS,7991
18/07/2016,http://opendatacommunities.org/id/county-council/surrey,Surrey,http://id.esd.org.uk/service/1465,Council expenditure,08/04/2016,CHEYNE WALK COMMUNITY HOME,H&M,7.99,"CLOTHING, UNIFORM AND LAUNDRY",MEN'S AND WOMEN'S CLOTHING STORES,5691
18/07/2016,http://opendatacommunities.org/id/county-council/surrey,Surrey,http://id.esd.org.uk/service/1465,Council expenditure,08/04/2016,ACL CENTRAL EXPENDITURE,AMAZON UK MARKETPLACE,5.29,COMPUTER CONSUMABLES,BOOK STORES,5942
18/07/2016,http://opendatacommunities.org/id/county-council/surrey,Surrey,http://id.esd.org.uk/service/1465,Council expenditure,08/04/2016,LEAP WOKING,AMAZON EU,9,EQUIPMENT,DIRECT MARKETING-OTHER DIRECT MARKETERS/NOT ELSEW.,5969
18/07/2016,http://opendatacommunities.org/id/county-council/surrey,Surrey,http://id.esd.org.uk/service/1465,Council expenditure,08/04/2016,CHEYNE WALK COMMUNITY HOME,TGI FRIDAY'S,44.77,PURCHASE OF FOOD (RAW MATERIALS),"EATING PLACES, RESTAURANTS",5812
18/07/2016,http://opendatacommunities.org/id/county-council/surrey,Surrey,http://id.esd.org.uk/service/1465,Council expenditure,08/04/2016,CHEYNE WALK COMMUNITY HOME,J D SPORTS 131,50.05,"CLOTHING, UNIFORM AND LAUNDRY",SPORTING GOODS STORES,5941
18/07/2016,http://opendatacommunities.org/id/county-council/surrey,Surrey,http://id.esd.org.uk/service/1465,Council expenditure,08/04/2016,CHEYNE WALK COMMUNITY HOME,CHELSEA  FC,10.4,REFRESHMENT COSTS,"CLUBS-CNTRY,MBRSHIP(ATHLET,REC,SPRTS,PRIVATE GOLF",7997
18/07/2016,http://opendatacommunities.org/id/county-council/surrey,Surrey,http://id.esd.org.uk/service/1465,Council expenditure,08/04/2016,SOLD ESTATES MANAGEMENT,SCREWFIX DIRECT,117.26,DAY TO DAY MAINTENANCE,"BUILDING MATERIALS, LUMBER STORES",5211
18/07/2016,http://opendatacommunities.org/id/county-council/surrey,Surrey,http://id.esd.org.uk/service/1465,Council expenditure,08/04/2016,SW CARE - NON-LAC CP & COURT,SURREY CC CARD PAY,22,LEGAL EXPENSES,COMPUTER NETWORK/INFORMATION SERVICES,4816
18/07/2016,http://opendatacommunities.org/id/county-council/surrey,Surrey,http://id.esd.org.uk/service/1465,Council expenditure,08/04/2016,SW CARE - NON-LAC CP & COURT,SURREY CC CARD PAY,22,LEGAL EXPENSES,COMPUTER NETWORK/INFORMATION SERVICES,4816
18/07/2016,http://opendatacommunities.org/id/county-council/surrey,Surrey,http://id.esd.org.uk/service/1465,Council expenditure,08/04/2016,ACL CENTRAL EXPENDITURE,POOLSTORE.CO.UK,50,EQUIPMENT,SWIMMING POOLS - SALES AND SUPPLIES,5996
18/07/2016,http://opendatacommunities.org/id/county-council/surrey,Surrey,http://id.esd.org.uk/service/1465,Council expenditure,08/04/2016,TRAINING SERVICES FOR YOUNG PEOPLE,WESTMINSTER FORUM,252,TRAINING EXPENSES EXTERNAL GENERAL,"CONSULTING, MANAGEMENT, AND PUBLIC RELATIONS SVCS",7392
18/07/2016,http://opendatacommunities.org/id/county-council/surrey,Surrey,http://id.esd.org.uk/service/1465,Council expenditure,08/04/2016,ARUNDEL,TESCO STORES 5999,166.98,REFRESHMENT COSTS,"GROCERY STORES, SUPERMARKETS",5411
18/07/2016,http://opendatacommunities.org/id/county-council/surrey,Surrey,http://id.esd.org.uk/service/1465,Council expenditure,08/04/2016,SOLD DAY TO DAY OPERATIONS,CARD FACTORY,27.88,CURRICULUM CONSUMABLES,"GIFT, CARD, NOVELTY AND SOUVENIR SHOPS",5947
18/07/2016,http://opendatacommunities.org/id/county-council/surrey,Surrey,http://id.esd.org.uk/service/1465,Council expenditure,08/04/2016,SOLD CATERING,SAINSBURYS 0517,34,PURCHASE OF FOOD (RAW MATERIALS),"GROCERY STORES, SUPERMARKETS",5411
18/07/2016,http://opendatacommunities.org/id/county-council/surrey,Surrey,http://id.esd.org.uk/service/1465,Council expenditure,08/04/2016,DOWNLANDS COUNTRYSIDE PROJECT,MOLE COUNTRY STORES,21.15,EQUIPMENT,AGRICULTURAL COOPERATIVES,763
18/07/2016,http://opendatacommunities.org/id/county-council/surrey,Surrey,http://id.esd.org.uk/service/1465,Council expenditure,08/04/2016,SAP COMPETENCY CENTRE,AMAZON WEB SERVICES,-698.19,COMPUTER SERVICES,BUSINESS SERVICES-NOT ELSEWHERE CLASSIFIED,7399
18/07/2016,http://opendatacommunities.org/id/county-council/surrey,Surrey,http://id.esd.org.uk/service/1465,Council expenditure,08/04/2016,ASSET PLANNING - OPERATIONS,POST OFFICE COUNTER,12.98,POSTAGE AND COURIER CHARGES,POSTAL SERVICES-GOVERNMENT ONLY,9402
18/07/2016,http://opendatacommunities.org/id/county-council/surrey,Surrey,http://id.esd.org.uk/service/1465,Council expenditure,08/04/2016,ACL CENTRAL EXPENDITURE,SOUTH WESTERN IND PLAS,253.95,EQUIPMENT,"INSULATION,MASONRY,PLSTER,STONEWRK,TILESET CNTRCTR",1740
18/07/2016,http://opendatacommunities.org/id/county-council/surrey,Surrey,http://id.esd.org.uk/service/1465,Council expenditure,08/04/2016,DEVELOPMENT TEAM,AMAZON UK MARKETPLACE,22.98,BOOKS,BOOK STORES,5942
18/07/2016,http://opendatacommunities.org/id/county-council/surrey,Surrey,http://id.esd.org.uk/service/1465,Council expenditure,08/04/2016,THE EDGE YC,AMAZON UK MARKETPLACE,4.97,EQUIPMENT,BOOK STORES,5942
18/07/2016,http://opendatacommunities.org/id/county-council/surrey,Surrey,http://id.esd.org.uk/service/1465,Council expenditure,08/04/2016,FAIRCROFT COMMUNITY HOME,FREEDOM LEISURE,17,EDUC VISITS/HOLS/CAMPS/TOYS,GOVERNMENT SERVICES-NOT ELSEWHERE CLASSIFIED,9399
18/07/2016,http://opendatacommunities.org/id/county-council/surrey,Surrey,http://id.esd.org.uk/service/1465,Council expenditure,08/04/2016,DCLG FIRE CONTROL GRANT (CAPITAL),PAYPAL  COMMS EXP,172.58,CE04 CAPITAL ICT,ELECTRONIC SALES,5732
18/07/2016,http://opendatacommunities.org/id/county-council/surrey,Surrey,http://id.esd.org.uk/service/1465,Council expenditure,08/04/2016,RUTH HOUSE,SAINSBURYS TO YOU 0686,42.8,PURCHASE OF FOOD (RAW MATERIALS),"GROCERY STORES, SUPERMARKETS",5411
18/07/2016,http://opendatacommunities.org/id/county-council/surrey,Surrey,http://id.esd.org.uk/service/1465,Council expenditure,08/04/2016,RUTH HOUSE,SAINSBURYS TO YOU 0686,161.33,PURCHASE OF FOOD (RAW MATERIALS),"GROCERY STORES, SUPERMARKETS",5411
18/07/2016,http://opendatacommunities.org/id/county-council/surrey,Surrey,http://id.esd.org.uk/service/1465,Council expenditure,08/04/2016,SAP COMPETENCY CENTRE,AMAZON WEB SERVICES,-215.9,COMPUTER SERVICES,BUSINESS SERVICES-NOT ELSEWHERE CLASSIFIED,7399
18/07/2016,http://opendatacommunities.org/id/county-council/surrey,Surrey,http://id.esd.org.uk/service/1465,Council expenditure,08/04/2016,SAP COMPETENCY CENTRE,AMAZON MKTPLACE PMTS,-451.3,COMPUTER SERVICES,MISCELLANEOUS AND SPECIALTY RETAIL STORES,5999
18/07/2016,http://opendatacommunities.org/id/county-council/surrey,Surrey,http://id.esd.org.uk/service/1465,Council expenditure,08/04/2016,FAIRCROFT COMMUNITY HOME,BAKED AND BATTERED,66.05,REFRESHMENT COSTS,FAST FOOD RESTAURANTS,5814
18/07/2016,http://opendatacommunities.org/id/county-council/surrey,Surrey,http://id.esd.org.uk/service/1465,Council expenditure,08/04/2016,KARIBU COMMUNITY HOME,JIMMYS RESTAURANTS,111.38,PURCHASE OF FOOD (RAW MATERIALS),"EATING PLACES, RESTAURANTS",5812
18/07/2016,http://opendatacommunities.org/id/county-council/surrey,Surrey,http://id.esd.org.uk/service/1465,Council expenditure,08/04/2016,NORTH EAST AREA TEAM,TESCO STORES (6820),17.72,REFRESHMENT COSTS,"GROCERY STORES, SUPERMARKETS",5411
18/07/2016,http://opendatacommunities.org/id/county-council/surrey,Surrey,http://id.esd.org.uk/service/1465,Council expenditure,08/04/2016,SAP COMPETENCY CENTRE,AMAZON MKTPLACE PMTS,-332.73,COMPUTER SERVICES,MISCELLANEOUS AND SPECIALTY RETAIL STORES,5999
18/07/2016,http://opendatacommunities.org/id/county-council/surrey,Surrey,http://id.esd.org.uk/service/1465,Council expenditure,08/04/2016,CHEYNE WALK COMMUNITY HOME,ME ME RESTAURANT,26.89,REFRESHMENT COSTS,"EATING PLACES, RESTAURANTS",5812
18/07/2016,http://opendatacommunities.org/id/county-council/surrey,Surrey,http://id.esd.org.uk/service/1465,Council expenditure,08/04/2016,RUTH HOUSE,WICKES,17.84,EQUIPMENT,HOME SUPPLY WAREHOUSE STORES,5200
18/07/2016,http://opendatacommunities.org/id/county-council/surrey,Surrey,http://id.esd.org.uk/service/1465,Council expenditure,08/04/2016,SW TEACHERS,PAYPAL  RESTORATIVE,-35,NEWSPAPER AND PERIODICALS,"ORGANIZATIONS, CHARITABLE AND SOCIAL SERVICES",8398
18/07/2016,http://opendatacommunities.org/id/county-council/surrey,Surrey,http://id.esd.org.uk/service/1465,Council expenditure,08/04/2016,TRAINING,EB JOINING HEALTH AND,101.35,TRAINING EXPENSES EXTERNAL GENERAL,BUSINESS SERVICES-NOT ELSEWHERE CLASSIFIED,7399
18/07/2016,http://opendatacommunities.org/id/county-council/surrey,Surrey,http://id.esd.org.uk/service/1465,Council expenditure,08/04/2016,ELMBRIDGE STAFFING,POST OFFICE COUNTER,7.68,PUBLICITY,POSTAL SERVICES-GOVERNMENT ONLY,9402
18/07/2016,http://opendatacommunities.org/id/county-council/surrey,Surrey,http://id.esd.org.uk/service/1465,Council expenditure,08/04/2016,"NW REF, ASS & INT SERVICE - HUB 2",AMAZON EU,46.84,BOOKS,DIRECT MARKETING-OTHER DIRECT MARKETERS/NOT ELSEW.,5969
18/07/2016,http://opendatacommunities.org/id/county-council/surrey,Surrey,http://id.esd.org.uk/service/1465,Council expenditure,08/04/2016,THE EDGE YC,AMAZON UK MARKETPLACE,5.76,EQUIPMENT,BOOK STORES,5942
18/07/2016,http://opendatacommunities.org/id/county-council/surrey,Surrey,http://id.esd.org.uk/service/1465,Council expenditure,08/04/2016,GOGMORE PARK FARM YC,BP MYTCHETT CONNECT,11.01,VEHICLE RUNNING COSTS,SERVICE STATIONS WITH OR WITHOUT ANCILLARY SERVICE,5541
18/07/2016,http://opendatacommunities.org/id/county-council/surrey,Surrey,http://id.esd.org.uk/service/1465,Council expenditure,08/04/2016,SW CARE - CP & COURT LAC,TRAVELODGE,3,CHILDREN ACT SEC 17 PAYMENTS,TRAVELODGE,3615
18/07/2016,http://opendatacommunities.org/id/county-council/surrey,Surrey,http://id.esd.org.uk/service/1465,Council expenditure,08/04/2016,BURBANK COMMUNITY HOME,TIGER,4,EQUIPMENT,"GIFT, CARD, NOVELTY AND SOUVENIR SHOPS",5947
18/07/2016,http://opendatacommunities.org/id/county-council/surrey,Surrey,http://id.esd.org.uk/service/1465,Council expenditure,08/04/2016,LIBERTAS COMMUNITY HOME,SAINSBURYS 0652,14.1,PURCHASE OF FOOD (RAW MATERIALS),"GROCERY STORES, SUPERMARKETS",5411
18/07/2016,http://opendatacommunities.org/id/county-council/surrey,Surrey,http://id.esd.org.uk/service/1465,Council expenditure,08/04/2016,LIBERTAS COMMUNITY HOME,SAINSBURYS 0652,115.62,PURCHASE OF FOOD (RAW MATERIALS),"GROCERY STORES, SUPERMARKETS",5411
18/07/2016,http://opendatacommunities.org/id/county-council/surrey,Surrey,http://id.esd.org.uk/service/1465,Council expenditure,08/04/2016,LIBERTAS COMMUNITY HOME,SAINSBURYS 0652,2,EQUIPMENT,"GROCERY STORES, SUPERMARKETS",5411
18/07/2016,http://opendatacommunities.org/id/county-council/surrey,Surrey,http://id.esd.org.uk/service/1465,Council expenditure,08/04/2016,"NW REF, ASS & INT SERVICE - HUB 1",AMAZON EU,14.37,COMPUTER HARDWARE,DIRECT MARKETING-OTHER DIRECT MARKETERS/NOT ELSEW.,5969
18/07/2016,http://opendatacommunities.org/id/county-council/surrey,Surrey,http://id.esd.org.uk/service/1465,Council expenditure,08/04/2016,NW CARE - NON-LAC CP & COURT,TRAVELODGE,483,CHILDREN ACT SEC 17 PAYMENTS,TRAVELODGE,3615
18/07/2016,http://opendatacommunities.org/id/county-council/surrey,Surrey,http://id.esd.org.uk/service/1465,Council expenditure,08/04/2016,PROPERTY OPERATIONS TEAM,B AND Q 1018,12.86,PURCHASE OF BUILDING MATERIALS,"BUILDING MATERIALS, LUMBER STORES",5211
18/07/2016,http://opendatacommunities.org/id/county-council/surrey,Surrey,http://id.esd.org.uk/service/1465,Council expenditure,09/04/2016,RUTH HOUSE,SPORTSDIRECT 234,69.49,"CLOTHING, UNIFORM AND LAUNDRY",SPORTING GOODS STORES,5941
18/07/2016,http://opendatacommunities.org/id/county-council/surrey,Surrey,http://id.esd.org.uk/service/1465,Council expenditure,09/04/2016,THE EDGE YC,IKEA SACAT,4.5,EQUIPMENT,MISCELLANEOUS HOUSE FURNISHING SPECIALTY SHOPS,5719
18/07/2016,http://opendatacommunities.org/id/county-council/surrey,Surrey,http://id.esd.org.uk/service/1465,Council expenditure,09/04/2016,HOPE SERVICE - WEST,AMAZON UK MARKETPLACE,2.49,CURRICULUM CONSUMABLES,BOOK STORES,5942
18/07/2016,http://opendatacommunities.org/id/county-council/surrey,Surrey,http://id.esd.org.uk/service/1465,Council expenditure,09/04/2016,ACL CENTRAL EXPENDITURE,AMAZON UK MARKETPLACE,1.94,COMPUTER HARDWARE,BOOK STORES,5942
18/07/2016,http://opendatacommunities.org/id/county-council/surrey,Surrey,http://id.esd.org.uk/service/1465,Council expenditure,09/04/2016,CHEYNE WALK COMMUNITY HOME,IZ  HORSHAM BOWL LTD,8.15,PURCHASE OF FOOD (RAW MATERIALS),RECREATION SERVICES (NOT ELSEWHERE CLASSIFIED),7999
18/07/2016,http://opendatacommunities.org/id/county-council/surrey,Surrey,http://id.esd.org.uk/service/1465,Council expenditure,09/04/2016,HILLSIDE,SAINSBURYS 0675,40.62,PURCHASE OF FOOD (RAW MATERIALS),"GROCERY STORES, SUPERMARKETS",5411
18/07/2016,http://opendatacommunities.org/id/county-council/surrey,Surrey,http://id.esd.org.uk/service/1465,Council expenditure,09/04/2016,HOLLAND CLOSE RESIDENTIAL HOME,TESCO-STORES 6647,161.59,PURCHASE OF FOOD (RAW MATERIALS),"GROCERY STORES, SUPERMARKETS",5411
18/07/2016,http://opendatacommunities.org/id/county-council/surrey,Surrey,http://id.esd.org.uk/service/1465,Council expenditure,09/04/2016,RUTH HOUSE,TICKETOFFICESALE,90.7,MISCELLANEOUS STAFF TRAVEL,PASSENGER RAILWAYS,4112
18/07/2016,http://opendatacommunities.org/id/county-council/surrey,Surrey,http://id.esd.org.uk/service/1465,Council expenditure,09/04/2016,RUTH HOUSE,SAINSBURYS SACAT 0652,46.6,PURCHASE OF FOOD (RAW MATERIALS),"GROCERY STORES, SUPERMARKETS",5411
18/07/2016,http://opendatacommunities.org/id/county-council/surrey,Surrey,http://id.esd.org.uk/service/1465,Council expenditure,09/04/2016,CHEYNE WALK COMMUNITY HOME,IZ  HORSHAM BOWL LTD,35.8,EDUC VISITS/HOLS/CAMPS/TOYS,RECREATION SERVICES (NOT ELSEWHERE CLASSIFIED),7999
18/07/2016,http://opendatacommunities.org/id/county-council/surrey,Surrey,http://id.esd.org.uk/service/1465,Council expenditure,09/04/2016,CHEYNE WALK COMMUNITY HOME,IZ  HORSHAM BOWL LTD,4.55,PURCHASE OF FOOD (RAW MATERIALS),RECREATION SERVICES (NOT ELSEWHERE CLASSIFIED),7999
18/07/2016,http://opendatacommunities.org/id/county-council/surrey,Surrey,http://id.esd.org.uk/service/1465,Council expenditure,09/04/2016,OTHER NON CWD HOME COSTS,AMAZON UK MARKETPLACE,2.81,BOOKS,BOOK STORES,5942
18/07/2016,http://opendatacommunities.org/id/county-council/surrey,Surrey,http://id.esd.org.uk/service/1465,Council expenditure,09/04/2016,KARIBU COMMUNITY HOME,SAINSBURYS 0683,187.02,PURCHASE OF FOOD (RAW MATERIALS),"GROCERY STORES, SUPERMARKETS",5411
18/07/2016,http://opendatacommunities.org/id/county-council/surrey,Surrey,http://id.esd.org.uk/service/1465,Council expenditure,09/04/2016,HOPE SERVICE - WEST,AMAZON UK MARKETPLACE,2.49,CURRICULUM CONSUMABLES,BOOK STORES,5942
18/07/2016,http://opendatacommunities.org/id/county-council/surrey,Surrey,http://id.esd.org.uk/service/1465,Council expenditure,09/04/2016,CHEYNE WALK COMMUNITY HOME,TESCO STORE 2560,35.8,PURCHASE OF FOOD (RAW MATERIALS),"GROCERY STORES, SUPERMARKETS",5411
18/07/2016,http://opendatacommunities.org/id/county-council/surrey,Surrey,http://id.esd.org.uk/service/1465,Council expenditure,09/04/2016,HILLSIDE,SAINSBURYS 0675,6,PURCHASE OF FOOD (RAW MATERIALS),"GROCERY STORES, SUPERMARKETS",5411
18/07/2016,http://opendatacommunities.org/id/county-council/surrey,Surrey,http://id.esd.org.uk/service/1465,Council expenditure,09/04/2016,HILLSIDE,SAINSBURYS 0675,59.37,PURCHASE OF FOOD (RAW MATERIALS),"GROCERY STORES, SUPERMARKETS",5411
18/07/2016,http://opendatacommunities.org/id/county-council/surrey,Surrey,http://id.esd.org.uk/service/1465,Council expenditure,09/04/2016,TRANSPORT,AMAZON EU,15.99,COMPUTER CONSUMABLES,DIRECT MARKETING-OTHER DIRECT MARKETERS/NOT ELSEW.,5969
18/07/2016,http://opendatacommunities.org/id/county-council/surrey,Surrey,http://id.esd.org.uk/service/1465,Council expenditure,10/04/2016,HILLSIDE,HAVEN HOLIDAYS,259.5,EDUC VISITS/HOLS/CAMPS/TOYS,CAMPGROUNDS AND TRAILER PARKS,7033
18/07/2016,http://opendatacommunities.org/id/county-council/surrey,Surrey,http://id.esd.org.uk/service/1465,Council expenditure,10/04/2016,HILLSIDE,HAVEN HOLIDAYS,259.5,EDUC VISITS/HOLS/CAMPS/TOYS,CAMPGROUNDS AND TRAILER PARKS,7033
18/07/2016,http://opendatacommunities.org/id/county-council/surrey,Surrey,http://id.esd.org.uk/service/1465,Council expenditure,10/04/2016,CHEYNE WALK COMMUNITY HOME,SAINSBURYS PFS(1524),12.25,PURCHASE OF FOOD (RAW MATERIALS),SERVICE STATIONS WITH OR WITHOUT ANCILLARY SERVICE,5541
18/07/2016,http://opendatacommunities.org/id/county-council/surrey,Surrey,http://id.esd.org.uk/service/1465,Council expenditure,10/04/2016,CHEYNE WALK COMMUNITY HOME,TESCO STORE 2560,12.27,PURCHASE OF FOOD (RAW MATERIALS),"GROCERY STORES, SUPERMARKETS",5411
18/07/2016,http://opendatacommunities.org/id/county-council/surrey,Surrey,http://id.esd.org.uk/service/1465,Council expenditure,10/04/2016,HOLLAND CLOSE RESIDENTIAL HOME,NETFLIX.COM,7.49,SUBSCRIPTIONS,DIRECT MARKETING-CONTINUITY/SUBSCRIPTION MERCHANTS,5968
18/07/2016,http://opendatacommunities.org/id/county-council/surrey,Surrey,http://id.esd.org.uk/service/1465,Council expenditure,10/04/2016,ADDLESTONE YC,AMAZON UK MARKETPLACE,6.13,EQUIPMENT,BOOK STORES,5942
18/07/2016,http://opendatacommunities.org/id/county-council/surrey,Surrey,http://id.esd.org.uk/service/1465,Council expenditure,10/04/2016,SOLD DAY TO DAY OPERATIONS,AMAZON UK MARKETPLACE,8.99,EQUIPMENT,BOOK STORES,5942
18/07/2016,http://opendatacommunities.org/id/county-council/surrey,Surrey,http://id.esd.org.uk/service/1465,Council expenditure,10/04/2016,ADDLESTONE YC,TIGER,3,EQUIPMENT,"GIFT, CARD, NOVELTY AND SOUVENIR SHOPS",5947
18/07/2016,http://opendatacommunities.org/id/county-council/surrey,Surrey,http://id.esd.org.uk/service/1465,Council expenditure,10/04/2016,ACL CENTRAL EXPENDITURE,W M MORRISONS,33.54,REFRESHMENT COSTS,"GROCERY STORES, SUPERMARKETS",5411
18/07/2016,http://opendatacommunities.org/id/county-council/surrey,Surrey,http://id.esd.org.uk/service/1465,Council expenditure,10/04/2016,IMT CRITICAL ENVIRONMENTS,AMAZON UK MARKETPLACE,20.99,COMPUTER HARDWARE,BOOK STORES,5942
18/07/2016,http://opendatacommunities.org/id/county-council/surrey,Surrey,http://id.esd.org.uk/service/1465,Council expenditure,10/04/2016,SOLD DAY TO DAY OPERATIONS,AMAZON UK MARKETPLACE,10.49,EQUIPMENT,BOOK STORES,5942
18/07/2016,http://opendatacommunities.org/id/county-council/surrey,Surrey,http://id.esd.org.uk/service/1465,Council expenditure,11/04/2016,EXTENDED HOPE,PRIMARK STORES 655,260.2,"CLOTHING, UNIFORM AND LAUNDRY",FAMILY CLOTHING STORES,5651
18/07/2016,http://opendatacommunities.org/id/county-council/surrey,Surrey,http://id.esd.org.uk/service/1465,Council expenditure,11/04/2016,CLOSED LANDFILL,RS COMPONENTS,39.67,EQUIPMENT,ELECTRICAL PARTS AND EQUIPMENT,5065
18/07/2016,http://opendatacommunities.org/id/county-council/surrey,Surrey,http://id.esd.org.uk/service/1465,Council expenditure,11/04/2016,APPLEWOOD,ASDA HOME SHOPPING,-0.81,PURCHASE OF FOOD (RAW MATERIALS),"GROCERY STORES, SUPERMARKETS",5411
18/07/2016,http://opendatacommunities.org/id/county-council/surrey,Surrey,http://id.esd.org.uk/service/1465,Council expenditure,11/04/2016,ACL CENTRAL EXPENDITURE,WAITROSE 181,15.11,REFRESHMENT COSTS,"GROCERY STORES, SUPERMARKETS",5411
18/07/2016,http://opendatacommunities.org/id/county-council/surrey,Surrey,http://id.esd.org.uk/service/1465,Council expenditure,11/04/2016,WOODLANDS COMMUNITY HOME,IKEA,391,FURNITURE,MISCELLANEOUS HOUSE FURNISHING SPECIALTY SHOPS,5719
18/07/2016,http://opendatacommunities.org/id/county-council/surrey,Surrey,http://id.esd.org.uk/service/1465,Council expenditure,11/04/2016,HOLLAND CLOSE RESIDENTIAL HOME,WILKO RETAIL LIMIT,25,EQUIPMENT,HOUSEHOLD APPLIANCE STORES,5722
18/07/2016,http://opendatacommunities.org/id/county-council/surrey,Surrey,http://id.esd.org.uk/service/1465,Council expenditure,11/04/2016,WOODLANDS COMMUNITY HOME,IKEA,28,EQUIPMENT,MISCELLANEOUS HOUSE FURNISHING SPECIALTY SHOPS,5719
18/07/2016,http://opendatacommunities.org/id/county-council/surrey,Surrey,http://id.esd.org.uk/service/1465,Council expenditure,11/04/2016,NW CARE - LAC,SOMETHING SPECIAL,258.17,"CLOTHING, UNIFORM AND LAUNDRY",ACCESSORY AND APPAREL STORES-MISCELLANEOUS,5699
18/07/2016,http://opendatacommunities.org/id/county-council/surrey,Surrey,http://id.esd.org.uk/service/1465,Council expenditure,11/04/2016,APPLEWOOD,ASDA HOME SHOPPING,148.03,PURCHASE OF FOOD (RAW MATERIALS),"GROCERY STORES, SUPERMARKETS",5411
18/07/2016,http://opendatacommunities.org/id/county-council/surrey,Surrey,http://id.esd.org.uk/service/1465,Council expenditure,11/04/2016,MALLOW CRESCENT,SAINSBURYS TO YOU 0686,7.9,PURCHASE OF FOOD (RAW MATERIALS),"GROCERY STORES, SUPERMARKETS",5411
18/07/2016,http://opendatacommunities.org/id/county-council/surrey,Surrey,http://id.esd.org.uk/service/1465,Council expenditure,11/04/2016,MALLOW CRESCENT,SAINSBURYS TO YOU 0686,114.54,PURCHASE OF FOOD (RAW MATERIALS),"GROCERY STORES, SUPERMARKETS",5411
18/07/2016,http://opendatacommunities.org/id/county-council/surrey,Surrey,http://id.esd.org.uk/service/1465,Council expenditure,11/04/2016,HOPE SERVICE - WEST,SAINSBURYS TO YOU 0686,137.52,PURCHASE OF FOOD (RAW MATERIALS),"GROCERY STORES, SUPERMARKETS",5411
18/07/2016,http://opendatacommunities.org/id/county-council/surrey,Surrey,http://id.esd.org.uk/service/1465,Council expenditure,11/04/2016,EXTENDED HOPE,RYMAN 1138,27.44,EDUC VISITS/HOLS/CAMPS/TOYS,"OFFICE, SCHOOL SUPPLY, AND STATIONERY STORES",5943
18/07/2016,http://opendatacommunities.org/id/county-council/surrey,Surrey,http://id.esd.org.uk/service/1465,Council expenditure,11/04/2016,HOPE SERVICE - WEST,FREEDOM LEISURE,15.5,EDUC VISITS/HOLS/CAMPS/TOYS,GOVERNMENT SERVICES-NOT ELSEWHERE CLASSIFIED,9399
18/07/2016,http://opendatacommunities.org/id/county-council/surrey,Surrey,http://id.esd.org.uk/service/1465,Council expenditure,11/04/2016,TRANSPORT,PAYPAL  SPARES2GO,33.96,DAY TO DAY MAINTENANCE,ELECTRONIC SALES,5732
18/07/2016,http://opendatacommunities.org/id/county-council/surrey,Surrey,http://id.esd.org.uk/service/1465,Council expenditure,11/04/2016,APPLEWOOD,ASDA HOME SHOPPING,-1.16,PURCHASE OF FOOD (RAW MATERIALS),"GROCERY STORES, SUPERMARKETS",5411
18/07/2016,http://opendatacommunities.org/id/county-council/surrey,Surrey,http://id.esd.org.uk/service/1465,Council expenditure,11/04/2016,WORKPLACE COMMERCIAL TEAM,HOMEBASE LTD,22.67,EQUIPMENT,"BUILDING MATERIALS, LUMBER STORES",5211
18/07/2016,http://opendatacommunities.org/id/county-council/surrey,Surrey,http://id.esd.org.uk/service/1465,Council expenditure,11/04/2016,LIBERTAS COMMUNITY HOME,SAINSBURYS 0652,10.5,PURCHASE OF FOOD (RAW MATERIALS),"GROCERY STORES, SUPERMARKETS",5411
18/07/2016,http://opendatacommunities.org/id/county-council/surrey,Surrey,http://id.esd.org.uk/service/1465,Council expenditure,11/04/2016,LIBERTAS COMMUNITY HOME,SAINSBURYS 0652,110.96,PURCHASE OF FOOD (RAW MATERIALS),"GROCERY STORES, SUPERMARKETS",5411
18/07/2016,http://opendatacommunities.org/id/county-council/surrey,Surrey,http://id.esd.org.uk/service/1465,Council expenditure,11/04/2016,CYWS COMMISSIONING,ASDA STORES 4823,15.67,EDUC VISITS/HOLS/CAMPS/TOYS,"GROCERY STORES, SUPERMARKETS",5411
18/07/2016,http://opendatacommunities.org/id/county-council/surrey,Surrey,http://id.esd.org.uk/service/1465,Council expenditure,11/04/2016,HOPE SERVICE - EAST,SAINSBURYS 0683,2.75,REFRESHMENT COSTS,"GROCERY STORES, SUPERMARKETS",5411
18/07/2016,http://opendatacommunities.org/id/county-council/surrey,Surrey,http://id.esd.org.uk/service/1465,Council expenditure,11/04/2016,MALLOW CRESCENT,TESCO STORE 2590,71.78,PURCHASE OF FOOD (RAW MATERIALS),"GROCERY STORES, SUPERMARKETS",5411
18/07/2016,http://opendatacommunities.org/id/county-council/surrey,Surrey,http://id.esd.org.uk/service/1465,Council expenditure,11/04/2016,LOWER MOLE COUNTRYSIDE PROJECT,MCVEIGH PARKER & CO LT,195.59,PURCHASE OF BUILDING MATERIALS,GENERAL CONTRACTORS/RESIDENTIAL BUILDINGS,1520
18/07/2016,http://opendatacommunities.org/id/county-council/surrey,Surrey,http://id.esd.org.uk/service/1465,Council expenditure,11/04/2016,SW CARE - NON-LAC CP & COURT,SURREY CC CARD PAY,16,FEES,COMPUTER NETWORK/INFORMATION SERVICES,4816
18/07/2016,http://opendatacommunities.org/id/county-council/surrey,Surrey,http://id.esd.org.uk/service/1465,Council expenditure,11/04/2016,TARGETED INTERVENTION,SQUIRES GARDEN CENTRE,5.35,EDUC VISITS/HOLS/CAMPS/TOYS,LAWN AND GARDEN SUPPLY STORES,5261
18/07/2016,http://opendatacommunities.org/id/county-council/surrey,Surrey,http://id.esd.org.uk/service/1465,Council expenditure,11/04/2016,NE LOOKED AFTER TEAM,IPS BELFAST CONTACT CT,72.5,FEES,GOVERNMENT SERVICES-NOT ELSEWHERE CLASSIFIED,9399
18/07/2016,http://opendatacommunities.org/id/county-council/surrey,Surrey,http://id.esd.org.uk/service/1465,Council expenditure,11/04/2016,POLICY AND OPERATIONS TEAM              ,WWW.ARCO.CO.UK,13.62,"CLOTHING, UNIFORM AND LAUNDRY",INDUSTRIAL SUPPLIES NOT ELSEWHERE CLASSIFIED,5085
18/07/2016,http://opendatacommunities.org/id/county-council/surrey,Surrey,http://id.esd.org.uk/service/1465,Council expenditure,11/04/2016,MALLOW CRESCENT,SAINSBURYS TO YOU 0686,9.55,PURCHASE OF FOOD (RAW MATERIALS),"GROCERY STORES, SUPERMARKETS",5411
18/07/2016,http://opendatacommunities.org/id/county-council/surrey,Surrey,http://id.esd.org.uk/service/1465,Council expenditure,11/04/2016,MALLOW CRESCENT,SAINSBURYS TO YOU 0686,95.8,PURCHASE OF FOOD (RAW MATERIALS),"GROCERY STORES, SUPERMARKETS",5411
18/07/2016,http://opendatacommunities.org/id/county-council/surrey,Surrey,http://id.esd.org.uk/service/1465,Council expenditure,11/04/2016,NE LOOKED AFTER TEAM,IRCAS,94.65,TRANSPORT SOCIAL CARE-TAXI,FINES,9222
18/07/2016,http://opendatacommunities.org/id/county-council/surrey,Surrey,http://id.esd.org.uk/service/1465,Council expenditure,11/04/2016,HORLEY YC,ICELAND,11.55,REFRESHMENT COSTS,"GROCERY STORES, SUPERMARKETS",5411
18/07/2016,http://opendatacommunities.org/id/county-council/surrey,Surrey,http://id.esd.org.uk/service/1465,Council expenditure,11/04/2016,TARGETED INTERVENTION,TESCO STORE 2160,3.89,EDUC VISITS/HOLS/CAMPS/TOYS,"GROCERY STORES, SUPERMARKETS",5411
18/07/2016,http://opendatacommunities.org/id/county-council/surrey,Surrey,http://id.esd.org.uk/service/1465,Council expenditure,11/04/2016,WALTON YC,SAINSBURYS 0687,7.4,PURCHASE OF FOOD (RAW MATERIALS),"GROCERY STORES, SUPERMARKETS",5411
18/07/2016,http://opendatacommunities.org/id/county-council/surrey,Surrey,http://id.esd.org.uk/service/1465,Council expenditure,11/04/2016,TRANSPORT,WWW.BALLICOM.CO.UK,770.04,COMPUTER HARDWARE,"COMPUTERS, COMPUTER PERIPHERAL EQUIPMENT, SOFTWARE",5045
18/07/2016,http://opendatacommunities.org/id/county-council/surrey,Surrey,http://id.esd.org.uk/service/1465,Council expenditure,11/04/2016,HOPE SERVICE - EAST,SAINSBURYS 0683,103.03,PURCHASE OF FOOD (RAW MATERIALS),"GROCERY STORES, SUPERMARKETS",5411
18/07/2016,http://opendatacommunities.org/id/county-council/surrey,Surrey,http://id.esd.org.uk/service/1465,Council expenditure,11/04/2016,CHEYNE WALK COMMUNITY HOME,MCDONALDS,9.18,PURCHASE OF FOOD (RAW MATERIALS),"EATING PLACES, RESTAURANTS",5812
18/07/2016,http://opendatacommunities.org/id/county-council/surrey,Surrey,http://id.esd.org.uk/service/1465,Council expenditure,11/04/2016,TARGETED INTERVENTION,THE BEANSHACK,7.1,EDUC VISITS/HOLS/CAMPS/TOYS,FAST FOOD RESTAURANTS,5814
18/07/2016,http://opendatacommunities.org/id/county-council/surrey,Surrey,http://id.esd.org.uk/service/1465,Council expenditure,11/04/2016,HOPE SERVICE - WEST,TESCO-STORES 2590,22.25,CURRICULUM EQUIPMENT AND FURNITURE,"GROCERY STORES, SUPERMARKETS",5411
18/07/2016,http://opendatacommunities.org/id/county-council/surrey,Surrey,http://id.esd.org.uk/service/1465,Council expenditure,11/04/2016,CHEYNE WALK COMMUNITY HOME,FORTUNE GARDEN,12.1,PURCHASE OF FOOD (RAW MATERIALS),FAST FOOD RESTAURANTS,5814
18/07/2016,http://opendatacommunities.org/id/county-council/surrey,Surrey,http://id.esd.org.uk/service/1465,Council expenditure,11/04/2016,ACL CENTRAL EXPENDITURE,TESCO STORE 3149,106.23,REFRESHMENT COSTS,"GROCERY STORES, SUPERMARKETS",5411
18/07/2016,http://opendatacommunities.org/id/county-council/surrey,Surrey,http://id.esd.org.uk/service/1465,Council expenditure,11/04/2016,TARGETED INTERVENTION,THE BEANSHACK,3.95,EDUC VISITS/HOLS/CAMPS/TOYS,FAST FOOD RESTAURANTS,5814
18/07/2016,http://opendatacommunities.org/id/county-council/surrey,Surrey,http://id.esd.org.uk/service/1465,Council expenditure,11/04/2016,TRANSPORT,CROMWELL CRAWLEY,264.13,OPERATIONAL FIRE EQUIPMENT,HARDWARE EQUIPMENT AND SUPPLIES,5072
18/07/2016,http://opendatacommunities.org/id/county-council/surrey,Surrey,http://id.esd.org.uk/service/1465,Council expenditure,11/04/2016,SW CARE - NON-LAC CP & COURT,WESTSUSSEX.GOV.UK,10,FEES,"COLLEGES, UNIV, PRO SCHOOLS, JUNIOR COLLEGES",8220
18/07/2016,http://opendatacommunities.org/id/county-council/surrey,Surrey,http://id.esd.org.uk/service/1465,Council expenditure,11/04/2016,MALLOW CRESCENT,ARGOS RETAIL GROUP,178.99,EQUIPMENT,DISCOUNT STORES,5310
18/07/2016,http://opendatacommunities.org/id/county-council/surrey,Surrey,http://id.esd.org.uk/service/1465,Council expenditure,11/04/2016,FAIRCROFT COMMUNITY HOME,SAINSBURYS SACAT 0687,15.85,PURCHASE OF FOOD (RAW MATERIALS),"GROCERY STORES, SUPERMARKETS",5411
18/07/2016,http://opendatacommunities.org/id/county-council/surrey,Surrey,http://id.esd.org.uk/service/1465,Council expenditure,11/04/2016,DOWNLANDS COUNTRYSIDE PROJECT,INAVATA,44.73,EQUIPMENT,HOUSEHOLD APPLIANCE STORES,5722
18/07/2016,http://opendatacommunities.org/id/county-council/surrey,Surrey,http://id.esd.org.uk/service/1465,Council expenditure,11/04/2016,HOPE SERVICE - WEST,SAINSBURYS TO YOU 0686,-3,PURCHASE OF FOOD (RAW MATERIALS),"GROCERY STORES, SUPERMARKETS",5411
18/07/2016,http://opendatacommunities.org/id/county-council/surrey,Surrey,http://id.esd.org.uk/service/1465,Council expenditure,11/04/2016,DEVELOPMENT TEAM,PAYPAL  BAMANAGERFO,80,TRAINING EXPENSES EXTERNAL GENERAL,SCHOOLS & EDUCATIONAL SVC-NOT ELSEWHERE CLASSIFIED,8299
18/07/2016,http://opendatacommunities.org/id/county-council/surrey,Surrey,http://id.esd.org.uk/service/1465,Council expenditure,11/04/2016,MALLOW CRESCENT,SAINSBURYS TO YOU 0686,4.35,PURCHASE OF FOOD (RAW MATERIALS),"GROCERY STORES, SUPERMARKETS",5411
18/07/2016,http://opendatacommunities.org/id/county-council/surrey,Surrey,http://id.esd.org.uk/service/1465,Council expenditure,11/04/2016,MALLOW CRESCENT,SAINSBURYS TO YOU 0686,103.47,PURCHASE OF FOOD (RAW MATERIALS),"GROCERY STORES, SUPERMARKETS",5411
18/07/2016,http://opendatacommunities.org/id/county-council/surrey,Surrey,http://id.esd.org.uk/service/1465,Council expenditure,11/04/2016,TRANSPORT,AMAZON UK MARKETPLACE,107.95,COMPUTER CONSUMABLES,BOOK STORES,5942
18/07/2016,http://opendatacommunities.org/id/county-council/surrey,Surrey,http://id.esd.org.uk/service/1465,Council expenditure,11/04/2016,LOCAL DELIVERY GROUP,AMAZON EU,26.59,EQUIPMENT,DIRECT MARKETING-OTHER DIRECT MARKETERS/NOT ELSEW.,5969
18/07/2016,http://opendatacommunities.org/id/county-council/surrey,Surrey,http://id.esd.org.uk/service/1465,Council expenditure,11/04/2016,ACL CENTRAL EXPENDITURE,ALEC TIRANTI LTD,114.83,EQUIPMENT,"ARTIST SUPPLY STORES, CRAFT SHOPS",5970
18/07/2016,http://opendatacommunities.org/id/county-council/surrey,Surrey,http://id.esd.org.uk/service/1465,Council expenditure,11/04/2016,DEPUTYSHIP TEAM,WWW.DIRECT-FABRICS.CO.,66.74,3RD PARTY PAYMENTS PRIVATE INDIV,"DRAPERY, UPOLSTERY, AND WINDOW COVERINGS STORES",5714
18/07/2016,http://opendatacommunities.org/id/county-council/surrey,Surrey,http://id.esd.org.uk/service/1465,Council expenditure,11/04/2016,HILLSIDE,TESCO STORE 3149,6.3,PURCHASE OF FOOD (RAW MATERIALS),"GROCERY STORES, SUPERMARKETS",5411
18/07/2016,http://opendatacommunities.org/id/county-council/surrey,Surrey,http://id.esd.org.uk/service/1465,Council expenditure,11/04/2016,HILLSIDE,TESCO STORE 3149,54.1,PURCHASE OF FOOD (RAW MATERIALS),"GROCERY STORES, SUPERMARKETS",5411
18/07/2016,http://opendatacommunities.org/id/county-council/surrey,Surrey,http://id.esd.org.uk/service/1465,Council expenditure,11/04/2016,SOLD ESTATES MANAGEMENT,SCREWFIX DIRECT,60.26,EQUIPMENT,"BUILDING MATERIALS, LUMBER STORES",5211
18/07/2016,http://opendatacommunities.org/id/county-council/surrey,Surrey,http://id.esd.org.uk/service/1465,Council expenditure,11/04/2016,HERITAGE PUBLIC SERVICE,W M MORRISONS,6.8,REFRESHMENT COSTS,"GROCERY STORES, SUPERMARKETS",5411
18/07/2016,http://opendatacommunities.org/id/county-council/surrey,Surrey,http://id.esd.org.uk/service/1465,Council expenditure,11/04/2016,ASSET STRATEGY & PLANNING MANAGER,PAYPAL  METROPOLISI,300,TRAINING EXPENSES EXTERNAL GENERAL,MISCELLANEOUS AND SPECIALTY RETAIL STORES,5999
18/07/2016,http://opendatacommunities.org/id/county-council/surrey,Surrey,http://id.esd.org.uk/service/1465,Council expenditure,11/04/2016,LEAVING CARE PACKAGES,TRAVELODGE,309,3RD PARTY PAYMENTS PRIVATE INDIV,TRAVELODGE,3615
18/07/2016,http://opendatacommunities.org/id/county-council/surrey,Surrey,http://id.esd.org.uk/service/1465,Council expenditure,11/04/2016,HOPE SERVICE - EAST,ASDA SUPERSTORE,9.25,PURCHASE OF FOOD (RAW MATERIALS),"GROCERY STORES, SUPERMARKETS",5411
18/07/2016,http://opendatacommunities.org/id/county-council/surrey,Surrey,http://id.esd.org.uk/service/1465,Council expenditure,11/04/2016,TARGETED INTERVENTION,STARBUCKS,7.25,EDUC VISITS/HOLS/CAMPS/TOYS,FAST FOOD RESTAURANTS,5814
18/07/2016,http://opendatacommunities.org/id/county-council/surrey,Surrey,http://id.esd.org.uk/service/1465,Council expenditure,11/04/2016,TRANSPORT,AMAZON EU,15.99,COMPUTER CONSUMABLES,DIRECT MARKETING-OTHER DIRECT MARKETERS/NOT ELSEW.,5969
18/07/2016,http://opendatacommunities.org/id/county-council/surrey,Surrey,http://id.esd.org.uk/service/1465,Council expenditure,11/04/2016,CHEYNE WALK COMMUNITY HOME,TESCO STORE 2560,12.73,PURCHASE OF FOOD (RAW MATERIALS),"GROCERY STORES, SUPERMARKETS",5411
18/07/2016,http://opendatacommunities.org/id/county-council/surrey,Surrey,http://id.esd.org.uk/service/1465,Council expenditure,11/04/2016,LOCAL DELIVERY GROUP,SCCS,194.4,EQUIPMENT,"BUILDING MATERIALS, LUMBER STORES",5211
18/07/2016,http://opendatacommunities.org/id/county-council/surrey,Surrey,http://id.esd.org.uk/service/1465,Council expenditure,11/04/2016,SOLD MANAGEMENT AND OVERHEADS,PAYPAL  COUNCILFORL,87.5,FEES,"ORGANIZATIONS, CHARITABLE AND SOCIAL SERVICES",8398
18/07/2016,http://opendatacommunities.org/id/county-council/surrey,Surrey,http://id.esd.org.uk/service/1465,Council expenditure,11/04/2016,ELMBRIDGE STAFFING,SAINSBURYS SACAT 0687,4.25,PURCHASE OF FOOD (RAW MATERIALS),"GROCERY STORES, SUPERMARKETS",5411
18/07/2016,http://opendatacommunities.org/id/county-council/surrey,Surrey,http://id.esd.org.uk/service/1465,Council expenditure,11/04/2016,WOODLANDS COMMUNITY HOME,IKEA,46.35,EQUIPMENT,MISCELLANEOUS HOUSE FURNISHING SPECIALTY SHOPS,5719
18/07/2016,http://opendatacommunities.org/id/county-council/surrey,Surrey,http://id.esd.org.uk/service/1465,Council expenditure,11/04/2016,FAIRCROFT COMMUNITY HOME,BURGER KING GUILDFORD,6.77,REFRESHMENT COSTS,FAST FOOD RESTAURANTS,5814
